Workbook

Sheet Site Details
A1: Site Information | E1: Actual Historic | N1: Year 0 | O1: Year 1
A2: Current Financial Year | B2: 2016/17 | D2: Maintenance Quantities | E2: 2007/08 | F2: 2008/09 | G2: 2009/10 | H2: 2010/11 | I2: 2011/12 | J2: 2012/13 | K2: 2013/14 | L2: 2014/15 | M2: 2015/16 | N2: 2016/17 | O2: 2017/18 | Q2: Surfacing History
A3: Site Name | B3: Site X | D3: In situ stabilisation (m2) | E3: 0 | F3: 0 | G3: 0 | H3: 1714 | I3: 457.4 | J3: 0 | K3: 124.2 | L3: 0 | M3: 0 | N3: 250 | O3: 950 | Q3: Surface Date | R3: Start Distance (m) | S3: End Distance (m) | T3: Length | U3: Function | V3: 1st Chip Size | W3: 2nd Chip Size
A4: Location | B4: SHA RPB/4.70-6.10 | D4: Digouts (m2) | E4: 0 | F4: 0 | G4: 0 | H4: 0 | I4: 0 | J4: 0 | K4: 0 | L4: 0 | M4: 0 | N4: 100 | O4: 150 | Q4: 1996-04-12 | R4: 4651 | S4: 6134 | T4: =IF(ISBLANK(S4),"",(S4-R4)) -> 1483 | U4: Single Coat Seal | V4: 3
A5: Network Outcome Region | B5: Any | D5: Milling (m2) | E5: 0 | F5: 0 | G5: 0 | H5: 0 | I5: 0 | J5: 0 | K5: 6.5 | L5: 0 | M5: 0 | N5: 0 | O5: 0 | Q5: 2004-03-10 | R5: 4937 | S5: 6134 | T5: =IF(ISBLANK(S5),"",(S5-R5)) -> 1197 | U5: Two Coat Seal | V5: 3 | W5: 5
A6: ONRC Classification | B6: National | D6: Minor levelling (m2) | E6: 0 | F6: 0 | G6: 0 | H6: 0 | I6: 0 | J6: 0 | K6: 0 | L6: 0 | M6: 0 | N6: 0 | O6: 0 | Q6: 2004-11-08 | R6: 4651 | S6: 4924 | T6: 273 | U6: Two Coat Seal | V6: 3 | W6: 5
A7: Site Length (km) | B7: 1.4 | D7: Rip and Remake (m2) | E7: 0 | F7: 0 | G7: 0 | H7: 0 | I7: 0 | J7: 0 | K7: 0 | L7: 0 | M7: 0 | N7: 0 | O7: 0 | Q7: 2005-12-13 | R7: 4867 | S7: 6134 | T7: 1267 | U7: Single Coat Seal | V7: 3
A8: Existing Pavement Layer Date | B8: 1990-12-25 | D8: Fill cracks (m2) | E8: 0 | F8: 0 | G8: 0 | H8: 0 | I8: 0 | J8: 0 | K8: 0 | L8: 0 | M8: 0 | N8: 0 | O8: 0 | Q8: 2010-03-30 | R8: 5218 | S8: 6083 | T8: 865 | U8: Sandwich Seal | V8: 2 | W8: 4
A9: Existing Pavement Layer Depth | B9: 300 | D9: Seal cracks (m2) | E9: 0 | F9: 0 | G9: 0 | H9: 0 | I9: 0 | J9: 0 | K9: 0 | L9: 0 | M9: 0 | N9: 0 | O9: 0 | Q9: 2012-01-24 | R9: 4651 | S9: 6134 | T9: 1483 | U9: Two Coat Seal | V9: 4 | W9: 6
A10: AADT (latest) | B10: 3125 | D10: Surfacing defect repairs (m2) | E10: 0 | F10: 0 | G10: 0 | H10: 0 | I10: 0 | J10: 0 | K10: 0 | L10: 0 | M10: 0 | N10: 120 | O10: 360
A11: % Heavies | B11: 0.09 | D11: Waterblasting (m2) | E11: 0 | F11: 1590 | G11: 1045.3 | H11: 0 | I11: 0 | J11: 0 | K11: 138 | L11: 0 | M11: 0 | N11: 450 | O11: 1200
A12: Traffic Growth (%) | B12: 0.016 | D12: Shoulder maintenance (m) | E12: 0 | F12: 0 | G12: 0 | H12: 0 | I12: 25 | J12: 5 | K12: 563 | L12: 661 | M12: 0 | N12: 200 | O12: 400
A13: Road Category (for RoD) | B13: Rural strategic
D14: Base Unit Rates | R14: Condition | S14: 2011/12 | T14: 2012/13 | U14: 2013/14 | V14: 2014/15 | W14: 2015/16
A15: Associated Work | D15: In situ stabilisation | E15: 30 | F15: $/m2 | G15: Refer to NOC SoP Item 2.4.2 (weighted average) | R15: Average Roughness (NAASRA) | S15: 76 | T15: 81 | U15: 77 | V15: 78 | W15: 78
A16: Seal widening linked with project?* | B16: No | D16: Digouts | E16: 60 | F16: $/m2 | G16: Refer to NOC SoP Item 2.4.1 (weighted average) | R16: Maximum Roughness (NAASRA) | S16: 143 | T16: 206 | U16: 161 | V16: 170 | W16: 178
A17: Major drainage work linked with project?* | B17: No | D17: Milling | E17: 40 | F17: $/m2 | G17: Refer to NOC SoP Item 2.4.5 (weighted average) | R17: Texture > 275mm (%) | S17: 0.0044 | T17: 0 | U17: 0.0002 | V17: 0.0036 | W17: 0.0245
A18: Minor safety improvements linked with project?* | B18: No | D18: Minor levelling | E18: 20 | F18: $/m2 | G18: Refer to NOC SoP Item 2.4.4 (weighted average) | R18: Rutting (%) | S18: 0.0168 | T18: 0.02 | U18: 0.0159 | V18: 0.0125 | W18: 0.0173
A19: *funding to be applied for seperately | D19: Rip and Remake | E19: 25 | F19: $/m2 | G19: Refer to NOC SoP Item 2.4.3 (weighted average) | R19: Shoving (%) | S19: 0.0161 | T19: 0.0152 | U19: 0.007 | V19: 0.007 | W19: 0.0109
D20: Fill cracks | E20: 10 | F20: $/m2 | G20: Refer to NOC SoP Item 2.4.7 | R20: Length with SCRIM < 0 (%) | S20: 0.446 | T20: 0.7321 | U20: 0.3429 | V20: 0.3464 | W20: 0.3357
A21: Quality Assurance | D21: Seal cracks | E21: 15 | F21: $/m2 | G21: Refer to NOC SoP Item 2.4.6 | R21: Length with SCRIM < 0.1 (%) | S21: 0 | T21: 0 | U21: 0 | V21: 0 | W21: 0
A22: Prepared by | B22: B Smith | D22: Surfacing defect repairs | E22: 15 | F22: $/m2
A23: Reviewed by | B23: J Doe | D23: Waterblasting | E23: 8 | F23: $/m2 | G23: Refer to NOC SoP Item 2.4.9
A24: Pavement designer | B24: B Asecourse | D24: Shoulder maintenance | E24: 12 | F24: $/m

Sheet Estimates
A1: ='Site Details'!B3 -> Site X
A2: ='Site Details'!B4 -> SHA RPB/4.70-6.10
A4: STRATEGY / PRELIMINARY DESIGN | B4: ITEM | C4: DESCRIPTION | D4: UNIT | E4: QTY | F4: RATE | G4: AMOUNT
A6: HEAVY MAINTENANCE
A7: Waterblast wheel paths throughout the site to remove excess binder. Carry out stabilisation repairs on 20% of the site to address pavement failures. Note that isolated maintenance is not considered appropriate for this site as it is failing consistently throughtout - full length and full width. This is due to multiple (and unstable) seal layers on top of a substandard pavement | B7: 1.1 | C7: Waterblasting | D7: m2 | E7: 5600 | F7: 8 | G7: =E7*F7 -> 44800
B8: 1.2 | C8: Stabilisation Repairs | D8: m2 | E8: 2520 | F8: 25 | G8: 63000
B9: 1.3 | C9: Other (Traffic Management, Traffic Services, etc.) | D9: LS | E9: 1 | F9: 2500 | G9: 2500
B10: 1.4 | G10: 0
B11: 1.5 | G11: 0
B12: 1.6 | G12: 0
F13: TOTAL | G13: =SUM(G7:G12) -> 110300
A15: RENEWAL No.1
A16: 50mm overlay with M/4 and stabilise with existing material to 250mm depth with 2% cement. Seal with grade 3 | B16: 2.1 | C16: Pavement Rehabilitation No.2 - Stabilisation Inlay | D16: m2 | E16: 12600 | F16: 15 | G16: =E16*F16 -> 189000
B17: 2.2 | C17: Additional 25mm increments of basecourse replacement | D17: m2 | E17: 25200 | F17: 3 | G17: =E17*F17 -> 75600
B18: 2.3 | C18: Additional 25mm increments of cement/lime stabilisation | D18: m2 | E18: 25200 | F18: 1 | G18: 25200
B19: 2.4 | G19: =E19*F19 -> 0
B20: 2.5 | G20: =E20*F20 -> 0
B21: 2.6 | G21: =E21*F21 -> 0
F22: TOTAL | G22: =SUM(G16:G21) -> 289800
A24: RENEWAL No.2
A25: Stabilise existing material to 150mm depth with 2% cement. Overlay with 150mm of M/4 . Seal with grade 3 | B25: 3.1 | C25: Pavement Rehabilitation No.1 - Basecourse Overlay | D25: m2 | E25: 12600 | F25: 20 | G25: =E25*F25 -> 252000
B26: 3.2 | C26: Cement/Lime stabilisation (2%) to 150mm | D26: m2 | E26: 12600 | F26: 5 | G26: =E26*F26 -> 63000
B27: 3.3 | C27: Additional 25mm increments of basecourse overlay | D27: m2 | E27: 25200 | F27: 3.5 | G27: 88200
B28: 3.4 | G28: =E28*F28 -> 0
B29: 3.5 | G29: =E29*F29 -> 0
B30: 3.6 | G30: =E30*F30 -> 0
F31: TOTAL | G31: =SUM(G25:G30) -> 403200
A32: RENEWAL No.3
A33: Cut to waste top 250mm. Replace with 160mm AP65 and 90mm M/4. Stabilise to 200mm with 2% cement. Seal with grade 3 | B33: 4.1 | C33: Pavement Rehabilitation No.3 - Granular Replacement | D33: m2 | E33: 12600 | F33: 35 | G33: =E33*F33 -> 441000
B34: 4.2 | C34: Cement/Lime stabilisation (2%) to 150mm | D34: m2 | E34: 12600 | F34: 5 | G34: =E34*F34 -> 63000
B35: 4.3 | C35: Additional 25mm increments of cement/lime stabilisation | D35: m2 | E35: 25200 | F35: 1 | G35: 25200
B36: 4.4 | G36: =E36*F36 -> 0
B37: 4.5 | G37: =E37*F37 -> 0
B38: 4.6 | G38: =E38*F38 -> 0
F39: TOTAL | G39: =SUM(G33:G38) -> 529200

Sheet Template
A1: ='Site Details'!B3 -> Site X
A2: ='Site Details'!B4 -> SHA RPB/4.70-6.10
D4: DO MINIMUM | J4: HEAVY MAINTENANCE | P4: RENEWAL No.1 | V4: RENEWAL No.2 | AB4: RENEWAL No.3
A5: Year | C5: SPPWF | D5: Rehab | E5: Resurf | F5: Annual Maint (Pave) | G5: Annual Maint (Surf) | H5: Annual Maint (Should) | I5: Discounted Total Costs | J5: Rehab | K5: Resurf | L5: Annual Maint (Pave) | M5: Annual Maint (Surf) | N5: Annual Maint (Should) | O5: Discounted Total Costs | P5: Rehab | Q5: Resurf | R5: Annual Maint (Pave) | S5: Annual Maint (Surf) | T5: Annual Maint (Should) | U5: Discounted Total Costs | V5: Rehab | W5: Resurf | X5: Annual Maint (Pave) | Y5: Annual Maint (Surf) | Z5: Annual Maint (Should) | AA5: Discounted Total Costs | AB5: Rehab | AC5: Resurf | AD5: Annual Maint (Pave) | AE5: Annual Maint (Surf) | AF5: Annual Maint (Should) | AG5: Discounted Total Costs
A6: 2017/18 | B6: 1 | C6: =1/((1+6%)^B6) -> 0.9433962264 | F6: ='Do Min Cost Model'!$M$6 -> 37500 | G6: ='Do Min Cost Model'!$M$7 -> 15000 | H6: ='Do Min Cost Model'!$M$8 -> 4800 | I6: =SUM(D6:H6)*C6 -> 54056.60377 | L6: =Estimates!G13 -> 110300 | O6: =SUM(K6:N6)*C6 -> 104056.6038 | P6: =Estimates!G22 -> 289800 | U6: =SUM(P6:T6)*C6 -> 273396.2264 | V6: =Estimates!G31 -> 403200 | AA6: =SUM(V6:Z6)*C6 -> 380377.3585 | AB6: =Estimates!G39 -> 529200 | AG6: =SUM(AB6:AF6)*C6 -> 499245.283
A7: 2018/19 | B7: 2 | C7: =1/((1+6%)^B7) -> 0.88999644 | F7: ='Do Min Cost Model'!$N$9 -> 17952.94545 | G7: ='Do Min Cost Model'!$N$10 -> 5057.134545 | H7: ='Do Min Cost Model'!$N$11 -> 5072.727273 | I7: 24993.5985 | L7: 2000 | M7: 1500 | N7: 500 | O7: =SUM(J7:N7)*C7 -> 3559.98576 | U7: 0 | AA7: 0 | AG7: 0
A8: 2019/20 | B8: 3 | C8: 0.839619283 | F8: ='Do Min Cost Model'!$O$9 -> 19124.98182 | G8: ='Do Min Cost Model'!$O$10 -> 5254.741818 | H8: ='Do Min Cost Model'!$O$11 -> 5581.090909 | I8: 25155.67763 | L8: 4000 | M8: 3000 | N8: 1000 | O8: 6716.954264 | Q8: 82000 | U8: 68848.78121 | W8: 82000 | AA8: 68848.78121 | AC8: 82000 | AG8: 68848.78121
A9: 2020/21 | B9: 4 | C9: 0.7920936632 | F9: ='Do Min Cost Model'!$P$9 -> 20297.01818 | G9: ='Do Min Cost Model'!$P$10 -> 5452.349091 | H9: ='Do Min Cost Model'!$P$11 -> 6089.454545 | I9: 25219.32901 | L9: 6000 | M9: 4500 | N9: 1500 | O9: 9505.123959 | U9: 0 | AA9: 0 | AG9: 0
A10: 2021/22 | B10: 5 | C10: 0.7472581729 | F10: ='Do Min Cost Model'!$Q$9 -> 21469.05455 | G10: ='Do Min Cost Model'!$Q$10 -> 5649.956364 | H10: ='Do Min Cost Model'!$Q$11 -> 6597.818182 | I10: 25195.1761 | K10: =92000 -> 92000 | O10: 68747.7519 | R10: 250 | S10: 150 | T10: 50 | U10: 336.2661778 | X10: 250 | Y10: 150 | Z10: 50 | AA10: 336.2661778 | AD10: 250 | AE10: 150 | AF10: 50 | AG10: 336.2661778
A11: 2022/23 | B11: 6 | C11: 0.7049605404 | F11: ='Do Min Cost Model'!$R$9 -> 22641.09091 | G11: ='Do Min Cost Model'!$R$10 -> 5847.563636 | H11: ='Do Min Cost Model'!$R$11 -> 7106.181818 | I11: 25092.95508 | O11: 0 | R11: 500 | S11: 300 | T11: 100 | U11: 634.4644864 | X11: 500 | Y11: 300 | Z11: 100 | AA11: 634.4644864 | AD11: 500 | AE11: 300 | AF11: 100 | AG11: 634.4644864
A12: 2023/24 | B12: 7 | C12: 0.6650571136 | F12: ='Do Min Cost Model'!$S$9 -> 23813.12727 | G12: ='Do Min Cost Model'!$S$10 -> 6045.170909 | H12: ='Do Min Cost Model'!$S$11 -> 7614.545455 | I12: 24921.58123 | L12: 4000 | M12: 2500 | N12: 750 | O12: 4821.664074 | R12: 750 | S12: 450 | T12: 150 | U12: 897.8271034 | X12: 750 | Y12: 450 | Z12: 150 | AA12: 897.8271034 | AD12: 750 | AE12: 450 | AF12: 150 | AG12: 897.8271034
A13: 2024/25 | B13: 8 | C13: 0.6274123713 | F13: ='Do Min Cost Model'!$T$9 -> 24985.16364 | G13: ='Do Min Cost Model'!$T$10 -> 6242.778182 | H13: ='Do Min Cost Model'!$T$11 -> 8122.909091 | I13: 24689.21068 | L13: 8000 | M13: 5000 | N13: 1500 | O13: 9097.479384 | R13: 1000 | S13: 600 | T13: 200 | U13: 1129.342268 | X13: 1000 | Y13: 600 | Z13: 200 | AA13: 1129.342268 | AD13: 1000 | AE13: 600 | AF13: 200 | AG13: 1129.342268
A14: 2025/26 | B14: 9 | C14: 0.5918984635 | D14: =Estimates!G31 -> 403200 | I14: 238653.4605 | L14: 12000 | M14: 7500 | N14: 2250 | O14: 12873.79158 | R14: 1250 | S14: 750 | T14: 250 | U14: 1331.771543 | X14: 1250 | Y14: 750 | Z14: 250 | AA14: 1331.771543 | AD14: 1250 | AE14: 750 | AF14: 250 | AG14: 1331.771543
A15: 2026/27 | B15: 10 | C15: 0.5583947769 | I15: =SUM(D15:H15)*C15 -> 0 | L15: 16000 | M15: 10000 | N15: 3000 | O15: 16193.44853 | R15: 1500 | S15: 900 | T15: 300 | U15: 1507.665898 | X15: 1500 | Y15: 900 | Z15: 300 | AA15: 1507.665898 | AD15: 1500 | AE15: 900 | AF15: 300 | AG15: 1507.665898
A16: 2027/28 | B16: 11 | C16: 0.5267875254 | E16: 82000 | I16: 43196.57708 | J16: =Estimates!G31 -> 403200 | O16: 212400.7302 | R16: 1750 | S16: 1050 | T16: 350 | U16: 1659.380705 | X16: 1750 | Y16: 1050 | Z16: 350 | AA16: 1659.380705 | AD16: 1750 | AE16: 1050 | AF16: 350 | AG16: 1659.380705
A17: 2028/29 | B17: 12 | C17: 0.4969693636 | I17: 0 | O17: 0 | R17: 2000 | S17: 1200 | T17: 400 | U17: 1789.089709 | X17: 2000 | Y17: 1200 | Z17: 400 | AA17: 1789.089709 | AD17: 2000 | AE17: 1200 | AF17: 400 | AG17: 1789.089709
A18: 2029/30 | B18: 13 | C18: 0.4688390222 | F18: 250 | G18: 150 | H18: 50 | I18: 210.97756 | K18: 82000 | O18: 38444.79982 | R18: 2250 | S18: 1350 | T18: 450 | U18: 1898.79804 | X18: 2250 | Y18: 1350 | Z18: 450 | AA18: 1898.79804 | AD18: 2250 | AE18: 1350 | AF18: 450 | AG18: 1898.79804
A19: 2030/31 | B19: 14 | C19: 0.4423009644 | F19: 500 | G19: 300 | H19: 100 | I19: 398.0708679 | O19: 0 | R19: 2500 | S19: 1500 | T19: 500 | U19: 1990.35434 | X19: 2500 | Y19: 1500 | Z19: 500 | AA19: 1990.35434 | AD19: 2500 | AE19: 1500 | AF19: 500 | AG19: 1990.35434
A20: 2031/32 | B20: 15 | C20: 0.4172650607 | F20: 750 | G20: 450 | H20: 150 | I20: 563.307832 | L20: 250 | M20: 150 | N20: 50 | O20: 187.7692773 | Q20: 82000 | U20: 34215.73498 | X20: 2750 | Y20: 1650 | Z20: 550 | AA20: 2065.462051 | AD20: 2750 | AE20: 1650 | AF20: 550 | AG20: 2065.462051
A21: 2032/33 | B21: 16 | C21: 0.3936462837 | F21: 1000 | G21: 600 | H21: 200 | I21: 708.5633107 | L21: 500 | M21: 300 | N21: 100 | O21: 354.2816553 | U21: 0 | X21: 3000 | Y21: 1800 | Z21: 600 | AA21: 2125.689932 | AD21: 3000 | AE21: 1800 | AF21: 600 | AG21: 2125.689932
A22: 2033/34 | B22: 17 | C22: 0.3713644186 | F22: 1250 | G22: 750 | H22: 250 | I22: 835.5699418 | L22: 750 | M22: 450 | N22: 150 | O22: 501.3419651 | R22: 400 | S22: 250 | T22: 75 | U22: 269.2392035 | W22: 82000 | AA22: 30451.88232 | AC22: 82000 | AG22: 30451.88232
A23: 2034/35 | B23: 18 | C23: 0.3503437911 | F23: 1500 | G23: 900 | H23: 300 | I23: 945.928236 | L23: 1000 | M23: 600 | N23: 200 | O23: 630.618824 | R23: 800 | S23: 500 | T23: 150 | U23: 507.9984971 | AA23: 0 | AG23: 0
A24: 2035/36 | B24: 19 | C24: 0.3305130105 | F24: 1750 | G24: 1050 | H24: 350 | I24: 1041.115983 | L24: 1250 | M24: 750 | N24: 250 | O24: 743.6542736 | R24: 1200 | S24: 750 | T24: 225 | U24: 718.8657978 | X24: 400 | Y24: 250 | Z24: 75 | AA24: 239.6219326 | AD24: 400 | AE24: 250 | AF24: 75 | AG24: 239.6219326
A25: 2036/37 | B25: 20 | C25: 0.3118047269 | F25: 2000 | G25: 1200 | H25: 400 | I25: 1122.497017 | L25: 1500 | M25: 900 | N25: 300 | O25: 841.8727626 | R25: 1600 | S25: 1000 | T25: 300 | U25: 904.233708 | X25: 800 | Y25: 500 | Z25: 150 | AA25: 452.116854 | AD25: 800 | AE25: 500 | AF25: 150 | AG25: 452.116854
A26: 2037/38 | B26: 21 | C26: 0.2941554027 | F26: 2250 | G26: 1350 | H26: 450 | I26: 1191.329381 | L26: 1750 | M26: 1050 | N26: 350 | O26: 926.5895186 | R26: 2000 | S26: 1250 | T26: 375 | U26: 1066.313335 | X26: 1200 | Y26: 750 | Z26: 225 | AA26: 639.7880009 | AD26: 1200 | AE26: 750 | AF26: 225 | AG26: 639.7880009
A27: 2038/39 | B27: 22 | C27: 0.2775050969 | F27: 2500 | G27: 1500 | H27: 500 | I27: 1248.772936 | L27: 2000 | M27: 1200 | N27: 400 | O27: 999.0183489 | R27: 2400 | S27: 1500 | T27: 450 | U27: 1207.147172 | X27: 1600 | Y27: 1000 | Z27: 300 | AA27: 804.764781 | AD27: 1600 | AE27: 1000 | AF27: 300 | AG27: 804.764781
A28: 2039/40 | B28: 23 | C28: 0.2617972612 | F28: 2750 | G28: 1650 | H28: 550 | I28: 1295.896443 | L28: 2250 | M28: 1350 | N28: 450 | O28: 1060.278908 | R28: 2800 | S28: 1750 | T28: 525 | U28: 1328.621101 | X28: 2000 | Y28: 1250 | Z28: 375 | AA28: 949.015072 | AD28: 2000 | AE28: 1250 | AF28: 375 | AG28: 949.015072
A29: 2040/41 | B29: 24 | C29: 0.2469785483 | F29: 3000 | G29: 1800 | H29: 600 | I29: 1333.684161 | L29: 2500 | M29: 1500 | N29: 500 | O29: 1111.403468 | R29: 3200 | S29: 2000 | T29: 600 | U29: 1432.47558 | X29: 2400 | Y29: 1500 | Z29: 450 | AA29: 1074.356685 | AD29: 2400 | AE29: 1500 | AF29: 450 | AG29: 1074.356685
A30: 2041/42 | B30: 25 | C30: 0.2329986305 | E30: 82000 | I30: 19105.8877 | L30: 2750 | M30: 1650 | N30: 550 | O30: 1153.343221 | R30: 3600 | S30: 2250 | T30: 675 | U30: 1520.316064 | X30: 2800 | Y30: 1750 | Z30: 525 | AA30: 1182.46805 | AD30: 2800 | AE30: 1750 | AF30: 525 | AG30: 1182.46805
A31: 2042/43 | B31: 26 | C31: 0.2198100288 | I31: 0 | L31: 3000 | M31: 1800 | N31: 600 | O31: 1186.974155 | R31: 4000 | S31: 2500 | T31: 750 | U31: 1593.622709 | X31: 3200 | Y31: 2000 | Z31: 600 | AA31: 1274.898167 | AD31: 3200 | AE31: 2000 | AF31: 600 | AG31: 1274.898167
A32: 2043/44 | B32: 27 | C32: 0.2073679517 | F32: 400 | G32: 250 | H32: 75 | I32: 150.341765 | K32: 82000 | O32: 17004.17204 | R32: 4400 | S32: 2750 | T32: 825 | U32: 1653.759415 | X32: 3600 | Y32: 2250 | Z32: 675 | AA32: 1353.075885 | AD32: 3600 | AE32: 2250 | AF32: 675 | AG32: 1353.075885
A33: 2044/45 | B33: 28 | C33: 0.1956301431 | F33: 800 | G33: 500 | H33: 150 | I33: 283.6637075 | O33: 0 | R33: 4800 | S33: 3000 | T33: 900 | U33: 1701.982245 | X33: 4000 | Y33: 2500 | Z33: 750 | AA33: 1418.318537 | AD33: 4000 | AE33: 2500 | AF33: 750 | AG33: 1418.318537
A34: 2045/46 | B34: 29 | C34: 0.1845567388 | F34: 1200 | G34: 750 | H34: 225 | I34: 401.4109068 | L34: 400 | M34: 250 | N34: 75 | O34: 133.8036356 | Q34: 82000 | U34: 15133.65258 | X34: 4400 | Y34: 2750 | Z34: 825 | AA34: 1471.839992 | AD34: 4400 | AE34: 2750 | AF34: 825 | AG34: 1471.839992
A35: 2046/47 | B35: 30 | C35: 0.1741101309 | F35: 1600 | G35: 1000 | H35: 300 | I35: 504.9193796 | L35: 800 | M35: 500 | N35: 150 | O35: 252.4596898 | U35: 0 | X35: 4800 | Y35: 3000 | Z35: 900 | AA35: 1514.758139 | AD35: 4800 | AE35: 3000 | AF35: 900 | AG35: 1514.758139
H36: Discounted Total Cost | I36: =SUM(I6:I35) -> 542516.1067 | N36: Discounted Total Cost | O36: =SUM(O6:O35) -> 513505.915 | T36: Discounted Total Cost | U36: =SUM(U6:U35) -> 418673.9303 | Z36: Discounted Total Cost | AA36: =SUM(AA6:AA35) -> 509419.1564 | AF36: Discounted Total Cost | AG36: =SUM(AG6:AG35) -> 628287.0809
D58: OPTIONS SUMMARY - DO MINIMUM | J58: OPTIONS SUMMARY - HEAVY MAINTENANCE | P58: OPTIONS SUMMARY - RENEWAL No.1 | V58: OPTIONS SUMMARY - RENEWAL No.2 | AB58: OPTIONS SUMMARY - RENEWAL No.3
D59: Short Term Present Value (7yr) | H59: =SUM(I6:I12) -> 204634.9213 | J59: Short Term Present Value (7yr) | N59: =SUM(O6:O12) -> 197408.0837 | P59: Short Term Present Value (7yr) | T59: =SUM(U6:U12) -> 344113.5654 | V59: Short Term Present Value (7yr) | Z59: =SUM(AA6:AA12) -> 451094.6975 | AB59: Short Term Present Value (7yr) | AF59: =SUM(AG6:AG12) -> 569962.622
D60: Long Term Present Value (30yr) | H60: =I36 -> 542516.1067 | J60: Long Term Present Value (30yr) | N60: =O36 -> 513505.915 | P60: Long Term Present Value (30yr) | T60: =U36 -> 418673.9303 | V60: Long Term Present Value (30yr) | Z60: =AA36 -> 509419.1564 | AB60: Long Term Present Value (30yr) | AF60: =AG36 -> 628287.0809
H61: CHECKPOINT 1 | J61: NPV (vs. Do Minimum) | M61: =IF(N61="Not Assessed","Review",IF(N61>(VLOOKUP('Site Details'!$B$6,$B$106:$C$111,2,FALSE)),"Pass","Fail")) -> Pass | N61: =IF(N60<5000,"Not Assessed",H60-O36) -> 29010.19167 | P61: NPV (vs. Do Minimum) | S61: =IF(T61="Not Assessed","Review",IF(T61>(VLOOKUP('Site Details'!$B$6,$B$106:$C$111,2,FALSE)),"Pass","Fail")) -> Pass | T61: =IF(T60<5000,"Not Assessed",H60-U36) -> 123842.1764 | V61: NPV (vs. Do Minimum) | Y61: =IF(Z61="Not Assessed","Review",IF(Z61>(VLOOKUP('Site Details'!$B$6,$B$106:$C$111,2,FALSE)),"Pass","Fail")) -> Pass | Z61: =IF(Z60<5000,"Not Assessed",H60-AA36) -> 33096.95033 | AB61: NPV (vs. Do Minimum) | AE61: =IF(AF61="Not Assessed","Review",IF(AF61>(VLOOKUP('Site Details'!$B$6,$B$106:$C$111,2,FALSE)),"Pass","Fail")) -> Fail | AF61: =IF(AF60<5000,"Not Assessed",H60-AG36) -> -85770.97419
H62: CHECKPOINT 2 | J62: EI | M62: =IF(ISNUMBER(N62),IF(N62<0,"Review",IF(N62<0.8,"Fail",IF(N62<2,"Pass",IF(N62>2,"Review","Check")))),"Review") -> Review | N62: =IF(O36<5000,"Not Assessed",(H60-N60)/(N59-H59)) -> -4.014230477 | P62: EI | S62: =IF(ISNUMBER(T62),IF(T62<0,"Review",IF(T62<0.8,"Fail",IF(T62<2,"Pass",IF(T62>2,"Review","Check")))),"Review") -> Pass | T62: =IF(U36<5000,"Not Assessed",(H60-T60)/(T59-H59)) -> 0.8878934639 | V62: EI | Y62: =IF(ISNUMBER(Z62),IF(Z62<0,"Review",IF(Z62<0.8,"Fail",IF(Z62<2,"Pass",IF(Y62>2,"Review","Check")))),"Review") -> Fail | Z62: =IF(AA36<5000,"Not Assessed",(H60-Z60)/(Z59-H59)) -> 0.1342894603 | AB62: EI | AE62: =IF(ISNUMBER(AF62),IF(AF62<0,"Review",IF(AF62<0.8,"Fail",IF(AF62<2,"Pass",IF(AF62>2,"Review","Check")))),"Review") -> Review | AF62: =IF(AG36<5000,"Not Assessed",(H60-AF60)/(AF59-H59)) -> -0.2347781842
H63: CHECKPOINT 3 | J63: Delay Costs PV (with ranking) | M63: =IF(H101=1,"1st",IF(H101=2,"2nd",IF(H101=3,"3rd",IF(H101=4,"4th","N/A")))) -> 2nd | N63: =IF('D1-Heavy Maint'!O23>1,'D1-Heavy Maint'!O23,"Not Assessed") -> 73885.06226 | O63: ROD | P63: Delay Costs Present Value | S63: =IF(H102=1,"1st",IF(H102=2,"2nd",IF(H102=3,"3rd",IF(H102=4,"4th","N/A")))) -> 1st | T63: =IF('D2-Renewal1'!O23>1,'D2-Renewal1'!O23,"Not Assessed") -> 53775.7475 | U63: ROD | V63: Delay Costs Present Value | Y63: =IF(H103=1,"1st",IF(H103=2,"2nd",IF(H103=3,"3rd",IF(H103=4,"4th","N/A")))) -> N/A | Z63: =IF('D3-Renewal2'!O23>1,'D3-Renewal2'!O23,"Not Assessed") -> 44563.48335 | AA63: ROD | AB63: Delay Costs Present Value | AE63: =IF(H104=1,"1st",IF(H104=2,"2nd",IF(H104=3,"3rd",IF(H104=4,"4th","N/A")))) -> N/A | AF63: =IF('D4-Renewal3'!O23>1,'D4-Renewal3'!O23,"Not Assessed") -> Not Assessed | AG63: ROD
B67: Type | C67: 2007/08 | D67: 2008/09 | E67: 2009/10 | F67: 2010/11 | G67: 2011/12 | H67: 2012/13 | I67: 2013/14 | J67: 2014/15 | K67: 2015/16 | L67: 2016/17 | M67: 2017/18 | N67: 2018/19 | O67: 2019/20 | P67: 2020/21 | Q67: 2021/22 | R67: 2022/23 | S67: 2023/24 | T67: 2024/25 | U67: 2025/26 | V67: 2026/27 | W67: 2027/28 | X67: 2028/29 | Y67: 2029/30 | Z67: 2030/31 | AA67: 2031/32 | AB67: 2032/33 | AC67: 2033/34 | AD67: 2034/35 | AE67: 2035/36 | AF67: 2036/37
B68: Pavement | C68: ='One Page Summary'!B10 -> 0 | D68: =C68+'One Page Summary'!C10 -> 0 | E68: =D68+'One Page Summary'!D10 -> 0 | F68: =E68+'One Page Summary'!E10 -> 51420 | G68: =F68+'One Page Summary'!F10 -> 65142 | H68: =G68+'One Page Summary'!G10 -> 65142 | I68: =H68+'One Page Summary'!H10 -> 69128 | J68: =I68+'One Page Summary'!I10 -> 69128 | K68: =J68+'One Page Summary'!J10 -> 69128 | L68: =K68+'One Page Summary'!K10 -> 82628 | M68: =L68+'One Page Summary'!L10 -> 82628 | N68: =M68+'One Page Summary'!M10 -> 82628 | O68: =N68+'One Page Summary'!N10 -> 82628 | P68: =O68+'One Page Summary'!O10 -> 82628 | Q68: =P68+'One Page Summary'!P10 -> 82878 | R68: =Q68+'One Page Summary'!B16 -> 83378 | S68: =R68+'One Page Summary'!C16 -> 84128 | T68: =S68+'One Page Summary'!D16 -> 85128 | U68: =T68+'One Page Summary'!E16 -> 86378 | V68: =U68+'One Page Summary'!F16 -> 87878 | W68: =V68+'One Page Summary'!G16 -> 89628 | X68: =W68+'One Page Summary'!H16 -> 91628 | Y68: =X68+'One Page Summary'!I16 -> 93878 | Z68: =Y68+'One Page Summary'!J16 -> 96378 | AA68: =Z68+'One Page Summary'!K16 -> 96378 | AB68: =AA68+'One Page Summary'!L16 -> 96378 | AC68: =AB68+'One Page Summary'!M124 -> 96378 | AD68: =AC68+'One Page Summary'!N124 -> 96378 | AE68: =AD68+'One Page Summary'!O124 -> 96378 | AF68: =AE68+'One Page Summary'!P124 -> 96378
B69: Surfacing | C69: ='One Page Summary'!B11 -> 0 | D69: =C69+'One Page Summary'!C11 -> 12720 | E69: =D69+'One Page Summary'!D11 -> 21082.4 | F69: =E69+'One Page Summary'!E11 -> 21082.4 | G69: =F69+'One Page Summary'!F11 -> 21082.4 | H69: =G69+'One Page Summary'!G11 -> 21082.4 | I69: =H69+'One Page Summary'!H11 -> 22186.4 | J69: =I69+'One Page Summary'!I11 -> 22186.4 | K69: =J69+'One Page Summary'!J11 -> 22186.4 | L69: =K69+'One Page Summary'!K11 -> 27586.4 | M69: =L69+'One Page Summary'!L11 -> 27586.4 | N69: =M69+'One Page Summary'!M11 -> 27586.4 | O69: =N69+'One Page Summary'!N11 -> 27586.4 | P69: =O69+'One Page Summary'!O11 -> 27586.4 | Q69: =P69+'One Page Summary'!P11 -> 27736.4 | R69: =Q69+'One Page Summary'!B17 -> 28036.4 | S69: =R69+'One Page Summary'!C17 -> 28486.4 | T69: =S69+'One Page Summary'!D17 -> 29086.4 | U69: =T69+'One Page Summary'!E17 -> 29836.4 | V69: =U69+'One Page Summary'!F17 -> 30736.4 | W69: =V69+'One Page Summary'!G17 -> 31786.4 | X69: =W69+'One Page Summary'!H17 -> 32986.4 | Y69: =X69+'One Page Summary'!I17 -> 34336.4 | Z69: =Y69+'One Page Summary'!J17 -> 35836.4 | AA69: =Z69+'One Page Summary'!K17 -> 35836.4 | AB69: =AA69+'One Page Summary'!L17 -> 35836.4 | AC69: =AB69+'One Page Summary'!M125 -> 35836.4 | AD69: =AC69+'One Page Summary'!N125 -> 35836.4 | AE69: =AD69+'One Page Summary'!O125 -> 35836.4 | AF69: =AE69+'One Page Summary'!P125 -> 35836.4
B70: Shoulder | C70: ='One Page Summary'!B12 -> 0 | D70: =C70+'One Page Summary'!C12 -> 0 | E70: =D70+'One Page Summary'!D12 -> 0 | F70: =E70+'One Page Summary'!E12 -> 0 | G70: =F70+'One Page Summary'!F12 -> 300 | H70: =G70+'One Page Summary'!G12 -> 360 | I70: =H70+'One Page Summary'!H12 -> 7116 | J70: =I70+'One Page Summary'!I12 -> 15048 | K70: =J70+'One Page Summary'!J12 -> 15048 | L70: =K70+'One Page Summary'!K12 -> 17448 | M70: =L70+'One Page Summary'!L12 -> 17448 | N70: =M70+'One Page Summary'!M12 -> 17448 | O70: =N70+'One Page Summary'!N12 -> 17448 | P70: =O70+'One Page Summary'!O12 -> 17448 | Q70: =P70+'One Page Summary'!P12 -> 17498 | R70: =Q70+'One Page Summary'!B18 -> 17598 | S70: =R70+'One Page Summary'!C18 -> 17748 | T70: =S70+'One Page Summary'!D18 -> 17948 | U70: =T70+'One Page Summary'!E18 -> 18198 | V70: =U70+'One Page Summary'!F18 -> 18498 | W70: =V70+'One Page Summary'!G18 -> 18848 | X70: =W70+'One Page Summary'!H18 -> 19248 | Y70: =X70+'One Page Summary'!I18 -> 19698 | Z70: =Y70+'One Page Summary'!J18 -> 20198 | AA70: =Z70+'One Page Summary'!K18 -> 20198 | AB70: =AA70+'One Page Summary'!L18 -> 20198 | AC70: =AB70+'One Page Summary'!M126 -> 20198 | AD70: =AC70+'One Page Summary'!N126 -> 20198 | AE70: =AD70+'One Page Summary'!O126 -> 20198 | AF70: =AE70+'One Page Summary'!P126 -> 20198
C72: 2017/18 | D72: 2018/19 | E72: 2019/20 | F72: 2020/21 | G72: 2021/22 | H72: 2022/23 | I72: 2023/24 | J72: 2024/25 | K72: 2025/26 | L72: 2026/27 | M72: 2027/28 | N72: 2028/29 | O72: 2029/30 | P72: 2030/31 | Q72: 2031/32 | R72: 2032/33 | S72: 2033/34 | T72: 2034/35 | U72: 2035/36 | V72: 2036/37 | W72: 2037/38 | X72: 2038/39 | Y72: 2039/40 | Z72: 2040/41 | AA72: 2041/42 | AB72: 2042/43 | AC72: 2043/44 | AD72: 2044/45 | AE72: 2045/46 | AF72: 2046/47
B73: Do Minimum-Rehab | C73: =Template!$D$6 -> 0 | D73: =Template!$D$7 -> 0 | E73: =Template!$D$8 -> 0 | F73: =Template!$D$9 -> 0 | G73: =Template!$D$10 -> 0 | H73: =Template!$D$11 -> 0 | I73: =Template!$D$12 -> 0 | J73: =Template!$D$13 -> 0 | K73: =Template!$D$14 -> 403200 | L73: =Template!$D$15 -> 0 | M73: =Template!$D$16 -> 0 | N73: =Template!$D$17 -> 0 | O73: =Template!$D$18 -> 0 | P73: =Template!$D$19 -> 0 | Q73: =Template!$D$20 -> 0 | R73: =Template!$D$21 -> 0 | S73: =Template!$D$22 -> 0 | T73: =Template!$D$23 -> 0 | U73: =Template!$D$24 -> 0 | V73: =Template!$D$25 -> 0 | W73: =Template!$D$26 -> 0 | X73: =Template!$D$27 -> 0 | Y73: =Template!$D$28 -> 0 | Z73: =Template!$D$29 -> 0 | AA73: =Template!$D$30 -> 0 | AB73: =Template!$D$31 -> 0 | AC73: =Template!$D$32 -> 0 | AD73: =Template!$D$33 -> 0 | AE73: =Template!$D$34 -> 0 | AF73: =Template!$D$35 -> 0
B74: Do Minimum-Resurfacing | C74: =Template!$E$6 -> 0 | D74: =Template!$E$7 -> 0 | E74: =Template!$E$8 -> 0 | F74: =Template!$E$9 -> 0 | G74: =Template!$E$10 -> 0 | H74: =Template!$E$11 -> 0 | I74: =Template!$E$12 -> 0 | J74: =Template!$E$13 -> 0 | K74: =Template!$E$14 -> 0 | L74: =Template!$E$15 -> 0 | M74: =Template!$E$16 -> 82000 | N74: =Template!$E$17 -> 0 | O74: =Template!$E$18 -> 0 | P74: =Template!$E$19 -> 0 | Q74: =Template!$E$20 -> 0 | R74: =Template!$E$21 -> 0 | S74: =Template!$E$22 -> 0 | T74: =Template!$E$23 -> 0 | U74: =Template!$E$24 -> 0 | V74: =Template!$E$25 -> 0 | W74: =Template!$E$26 -> 0 | X74: =Template!$E$27 -> 0 | Y74: =Template!$E$28 -> 0 | Z74: =Template!$E$29 -> 0 | AA74: =Template!$E$30 -> 82000 | AB74: =Template!$E$31 -> 0 | AC74: =Template!$E$32 -> 0 | AD74: =Template!$E$33 -> 0 | AE74: =Template!$E$34 -> 0 | AF74: =Template!$E$35 -> 0
B75: Do Minimum-Pavement | C75: =Template!$F$6 -> 37500 | D75: =Template!$F$7 -> 17952.94545 | E75: =Template!$F$8 -> 19124.98182 | F75: =Template!$F$9 -> 20297.01818 | G75: =Template!$F$10 -> 21469.05455 | H75: =Template!$F$11 -> 22641.09091 | I75: =Template!$F$12 -> 23813.12727 | J75: =Template!$F$13 -> 24985.16364 | K75: =Template!$F$14 -> 0 | L75: =Template!$F$15 -> 0 | M75: =Template!$F$16 -> 0 | N75: =Template!$F$17 -> 0 | O75: =Template!$F$18 -> 250 | P75: =Template!$F$19 -> 500 | Q75: =Template!$F$20 -> 750 | R75: =Template!$F$21 -> 1000 | S75: =Template!$F$22 -> 1250 | T75: =Template!$F$23 -> 1500 | U75: =Template!$F$24 -> 1750 | V75: =Template!$F$25 -> 2000 | W75: =Template!$F$26 -> 2250 | X75: =Template!$F$27 -> 2500 | Y75: =Template!$F$28 -> 2750 | Z75: =Template!$F$29 -> 3000 | AA75: =Template!$F$30 -> 0 | AB75: =Template!$F$31 -> 0 | AC75: =Template!$F$32 -> 400 | AD75: =Template!$F$33 -> 800 | AE75: =Template!$F$34 -> 1200 | AF75: =Template!$F$35 -> 1600
B76: Do Minimum-Surfacing | C76: =Template!$G$6 -> 15000 | D76: =Template!$G$7 -> 5057.134545 | E76: =Template!$G$8 -> 5254.741818 | F76: =Template!$G$9 -> 5452.349091 | G76: =Template!$G$10 -> 5649.956364 | H76: =Template!$G$11 -> 5847.563636 | I76: =Template!$G$12 -> 6045.170909 | J76: =Template!$G$13 -> 6242.778182 | K76: =Template!$G$14 -> 0 | L76: =Template!$G$15 -> 0 | M76: =Template!$G$16 -> 0 | N76: =Template!$G$17 -> 0 | O76: =Template!$G$18 -> 150 | P76: =Template!$G$19 -> 300 | Q76: =Template!$G$20 -> 450 | R76: =Template!$G$21 -> 600 | S76: =Template!$G$22 -> 750 | T76: =Template!$G$23 -> 900 | U76: =Template!$G$24 -> 1050 | V76: =Template!$G$25 -> 1200 | W76: =Template!$G$26 -> 1350 | X76: =Template!$G$27 -> 1500 | Y76: =Template!$G$28 -> 1650 | Z76: =Template!$G$29 -> 1800 | AA76: =Template!$G$30 -> 0 | AB76: =Template!$G$31 -> 0 | AC76: =Template!$G$32 -> 250 | AD76: =Template!$G$33 -> 500 | AE76: =Template!$G$34 -> 750 | AF76: =Template!$G$35 -> 1000
B77: Do Minimum-Shoulder | C77: =Template!$H$6 -> 4800 | D77: =Template!$H$7 -> 5072.727273 | E77: =Template!$H$8 -> 5581.090909 | F77: =Template!$H$9 -> 6089.454545 | G77: =Template!$H$10 -> 6597.818182 | H77: =Template!$H$11 -> 7106.181818 | I77: =Template!$H$12 -> 7614.545455 | J77: =Template!$H$13 -> 8122.909091 | K77: =Template!$H$14 -> 0 | L77: =Template!$H$15 -> 0 | M77: =Template!$H$16 -> 0 | N77: =Template!$H$17 -> 0 | O77: =Template!$H$18 -> 50 | P77: =Template!$H$19 -> 100 | Q77: =Template!$H$20 -> 150 | R77: =Template!$H$21 -> 200 | S77: =Template!$H$22 -> 250 | T77: =Template!$H$23 -> 300 | U77: =Template!$H$24 -> 350 | V77: =Template!$H$25 -> 400 | W77: =Template!$H$26 -> 450 | X77: =Template!$H$27 -> 500 | Y77: =Template!$H$28 -> 550 | Z77: =Template!$H$29 -> 600 | AA77: =Template!$H$30 -> 0 | AB77: =Template!$H$31 -> 0 | AC77: =Template!$H$32 -> 75 | AD77: =Template!$H$33 -> 150 | AE77: =Template!$H$34 -> 225 | AF77: =Template!$H$35 -> 300
B78: Heavy Maintenance-Rehab | C78: =Template!$L$6 -> 110300 | D78: =Template!$J$7 -> 0 | E78: =Template!$J$8 -> 0 | F78: =Template!$J$9 -> 0 | G78: =Template!$J$10 -> 0 | H78: =Template!$J$11 -> 0 | I78: =Template!$J$12 -> 0 | J78: =Template!$J$13 -> 0 | K78: =Template!$J$14 -> 0 | L78: =Template!$J$15 -> 0 | M78: =Template!$J$16 -> 403200 | N78: =Template!$J$17 -> 0 | O78: =Template!$J$18 -> 0 | P78: =Template!$J$19 -> 0 | Q78: =Template!$J$20 -> 0 | R78: =Template!$J$21 -> 0 | S78: =Template!$J$22 -> 0 | T78: =Template!$J$23 -> 0 | U78: =Template!$J$24 -> 0 | V78: =Template!$J$25 -> 0 | W78: =Template!$J$26 -> 0 | X78: =Template!$J$27 -> 0 | Y78: =Template!$J$28 -> 0 | Z78: =Template!$J$29 -> 0 | AA78: =Template!$J$30 -> 0 | AB78: =Template!$J$31 -> 0 | AC78: =Template!$J$32 -> 0 | AD78: =Template!$J$33 -> 0 | AE78: =Template!$J$34 -> 0 | AF78: =Template!$J$35 -> 0
B79: Heavy Maintenance-Resurfacing | C79: =Template!$K$6 -> 0 | D79: =Template!$K$7 -> 0 | E79: =Template!$K$8 -> 0 | F79: =Template!$K$9 -> 0 | G79: =Template!$K$10 -> 92000 | H79: =Template!$K$11 -> 0 | I79: =Template!$K$12 -> 0 | J79: =Template!$K$13 -> 0 | K79: =Template!$K$14 -> 0 | L79: =Template!$K$15 -> 0 | M79: =Template!$K$16 -> 0 | N79: =Template!$K$17 -> 0 | O79: =Template!$K$18 -> 82000 | P79: =Template!$K$19 -> 0 | Q79: =Template!$K$20 -> 0 | R79: =Template!$K$21 -> 0 | S79: =Template!$K$22 -> 0 | T79: =Template!$K$23 -> 0 | U79: =Template!$K$24 -> 0 | V79: =Template!$K$25 -> 0 | W79: =Template!$K$26 -> 0 | X79: =Template!$K$27 -> 0 | Y79: =Template!$K$28 -> 0 | Z79: =Template!$K$29 -> 0 | AA79: =Template!$K$30 -> 0 | AB79: =Template!$K$31 -> 0 | AC79: =Template!$K$32 -> 82000 | AD79: =Template!$K$33 -> 0 | AE79: =Template!$K$34 -> 0 | AF79: =Template!$K$35 -> 0
B80: Heavy Maintenance-Pavement | C80: =Template!#REF! ->  | D80: =Template!$L$7 -> 2000 | E80: =Template!$L$8 -> 4000 | F80: =Template!$L$9 -> 6000 | G80: =Template!$L$10 -> 0 | H80: =Template!$L$11 -> 0 | I80: =Template!$L$12 -> 4000 | J80: =Template!$L$13 -> 8000 | K80: =Template!$L$14 -> 12000 | L80: =Template!$L$15 -> 16000 | M80: =Template!$L$16 -> 0 | N80: =Template!$L$17 -> 0 | O80: =Template!$L$18 -> 0 | P80: =Template!$L$19 -> 0 | Q80: =Template!$L$20 -> 250 | R80: =Template!$L$21 -> 500 | S80: =Template!$L$22 -> 750 | T80: =Template!$L$23 -> 1000 | U80: =Template!$L$24 -> 1250 | V80: =Template!$L$25 -> 1500 | W80: =Template!$L$26 -> 1750 | X80: =Template!$L$27 -> 2000 | Y80: =Template!$L$28 -> 2250 | Z80: =Template!$L$29 -> 2500 | AA80: =Template!$L$30 -> 2750 | AB80: =Template!$L$31 -> 3000 | AC80: =Template!$L$32 -> 0 | AD80: =Template!$L$33 -> 0 | AE80: =Template!$L$34 -> 400 | AF80: =Template!$L$35 -> 800
B81: Heavy Maintenance-Surfacing | C81: =Template!$M$6 -> 0 | D81: =Template!$M$7 -> 1500 | E81: =Template!$M$8 -> 3000 | F81: =Template!$M$9 -> 4500 | G81: =Template!$M$10 -> 0 | H81: =Template!$M$11 -> 0 | I81: =Template!$M$12 -> 2500 | J81: =Template!$M$13 -> 5000 | K81: =Template!$M$14 -> 7500 | L81: =Template!$M$15 -> 10000 | M81: =Template!$M$16 -> 0 | N81: =Template!$M$17 -> 0 | O81: =Template!$M$18 -> 0 | P81: =Template!$M$19 -> 0 | Q81: =Template!$M$20 -> 150 | R81: =Template!$M$21 -> 300 | S81: =Template!$M$22 -> 450 | T81: =Template!$M$23 -> 600 | U81: =Template!$M$24 -> 750 | V81: =Template!$M$25 -> 900 | W81: =Template!$M$26 -> 1050 | X81: =Template!$M$27 -> 1200 | Y81: =Template!$M$28 -> 1350 | Z81: =Template!$M$29 -> 1500 | AA81: =Template!$M$30 -> 1650 | AB81: =Template!$M$31 -> 1800 | AC81: =Template!$M$32 -> 0 | AD81: =Template!$M$33 -> 0 | AE81: =Template!$M$34 -> 250 | AF81: =Template!$M$35 -> 500
B82: Heavy Maintenance-Shoulder | C82: =Template!$N$6 -> 0 | D82: =Template!$N$7 -> 500 | E82: =Template!$N$8 -> 1000 | F82: =Template!$N$9 -> 1500 | G82: =Template!$N$10 -> 0 | H82: =Template!$N$11 -> 0 | I82: =Template!$N$12 -> 750 | J82: =Template!$N$13 -> 1500 | K82: =Template!$N$14 -> 2250 | L82: =Template!$N$15 -> 3000 | M82: =Template!$N$16 -> 0 | N82: =Template!$N$17 -> 0 | O82: =Template!$N$18 -> 0 | P82: =Template!$N$19 -> 0 | Q82: =Template!$N$20 -> 50 | R82: =Template!$N$21 -> 100 | S82: =Template!$N$22 -> 150 | T82: =Template!$N$23 -> 200 | U82: =Template!$N$24 -> 250 | V82: =Template!$N$25 -> 300 | W82: =Template!$N$26 -> 350 | X82: =Template!$N$27 -> 400 | Y82: =Template!$N$28 -> 450 | Z82: =Template!$N$29 -> 500 | AA82: =Template!$N$30 -> 550 | AB82: =Template!$N$31 -> 600 | AC82: =Template!$N$32 -> 0 | AD82: =Template!$N$33 -> 0 | AE82: =Template!$N$34 -> 75 | AF82: =Template!$N$35 -> 150
B83: Renewal No.1-Rehab | C83: =Template!$P$6 -> 289800 | D83: =Template!$P$7 -> 0 | E83: =Template!$P$8 -> 0 | F83: =Template!$P$9 -> 0 | G83: =Template!$P$10 -> 0 | H83: =Template!$P$11 -> 0 | I83: =Template!$P$12 -> 0 | J83: =Template!$P$13 -> 0 | K83: =Template!$P$14 -> 0 | L83: =Template!$P$15 -> 0 | M83: =Template!$P$16 -> 0 | N83: =Template!$P$17 -> 0 | O83: =Template!$P$18 -> 0 | P83: =Template!$P$19 -> 0 | Q83: =Template!$P$20 -> 0 | R83: =Template!$P$21 -> 0 | S83: =Template!$P$22 -> 0 | T83: =Template!$P$23 -> 0 | U83: =Template!$P$24 -> 0 | V83: =Template!$P$25 -> 0 | W83: =Template!$P$26 -> 0 | X83: =Template!$P$27 -> 0 | Y83: =Template!$P$28 -> 0 | Z83: =Template!$P$29 -> 0 | AA83: =Template!$P$30 -> 0 | AB83: =Template!$P$31 -> 0 | AC83: =Template!$P$32 -> 0 | AD83: =Template!$P$33 -> 0 | AE83: =Template!$P$34 -> 0 | AF83: =Template!$P$35 -> 0
B84: Renewal No.1-Resurfacing | C84: =Template!$Q$6 -> 0 | D84: =Template!$Q$7 -> 0 | E84: =Template!$Q$8 -> 82000 | F84: =Template!$Q$9 -> 0 | G84: =Template!$Q$10 -> 0 | H84: =Template!$Q$11 -> 0 | I84: =Template!$Q$12 -> 0 | J84: =Template!$Q$13 -> 0 | K84: =Template!$Q$14 -> 0 | L84: =Template!$Q$15 -> 0 | M84: =Template!$Q$16 -> 0 | N84: =Template!$Q$17 -> 0 | O84: =Template!$Q$18 -> 0 | P84: =Template!$Q$19 -> 0 | Q84: =Template!$Q$20 -> 82000 | R84: =Template!$Q$21 -> 0 | S84: =Template!$Q$22 -> 0 | T84: =Template!$Q$23 -> 0 | U84: =Template!$Q$24 -> 0 | V84: =Template!$Q$25 -> 0 | W84: =Template!$Q$26 -> 0 | X84: =Template!$Q$27 -> 0 | Y84: =Template!$Q$28 -> 0 | Z84: =Template!$Q$29 -> 0 | AA84: =Template!$Q$30 -> 0 | AB84: =Template!$Q$31 -> 0 | AC84: =Template!$Q$32 -> 0 | AD84: =Template!$Q$33 -> 0 | AE84: =Template!$Q$34 -> 82000 | AF84: =Template!$Q$35 -> 0
B85: Renewal No.1-Pavement | C85: =Template!$R$6 -> 0 | D85: =Template!$R$7 -> 0 | E85: =Template!$R$8 -> 0 | F85: =Template!$R$9 -> 0 | G85: =Template!$R$10 -> 250 | H85: =Template!$R$11 -> 500 | I85: =Template!$R$12 -> 750 | J85: =Template!$R$13 -> 1000 | K85: =Template!$R$14 -> 1250 | L85: =Template!$R$15 -> 1500 | M85: =Template!$R$16 -> 1750 | N85: =Template!$R$17 -> 2000 | O85: =Template!$R$18 -> 2250 | P85: =Template!$R$19 -> 2500 | Q85: =Template!$R$20 -> 0 | R85: =Template!$R$21 -> 0 | S85: =Template!$R$22 -> 400 | T85: =Template!$R$23 -> 800 | U85: =Template!$R$24 -> 1200 | V85: =Template!$R$25 -> 1600 | W85: =Template!$R$26 -> 2000 | X85: =Template!$R$27 -> 2400 | Y85: =Template!$R$28 -> 2800 | Z85: =Template!$R$29 -> 3200 | AA85: =Template!$R$30 -> 3600 | AB85: =Template!$R$31 -> 4000 | AC85: =Template!$R$32 -> 4400 | AD85: =Template!$R$33 -> 4800 | AE85: =Template!$R$34 -> 0 | AF85: =Template!$R$35 -> 0
B86: Renewal No.1-Surfacing | C86: =Template!$S$6 -> 0 | D86: =Template!$S$7 -> 0 | E86: =Template!$S$8 -> 0 | F86: =Template!$S$9 -> 0 | G86: =Template!$S$10 -> 150 | H86: =Template!$S$11 -> 300 | I86: =Template!$S$12 -> 450 | J86: =Template!$S$13 -> 600 | K86: =Template!$S$14 -> 750 | L86: =Template!$S$15 -> 900 | M86: =Template!$S$16 -> 1050 | N86: =Template!$S$17 -> 1200 | O86: =Template!$S$18 -> 1350 | P86: =Template!$S$19 -> 1500 | Q86: =Template!$S$20 -> 0 | R86: =Template!$S$21 -> 0 | S86: =Template!$S$22 -> 250 | T86: =Template!$S$23 -> 500 | U86: =Template!$S$24 -> 750 | V86: =Template!$S$25 -> 1000 | W86: =Template!$S$26 -> 1250 | X86: =Template!$S$27 -> 1500 | Y86: =Template!$S$28 -> 1750 | Z86: =Template!$S$29 -> 2000 | AA86: =Template!$S$30 -> 2250 | AB86: =Template!$S$31 -> 2500 | AC86: =Template!$S$32 -> 2750 | AD86: =Template!$S$33 -> 3000 | AE86: =Template!$S$34 -> 0 | AF86: =Template!$S$35 -> 0
B87: Renewal No.1-Shoulder | C87: =Template!$T$6 -> 0 | D87: =Template!$T$7 -> 0 | E87: =Template!$T$8 -> 0 | F87: =Template!$T$9 -> 0 | G87: =Template!$T$10 -> 50 | H87: =Template!$T$11 -> 100 | I87: =Template!$T$12 -> 150 | J87: =Template!$T$13 -> 200 | K87: =Template!$T$14 -> 250 | L87: =Template!$T$15 -> 300 | M87: =Template!$T$16 -> 350 | N87: =Template!$T$17 -> 400 | O87: =Template!$T$18 -> 450 | P87: =Template!$T$19 -> 500 | Q87: =Template!$T$20 -> 0 | R87: =Template!$T$21 -> 0 | S87: =Template!$T$22 -> 75 | T87: =Template!$T$23 -> 150 | U87: =Template!$T$24 -> 225 | V87: =Template!$T$25 -> 300 | W87: =Template!$T$26 -> 375 | X87: =Template!$T$27 -> 450 | Y87: =Template!$T$28 -> 525 | Z87: =Template!$T$29 -> 600 | AA87: =Template!$T$30 -> 675 | AB87: =Template!$T$31 -> 750 | AC87: =Template!$T$32 -> 825 | AD87: =Template!$T$33 -> 900 | AE87: =Template!$T$34 -> 0 | AF87: =Template!$T$35 -> 0
B88: Renewal No.2-Rehab | C88: =Template!$V$6 -> 403200 | D88: =Template!$V$7 -> 0 | E88: =Template!$V$8 -> 0 | F88: =Template!$V$9 -> 0 | G88: =Template!$V$10 -> 0 | H88: =Template!$V$11 -> 0 | I88: =Template!$V$12 -> 0 | J88: =Template!$V$13 -> 0 | K88: =Template!$V$14 -> 0 | L88: =Template!$V$15 -> 0 | M88: =Template!$V$16 -> 0 | N88: =Template!$V$17 -> 0 | O88: =Template!$V$18 -> 0 | P88: =Template!$V$19 -> 0 | Q88: =Template!$V$20 -> 0 | R88: =Template!$V$21 -> 0 | S88: =Template!$V$22 -> 0 | T88: =Template!$V$23 -> 0 | U88: =Template!$V$24 -> 0 | V88: =Template!$V$25 -> 0 | W88: =Template!$V$26 -> 0 | X88: =Template!$V$27 -> 0 | Y88: =Template!$V$28 -> 0 | Z88: =Template!$V$29 -> 0 | AA88: =Template!$V$30 -> 0 | AB88: =Template!$V$31 -> 0 | AC88: =Template!$V$32 -> 0 | AD88: =Template!$V$33 -> 0 | AE88: =Template!$V$34 -> 0 | AF88: =Template!$V$35 -> 0
B89: Renewal No.2-Resurfacing | C89: =Template!$W$6 -> 0 | D89: =Template!$W$7 -> 0 | E89: =Template!$W$8 -> 82000 | F89: =Template!$W$9 -> 0 | G89: =Template!$W$10 -> 0 | H89: =Template!$W$11 -> 0 | I89: =Template!$W$12 -> 0 | J89: =Template!$W$13 -> 0 | K89: =Template!$W$14 -> 0 | L89: =Template!$W$15 -> 0 | M89: =Template!$W$16 -> 0 | N89: =Template!$W$17 -> 0 | O89: =Template!$W$18 -> 0 | P89: =Template!$W$19 -> 0 | Q89: =Template!$W$20 -> 0 | R89: =Template!$W$21 -> 0 | S89: =Template!$W$22 -> 82000 | T89: =Template!$W$23 -> 0 | U89: =Template!$W$24 -> 0 | V89: =Template!$W$25 -> 0 | W89: =Template!$W$26 -> 0 | X89: =Template!$W$27 -> 0 | Y89: =Template!$W$28 -> 0 | Z89: =Template!$W$29 -> 0 | AA89: =Template!$W$30 -> 0 | AB89: =Template!$W$31 -> 0 | AC89: =Template!$W$32 -> 0 | AD89: =Template!$W$33 -> 0 | AE89: =Template!$W$34 -> 0 | AF89: =Template!$W$35 -> 0
B90: Renewal No.2-Pavement | C90: =Template!$X$6 -> 0 | D90: =Template!$X$7 -> 0 | E90: =Template!$X$8 -> 0 | F90: =Template!$X$9 -> 0 | G90: =Template!$X$10 -> 250 | H90: =Template!$X$11 -> 500 | I90: =Template!$X$12 -> 750 | J90: =Template!$X$13 -> 1000 | K90: =Template!$X$14 -> 1250 | L90: =Template!$X$15 -> 1500 | M90: =Template!$X$16 -> 1750 | N90: =Template!$X$17 -> 2000 | O90: =Template!$X$18 -> 2250 | P90: =Template!$X$19 -> 2500 | Q90: =Template!$X$20 -> 2750 | R90: =Template!$X$21 -> 3000 | S90: =Template!$X$22 -> 0 | T90: =Template!$X$23 -> 0 | U90: =Template!$X$24 -> 400 | V90: =Template!$X$25 -> 800 | W90: =Template!$X$26 -> 1200 | X90: =Template!$X$27 -> 1600 | Y90: =Template!$X$28 -> 2000 | Z90: =Template!$X$29 -> 2400 | AA90: =Template!$X$30 -> 2800 | AB90: =Template!$X$31 -> 3200 | AC90: =Template!$X$32 -> 3600 | AD90: =Template!$X$33 -> 4000 | AE90: =Template!$X$34 -> 4400 | AF90: =Template!$X$35 -> 4800
B91: Renewal No.2-Surfacing | C91: =Template!$Y$6 -> 0 | D91: =Template!$Y$7 -> 0 | E91: =Template!$Y$8 -> 0 | F91: =Template!$Y$9 -> 0 | G91: =Template!$Y$10 -> 150 | H91: =Template!$Y$11 -> 300 | I91: =Template!$Y$12 -> 450 | J91: =Template!$Y$13 -> 600 | K91: =Template!$Y$14 -> 750 | L91: =Template!$Y$15 -> 900 | M91: =Template!$Y$16 -> 1050 | N91: =Template!$Y$17 -> 1200 | O91: =Template!$Y$18 -> 1350 | P91: =Template!$Y$19 -> 1500 | Q91: =Template!$Y$20 -> 1650 | R91: =Template!$Y$21 -> 1800 | S91: =Template!$Y$22 -> 0 | T91: =Template!$Y$23 -> 0 | U91: =Template!$Y$24 -> 250 | V91: =Template!$Y$25 -> 500 | W91: =Template!$Y$26 -> 750 | X91: =Template!$Y$27 -> 1000 | Y91: =Template!$Y$28 -> 1250 | Z91: =Template!$Y$29 -> 1500 | AA91: =Template!$Y$30 -> 1750 | AB91: =Template!$Y$31 -> 2000 | AC91: =Template!$Y$32 -> 2250 | AD91: =Template!$Y$33 -> 2500 | AE91: =Template!$Y$34 -> 2750 | AF91: =Template!$Y$35 -> 3000
B92: Renewal No.2-Shoulder | C92: =Template!$Z$6 -> 0 | D92: =Template!$Z$7 -> 0 | E92: =Template!$Z$8 -> 0 | F92: =Template!$Z$9 -> 0 | G92: =Template!$Z$10 -> 50 | H92: =Template!$Z$11 -> 100 | I92: =Template!$Z$12 -> 150 | J92: =Template!$Z$13 -> 200 | K92: =Template!$Z$14 -> 250 | L92: =Template!$Z$15 -> 300 | M92: =Template!$Z$16 -> 350 | N92: =Template!$Z$17 -> 400 | O92: =Template!$Z$18 -> 450 | P92: =Template!$Z$19 -> 500 | Q92: =Template!$Z$20 -> 550 | R92: =Template!$Z$21 -> 600 | S92: =Template!$Z$22 -> 0 | T92: =Template!$Z$23 -> 0 | U92: =Template!$Z$24 -> 75 | V92: =Template!$Z$25 -> 150 | W92: =Template!$Z$26 -> 225 | X92: =Template!$Z$27 -> 300 | Y92: =Template!$Z$28 -> 375 | Z92: =Template!$Z$29 -> 450 | AA92: =Template!$Z$30 -> 525 | AB92: =Template!$Z$31 -> 600 | AC92: =Template!$Z$32 -> 675 | AD92: =Template!$Z$33 -> 750 | AE92: =Template!$Z$34 -> 825 | AF92: =Template!$Z$35 -> 900
B93: Renewal No.3-Rehab | C93: =Template!$AB$6 -> 529200 | D93: =Template!$AB$7 -> 0 | E93: =Template!$AB$8 -> 0 | F93: =Template!$AB$9 -> 0 | G93: =Template!$AB$10 -> 0 | H93: =Template!$AB$11 -> 0 | I93: =Template!$AB$12 -> 0 | J93: =Template!$AB$13 -> 0 | K93: =Template!$AB$14 -> 0 | L93: =Template!$AB$15 -> 0 | M93: =Template!$AB$16 -> 0 | N93: =Template!$AB$17 -> 0 | O93: =Template!$AB$18 -> 0 | P93: =Template!$AB$19 -> 0 | Q93: =Template!$AB$20 -> 0 | R93: =Template!$AB$21 -> 0 | S93: =Template!$AB$22 -> 0 | T93: =Template!$AB$23 -> 0 | U93: =Template!$AB$24 -> 0 | V93: =Template!$AB$25 -> 0 | W93: =Template!$AB$26 -> 0 | X93: =Template!$AB$27 -> 0 | Y93: =Template!$AB$28 -> 0 | Z93: =Template!$AB$29 -> 0 | AA93: =Template!$AB$30 -> 0 | AB93: =Template!$AB$31 -> 0 | AC93: =Template!$AB$32 -> 0 | AD93: =Template!$AB$33 -> 0 | AE93: =Template!$AB$34 -> 0 | AF93: =Template!$AB$35 -> 0
B94: Renewal No.3-Resurfacing | C94: =Template!$AC$6 -> 0 | D94: =Template!$AC$7 -> 0 | E94: =Template!$AC$8 -> 82000 | F94: =Template!$AC$9 -> 0 | G94: =Template!$AC$10 -> 0 | H94: =Template!$AC$11 -> 0 | I94: =Template!$AC$12 -> 0 | J94: =Template!$AC$13 -> 0 | K94: =Template!$AC$14 -> 0 | L94: =Template!$AC$15 -> 0 | M94: =Template!$AC$16 -> 0 | N94: =Template!$AC$17 -> 0 | O94: =Template!$AC$18 -> 0 | P94: =Template!$AC$19 -> 0 | Q94: =Template!$AC$20 -> 0 | R94: =Template!$AC$21 -> 0 | S94: =Template!$AC$22 -> 82000 | T94: =Template!$AC$23 -> 0 | U94: =Template!$AC$24 -> 0 | V94: =Template!$AC$25 -> 0 | W94: =Template!$AC$26 -> 0 | X94: =Template!$AC$27 -> 0 | Y94: =Template!$AC$28 -> 0 | Z94: =Template!$AC$29 -> 0 | AA94: =Template!$AC$30 -> 0 | AB94: =Template!$AC$31 -> 0 | AC94: =Template!$AC$32 -> 0 | AD94: =Template!$AC$33 -> 0 | AE94: =Template!$AC$34 -> 0 | AF94: =Template!$AC$35 -> 0
B95: Renewal No.3-Pavement | C95: =Template!$AD$6 -> 0 | D95: =Template!$AD$7 -> 0 | E95: =Template!$AD$8 -> 0 | F95: =Template!$AD$9 -> 0 | G95: =Template!$AD$10 -> 250 | H95: =Template!$AD$11 -> 500 | I95: =Template!$AD$12 -> 750 | J95: =Template!$AD$13 -> 1000 | K95: =Template!$AD$14 -> 1250 | L95: =Template!$AD$15 -> 1500 | M95: =Template!$AD$16 -> 1750 | N95: =Template!$AD$17 -> 2000 | O95: =Template!$AD$18 -> 2250 | P95: =Template!$AD$19 -> 2500 | Q95: =Template!$AD$20 -> 2750 | R95: =Template!$AD$21 -> 3000 | S95: =Template!$AD$22 -> 0 | T95: =Template!$AD$23 -> 0 | U95: =Template!$AD$24 -> 400 | V95: =Template!$AD$25 -> 800 | W95: =Template!$AD$26 -> 1200 | X95: =Template!$AD$27 -> 1600 | Y95: =Template!$AD$28 -> 2000 | Z95: =Template!$AD$29 -> 2400 | AA95: =Template!$AD$30 -> 2800 | AB95: =Template!$AD$31 -> 3200 | AC95: =Template!$AD$32 -> 3600 | AD95: =Template!$AD$33 -> 4000 | AE95: =Template!$AD$34 -> 4400 | AF95: =Template!$AD$35 -> 4800
B96: Renewal No.3-Surfacing | C96: =Template!$AE$6 -> 0 | D96: =Template!$AE$7 -> 0 | E96: =Template!$AE$8 -> 0 | F96: =Template!$AE$9 -> 0 | G96: =Template!$AE$10 -> 150 | H96: =Template!$AE$11 -> 300 | I96: =Template!$AE$12 -> 450 | J96: =Template!$AE$13 -> 600 | K96: =Template!$AE$14 -> 750 | L96: =Template!$AE$15 -> 900 | M96: =Template!$AE$16 -> 1050 | N96: =Template!$AE$17 -> 1200 | O96: =Template!$AE$18 -> 1350 | P96: =Template!$AE$19 -> 1500 | Q96: =Template!$AE$20 -> 1650 | R96: =Template!$AE$21 -> 1800 | S96: =Template!$AE$22 -> 0 | T96: =Template!$AE$23 -> 0 | U96: =Template!$AE$24 -> 250 | V96: =Template!$AE$25 -> 500 | W96: =Template!$AE$26 -> 750 | X96: =Template!$AE$27 -> 1000 | Y96: =Template!$AE$28 -> 1250 | Z96: =Template!$AE$29 -> 1500 | AA96: =Template!$AE$30 -> 1750 | AB96: =Template!$AE$31 -> 2000 | AC96: =Template!$AE$32 -> 2250 | AD96: =Template!$AE$33 -> 2500 | AE96: =Template!$AE$34 -> 2750 | AF96: =Template!$AE$35 -> 3000
B97: Renewal No.3-Shoulder | C97: =Template!$AF$6 -> 0 | D97: =Template!$AF$7 -> 0 | E97: =Template!$AF$8 -> 0 | F97: =Template!$AF$9 -> 0 | G97: =Template!$AF$10 -> 50 | H97: =Template!$AF$11 -> 100 | I97: =Template!$AF$12 -> 150 | J97: =Template!$AF$13 -> 200 | K97: =Template!$AF$14 -> 250 | L97: =Template!$AF$15 -> 300 | M97: =Template!$AF$16 -> 350 | N97: =Template!$AF$17 -> 400 | O97: =Template!$AF$18 -> 450 | P97: =Template!$AF$19 -> 500 | Q97: =Template!$AF$20 -> 550 | R97: =Template!$AF$21 -> 600 | S97: =Template!$AF$22 -> 0 | T97: =Template!$AF$23 -> 0 | U97: =Template!$AF$24 -> 75 | V97: =Template!$AF$25 -> 150 | W97: =Template!$AF$26 -> 225 | X97: =Template!$AF$27 -> 300 | Y97: =Template!$AF$28 -> 375 | Z97: =Template!$AF$29 -> 450 | AA97: =Template!$AF$30 -> 525 | AB97: =Template!$AF$31 -> 600 | AC97: =Template!$AF$32 -> 675 | AD97: =Template!$AF$33 -> 750 | AE97: =Template!$AF$34 -> 825 | AF97: =Template!$AF$35 -> 900
D99: Checkpoint | G99: Process
D100: 1 | E100: 2 | F100: 3 | G100: NPV | H100: TTDC | I100: EI
C101: Heavy Maintenance | D101: =IF(OR(M61="Pass",M61="Review"),N61,"Fail") -> 29010.19167 | E101: =IF(AND(D101<>"Fail",OR(M62="Pass",M62="Review")),N62,"Fail") -> -4.014230477 | F101: =IF(E101<>"Fail",N63,"") -> 73885.06226 | G101: =IF(E101<>"Fail",D101,"N/A") -> 29010.19167 | H101: =IF(ISERROR(_xlfn.RANK.AVG(F101,$F$101:$F$104,1)),"N/A",(_xlfn.RANK.AVG(F101,$F$101:$F$104,1))) -> 2 | I101: =M62 -> Review | J101: Heavy Maintenance
C102: Renewal No.1 | D102: =IF(OR(S61="Pass",S61="Review"),T61,"Fail") -> 123842.1764 | E102: =IF(AND(D102<>"Fail",OR(S62="Pass",S62="Review")),T62,"Fail") -> 0.8878934639 | F102: =IF(E102<>"Fail",T63,"") -> 53775.7475 | G102: =IF(E102<>"Fail",D102,"N/A") -> 123842.1764 | H102: =IF(ISERROR(_xlfn.RANK.AVG(F102,$F$101:$F$104,1)),"N/A",(_xlfn.RANK.AVG(F102,$F$101:$F$104,1))) -> 1 | I102: =S62 -> Pass | J102: Renewal No.1
C103: Renewal No.2 | D103: =IF(OR(Y61="Pass",Y61="Review"),Z61,"Fail") -> 33096.95033 | E103: =IF(AND(D103<>"Fail",OR(Y62="Pass",Y62="Review")),Z62,"Fail") -> Fail | F103: =IF(E103<>"Fail",Z63,"") ->  | G103: N/A | H103: N/A | I103: =Y62 -> Fail | J103: Renewal No.2
C104: Renewal No.3 | D104: =IF(OR(AE61="Pass",AE61="Review"),AF61,"Fail") -> Fail | E104: =IF(AND(D104<>"Fail",OR(AE62="Pass",AE62="Review")),AF62,"Fail") -> Fail | F104: =IF(E104<>"Fail",AF63,"") ->  | G104: N/A | H104: N/A | I104: =AE62 -> Review | J104: Renewal No.3
B106: High Volume | C106: 5000
B107: National | C107: 5000
B108: Arterial | C108: 10000
B109: Regional | C109: 10000
B110: Primary Collector | C110: 25000
B111: Secondary Collector | C111: 25000

Sheet One Page Summary
A1: ='Site Details'!B3 -> Site X
A2: ='Site Details'!B4 -> SHA RPB/4.70-6.10
A4: Proposed Option | C4: Renewal No.1
A6: Annual Pavement, Surfacing and Shoulder Costs
B8: Historical Costs | K8: Assessed Costs | M8: Projected Future Costs
A9: Financial Year | B9: 2007/08 | C9: 2008/09 | D9: 2009/10 | E9: 2010/11 | F9: 2011/12 | G9: 2012/13 | H9: 2013/14 | I9: 2014/15 | J9: 2015/16 | K9: 2016/17 | L9: 2017/18 | M9: 2018/19 | N9: 2019/20 | O9: 2020/21 | P9: 2021/22
A10: Pavement | B10: ='Site Details'!E3*'Site Details'!$E$15+'Site Details'!E4*'Site Details'!$E$16+'Site Details'!E5*'Site Details'!$E$17+'Site Details'!E6*'Site Details'!$E$18+'Site Details'!E7*'Site Details'!$E$19 -> 0 | C10: ='Site Details'!F3*'Site Details'!$E$15+'Site Details'!F4*'Site Details'!$E$16+'Site Details'!F5*'Site Details'!$E$17+'Site Details'!F6*'Site Details'!$E$18+'Site Details'!F7*'Site Details'!$E$19 -> 0 | D10: ='Site Details'!G3*'Site Details'!$E$15+'Site Details'!G4*'Site Details'!$E$16+'Site Details'!G5*'Site Details'!$E$17+'Site Details'!G6*'Site Details'!$E$18+'Site Details'!G7*'Site Details'!$E$19 -> 0 | E10: ='Site Details'!H3*'Site Details'!$E$15+'Site Details'!H4*'Site Details'!$E$16+'Site Details'!H5*'Site Details'!$E$17+'Site Details'!H6*'Site Details'!$E$18+'Site Details'!H7*'Site Details'!$E$19 -> 51420 | F10: ='Site Details'!I3*'Site Details'!$E$15+'Site Details'!I4*'Site Details'!$E$16+'Site Details'!I5*'Site Details'!$E$17+'Site Details'!I6*'Site Details'!$E$18+'Site Details'!I7*'Site Details'!$E$19 -> 13722 | G10: ='Site Details'!J3*'Site Details'!$E$15+'Site Details'!J4*'Site Details'!$E$16+'Site Details'!J5*'Site Details'!$E$17+'Site Details'!J6*'Site Details'!$E$18+'Site Details'!J7*'Site Details'!$E$19 -> 0 | H10: ='Site Details'!K3*'Site Details'!$E$15+'Site Details'!K4*'Site Details'!$E$16+'Site Details'!K5*'Site Details'!$E$17+'Site Details'!K6*'Site Details'!$E$18+'Site Details'!K7*'Site Details'!$E$19 -> 3986 | I10: ='Site Details'!L3*'Site Details'!$E$15+'Site Details'!L4*'Site Details'!$E$16+'Site Details'!L5*'Site Details'!$E$17+'Site Details'!L6*'Site Details'!$E$18+'Site Details'!L7*'Site Details'!$E$19 -> 0 | J10: ='Site Details'!M3*'Site Details'!$E$15+'Site Details'!M4*'Site Details'!$E$16+'Site Details'!M5*'Site Details'!$E$17+'Site Details'!M6*'Site Details'!$E$18+'Site Details'!M7*'Site Details'!$E$19 -> 0 | K10: ='Site Details'!N3*'Site Details'!$E$15+'Site Details'!N4*'Site Details'!$E$16+'Site Details'!N5*'Site Details'!$E$17+'Site Details'!N6*'Site Details'!$E$18+'Site Details'!N7*'Site Details'!$E$19 -> 13500 | L10: =VLOOKUP(($C$4&"-"&$A$10),Template!$B$72:$AF$97,2,FALSE) -> 0 | M10: =VLOOKUP(($C$4&"-"&$A$10),Template!$B$72:$AF$97,3,FALSE) -> 0 | N10: =VLOOKUP(($C$4&"-"&$A$10),Template!$B$72:$AF$97,4,FALSE) -> 0 | O10: =VLOOKUP(($C$4&"-"&$A$10),Template!$B$72:$AF$97,5,FALSE) -> 0 | P10: =VLOOKUP(($C$4&"-"&$A$10),Template!$B$72:$AF$97,6,FALSE) -> 250
A11: Surfacing | B11: ='Site Details'!E8*'Site Details'!$E$20+'Site Details'!E9*'Site Details'!$E$21+'Site Details'!E10*'Site Details'!$E$22+'Site Details'!E11*'Site Details'!$E$23 -> 0 | C11: ='Site Details'!F8*'Site Details'!$E$20+'Site Details'!F9*'Site Details'!$E$21+'Site Details'!F10*'Site Details'!$E$22+'Site Details'!F11*'Site Details'!$E$23 -> 12720 | D11: ='Site Details'!G8*'Site Details'!$E$20+'Site Details'!G9*'Site Details'!$E$21+'Site Details'!G10*'Site Details'!$E$22+'Site Details'!G11*'Site Details'!$E$23 -> 8362.4 | E11: ='Site Details'!H8*'Site Details'!$E$20+'Site Details'!H9*'Site Details'!$E$21+'Site Details'!H10*'Site Details'!$E$22+'Site Details'!H11*'Site Details'!$E$23 -> 0 | F11: ='Site Details'!I8*'Site Details'!$E$20+'Site Details'!I9*'Site Details'!$E$21+'Site Details'!I10*'Site Details'!$E$22+'Site Details'!I11*'Site Details'!$E$23 -> 0 | G11: ='Site Details'!J8*'Site Details'!$E$20+'Site Details'!J9*'Site Details'!$E$21+'Site Details'!J10*'Site Details'!$E$22+'Site Details'!J11*'Site Details'!$E$23 -> 0 | H11: ='Site Details'!K8*'Site Details'!$E$20+'Site Details'!K9*'Site Details'!$E$21+'Site Details'!K10*'Site Details'!$E$22+'Site Details'!K11*'Site Details'!$E$23 -> 1104 | I11: ='Site Details'!L8*'Site Details'!$E$20+'Site Details'!L9*'Site Details'!$E$21+'Site Details'!L10*'Site Details'!$E$22+'Site Details'!L11*'Site Details'!$E$23 -> 0 | J11: ='Site Details'!M8*'Site Details'!$E$20+'Site Details'!M9*'Site Details'!$E$21+'Site Details'!M10*'Site Details'!$E$22+'Site Details'!M11*'Site Details'!$E$23 -> 0 | K11: ='Site Details'!N8*'Site Details'!$E$20+'Site Details'!N9*'Site Details'!$E$21+'Site Details'!N10*'Site Details'!$E$22+'Site Details'!N11*'Site Details'!$E$23 -> 5400 | L11: =VLOOKUP(($C$4&"-"&$A$11),Template!$B$72:$AF$97,2,FALSE) -> 0 | M11: =VLOOKUP(($C$4&"-"&$A$11),Template!$B$72:$AF$97,3,FALSE) -> 0 | N11: =VLOOKUP(($C$4&"-"&$A$11),Template!$B$72:$AF$97,4,FALSE) -> 0 | O11: =VLOOKUP(($C$4&"-"&$A$11),Template!$B$72:$AF$97,5,FALSE) -> 0 | P11: =VLOOKUP(($C$4&"-"&$A$11),Template!$B$72:$AF$97,6,FALSE) -> 150
A12: Shoulder | B12: ='Site Details'!E12*'Site Details'!$E$24 -> 0 | C12: ='Site Details'!F12*'Site Details'!$E$24 -> 0 | D12: ='Site Details'!G12*'Site Details'!$E$24 -> 0 | E12: ='Site Details'!H12*'Site Details'!$E$24 -> 0 | F12: ='Site Details'!I12*'Site Details'!$E$24 -> 300 | G12: ='Site Details'!J12*'Site Details'!$E$24 -> 60 | H12: ='Site Details'!K12*'Site Details'!$E$24 -> 6756 | I12: ='Site Details'!L12*'Site Details'!$E$24 -> 7932 | J12: ='Site Details'!M12*'Site Details'!$E$24 -> 0 | K12: ='Site Details'!N12*'Site Details'!$E$24 -> 2400 | L12: =VLOOKUP(($C$4&"-"&$A$12),Template!$B$72:$AF$97,2,FALSE) -> 0 | M12: =VLOOKUP(($C$4&"-"&$A$12),Template!$B$72:$AF$97,3,FALSE) -> 0 | N12: =VLOOKUP(($C$4&"-"&$A$12),Template!$B$72:$AF$97,4,FALSE) -> 0 | O12: =VLOOKUP(($C$4&"-"&$A$12),Template!$B$72:$AF$97,5,FALSE) -> 0 | P12: =VLOOKUP(($C$4&"-"&$A$12),Template!$B$72:$AF$97,6,FALSE) -> 50
B14: Projected Future Costs
A15: Financial Year | B15: 2022/23 | C15: 2023/24 | D15: 2024/25 | E15: 2025/26 | F15: 2026/27 | G15: 2027/28 | H15: 2028/29 | I15: 2029/30 | J15: 2030/31 | K15: 2031/32 | L15: 2032/33 | M15: 2033/34 | N15: 2034/35 | O15: 2035/36 | P15: 2036/37
A16: Pavement | B16: =VLOOKUP(($C$4&"-"&$A$10),Template!$B$72:$AF$97,7,FALSE) -> 500 | C16: =VLOOKUP(($C$4&"-"&$A$10),Template!$B$72:$AF$97,8,FALSE) -> 750 | D16: =VLOOKUP(($C$4&"-"&$A$10),Template!$B$72:$AF$97,9,FALSE) -> 1000 | E16: =VLOOKUP(($C$4&"-"&$A$10),Template!$B$72:$AF$97,10,FALSE) -> 1250 | F16: =VLOOKUP(($C$4&"-"&$A$10),Template!$B$72:$AF$97,11,FALSE) -> 1500 | G16: =VLOOKUP(($C$4&"-"&$A$10),Template!$B$72:$AF$97,12,FALSE) -> 1750 | H16: =VLOOKUP(($C$4&"-"&$A$10),Template!$B$72:$AF$97,13,FALSE) -> 2000 | I16: =VLOOKUP(($C$4&"-"&$A$10),Template!$B$72:$AF$97,14,FALSE) -> 2250 | J16: =VLOOKUP(($C$4&"-"&$A$10),Template!$B$72:$AF$97,15,FALSE) -> 2500 | K16: =VLOOKUP(($C$4&"-"&$A$10),Template!$B$72:$AF$97,16,FALSE) -> 0 | L16: =VLOOKUP(($C$4&"-"&$A$10),Template!$B$72:$AF$97,17,FALSE) -> 0 | M16: =VLOOKUP(($C$4&"-"&$A$10),Template!$B$72:$AF$97,18,FALSE) -> 400 | N16: =VLOOKUP(($C$4&"-"&$A$10),Template!$B$72:$AF$97,19,FALSE) -> 800 | O16: =VLOOKUP(($C$4&"-"&$A$10),Template!$B$72:$AF$97,20,FALSE) -> 1200 | P16: =VLOOKUP(($C$4&"-"&$A$10),Template!$B$72:$AF$97,21,FALSE) -> 1600
A17: Surfacing | B17: =VLOOKUP(($C$4&"-"&$A$11),Template!$B$72:$AF$97,7,FALSE) -> 300 | C17: =VLOOKUP(($C$4&"-"&$A$11),Template!$B$72:$AF$97,8,FALSE) -> 450 | D17: =VLOOKUP(($C$4&"-"&$A$11),Template!$B$72:$AF$97,9,FALSE) -> 600 | E17: =VLOOKUP(($C$4&"-"&$A$11),Template!$B$72:$AF$97,10,FALSE) -> 750 | F17: =VLOOKUP(($C$4&"-"&$A$11),Template!$B$72:$AF$97,11,FALSE) -> 900 | G17: =VLOOKUP(($C$4&"-"&$A$11),Template!$B$72:$AF$97,12,FALSE) -> 1050 | H17: =VLOOKUP(($C$4&"-"&$A$11),Template!$B$72:$AF$97,13,FALSE) -> 1200 | I17: =VLOOKUP(($C$4&"-"&$A$11),Template!$B$72:$AF$97,14,FALSE) -> 1350 | J17: =VLOOKUP(($C$4&"-"&$A$11),Template!$B$72:$AF$97,15,FALSE) -> 1500 | K17: =VLOOKUP(($C$4&"-"&$A$11),Template!$B$72:$AF$97,16,FALSE) -> 0 | L17: =VLOOKUP(($C$4&"-"&$A$11),Template!$B$72:$AF$97,17,FALSE) -> 0 | M17: =VLOOKUP(($C$4&"-"&$A$11),Template!$B$72:$AF$97,18,FALSE) -> 250 | N17: =VLOOKUP(($C$4&"-"&$A$11),Template!$B$72:$AF$97,19,FALSE) -> 500 | O17: =VLOOKUP(($C$4&"-"&$A$11),Template!$B$72:$AF$97,20,FALSE) -> 750 | P17: =VLOOKUP(($C$4&"-"&$A$11),Template!$B$72:$AF$97,21,FALSE) -> 1000
A18: Shoulder | B18: =VLOOKUP(($C$4&"-"&$A$12),Template!$B$72:$AF$97,7,FALSE) -> 100 | C18: =VLOOKUP(($C$4&"-"&$A$12),Template!$B$72:$AF$97,8,FALSE) -> 150 | D18: =VLOOKUP(($C$4&"-"&$A$12),Template!$B$72:$AF$97,9,FALSE) -> 200 | E18: =VLOOKUP(($C$4&"-"&$A$12),Template!$B$72:$AF$97,10,FALSE) -> 250 | F18: =VLOOKUP(($C$4&"-"&$A$12),Template!$B$72:$AF$97,11,FALSE) -> 300 | G18: =VLOOKUP(($C$4&"-"&$A$12),Template!$B$72:$AF$97,12,FALSE) -> 350 | H18: =VLOOKUP(($C$4&"-"&$A$12),Template!$B$72:$AF$97,13,FALSE) -> 400 | I18: =VLOOKUP(($C$4&"-"&$A$12),Template!$B$72:$AF$97,14,FALSE) -> 450 | J18: =VLOOKUP(($C$4&"-"&$A$12),Template!$B$72:$AF$97,15,FALSE) -> 500 | K18: =VLOOKUP(($C$4&"-"&$A$12),Template!$B$72:$AF$97,16,FALSE) -> 0 | L18: =VLOOKUP(($C$4&"-"&$A$12),Template!$B$72:$AF$97,17,FALSE) -> 0 | M18: =VLOOKUP(($C$4&"-"&$A$12),Template!$B$72:$AF$97,18,FALSE) -> 75 | N18: =VLOOKUP(($C$4&"-"&$A$12),Template!$B$72:$AF$97,19,FALSE) -> 150 | O18: =VLOOKUP(($C$4&"-"&$A$12),Template!$B$72:$AF$97,20,FALSE) -> 225 | P18: =VLOOKUP(($C$4&"-"&$A$12),Template!$B$72:$AF$97,21,FALSE) -> 300
A40: Surfacing History | J40: Site Condition
R45: Note - for Surfacing History graph, format horizontal axis; set 'Minimum' to RP Start and 'Maximum' to RP End .
A60: General Site Information | G60: Other Considerations | K60: Latest RAMM Rating and High Speed Data
A61: Item | D61: Value | G61: Associated Project Work | K61: Year | L61: Item | O61: Value
A62: Existing Pavement Layer Date | D62: =IF(ISBLANK('Site Details'!B8),"",'Site Details'!B8) -> 1990-12-25 | G62: Seal Widening? | I62: =IF(ISBLANK('Site Details'!B16),"No",'Site Details'!B16) -> No | K62: 2015 | L62: Average Roughness (NAASRA) | O62: =IF(ISBLANK('Site Details'!W15),"",'Site Details'!W15) -> 78
A63: Existing Pavement Layer Depth | D63: =IF(ISBLANK('Site Details'!B9),"",'Site Details'!B9) -> 300 | G63: Major Drainage Works? | I63: =IF(ISBLANK('Site Details'!B17),"No",'Site Details'!B17) -> No | K63: 2015 | L63: Maximum Roughness (NAASRA) | O63: =IF(ISBLANK('Site Details'!W16),"",'Site Details'!W16) -> 178
A64: Average Annual Daily Traffic Count | D64: =IF(ISBLANK('Site Details'!B10),"",'Site Details'!B10) -> 3125 | G64: Minor Safety Works? | I64: =IF(ISBLANK('Site Details'!B18),"No",'Site Details'!B18) -> No | K64: 2015 | L64: Texture > 275mm (%) | O64: =IF(ISBLANK('Site Details'!W17),"",'Site Details'!W17) -> 0.0245
A65: % Heavies | D65: =IF(ISBLANK('Site Details'!B11),"",'Site Details'!B11) -> 0.09 | K65: 2015 | L65: Rutting (%) | O65: =IF(ISBLANK('Site Details'!W18),"",'Site Details'!W18) -> 0.0173
K66: 2015 | L66: Shoving (%) | O66: =IF(ISBLANK('Site Details'!W19),"",'Site Details'!W19) -> 0.0109
K67: 2015 | L67: Length with SCRIM < 0 (%) | O67: =IF(ISBLANK('Site Details'!W20),"",'Site Details'!W20) -> 0.3357
K68: 2015 | L68: Length with SCRIM < 0.1 (%) | O68: =IF(ISBLANK('Site Details'!W21),"",'Site Details'!W21) -> 0
A70: Economically Prefered Option | G70: NPV Summary | K70: Sensitivity Analysis | O70: EI Flags
A71: =VLOOKUP(MAX(Template!G101:G104),Template!G101:K104,4,FALSE) -> Renewal No.1 | G71: NPV | I71: =VLOOKUP(A71,Template!C101:E104,2,FALSE) -> 123842.1764 | K71: Best Case NPV | M71: =VLOOKUP(A71,SensitivityBest!C68:G72,4,FALSE) -> 234220.8474 | O71: =IF(VLOOKUP(A71,Template!C101:I104,7,FALSE)="Review","Review","None") -> None
G72: EI | I72: =VLOOKUP(A71,Template!C101:E104,3,FALSE) -> 0.8878934639 | K72: Worst Case NPV | M72: =VLOOKUP(A71,SensitivityWorst!C68:G72,4,FALSE) -> 31779.51244
A74: Travel Delays Prefered Option (if required) | G74: NPV Summary
A75: =IF(ISERROR(VLOOKUP(MIN(Template!H101:H104),Template!H101:K104,3,FALSE)),"Not Assessed",(VLOOKUP(MIN(Template!H101:H104),Template!H101:K104,3,FALSE))) -> Renewal No.1 | G75: NPV | I75: =IF(ISERROR(VLOOKUP(A75,Template!C101:E104,2,FALSE)),"",(VLOOKUP(A75,Template!C101:E104,2,FALSE))) -> 123842.1764
G76: EI | I76: =IF(ISERROR(VLOOKUP(A75,Template!C101:E104,3,FALSE)),"",(VLOOKUP(A75,Template!C101:E104,3,FALSE))) -> 0.8878934639

Sheet Assessed Maintenance
A1: ='Site Details'!B3 -> Site X
A3: ='Site Details'!B4 -> SHA RPB/4.70-6.10
A7: SITE FIELD INFORMATION
B11: RP End | F11: 1.4 | Z11: Centreline
BA12: ASSESSED MAITENANCE
BB14: Year 0 | BD14: Year 1
BF16: Key
BF18: Insitu stabilisation
BF20: Digouts
BF22: Milling
BF24: Minor levelling
BF26: Rip and Remake
BF28: Fill cracks
BF30: Seal cracks
BF32: Surfacing defect repairs
BF34: Waterblasting
BF36: Shoulder Maintenance
B110: RP Start | F110: 0

Sheet D1-Heavy Maint
A1: TRAVEL TIME DELAY COSTS WORKSHEET
A2: TRAVEL TIME COSTS DUE TO TRAFFIC MANAGEMENT
C5: Name of Option being considered | E5: Road Category
C6: HEAVY MAINTENANCE | E6: ='Site Details'!B13 -> Rural strategic | L6: Traffic Growth | M6: =Traffic_Growth*100 -> 1.6 | N6: %
B8: Description | D8: TTM Events | E8: Traffic Flow Affected by TTM | J8: Vehicle Delay | L8: Travel Time Costs (TTC) | N8: Present Value Costs
B9: Year | C9: Works Description | D9: No TTM Events1 | E9: Traffic Flow2 | F9: Length of time3 | G9: Factored Flow | H9: Vehs per period | I9: Total vehs affected | J9: Ave Delay per veh | K9: Total Delay | L9: TTC per Veh | M9: Total TTC | N9: SPPWF | O9: Present Value
B10: [ no ] | D10: [no.] | E10: [vehs/hr] | F10: [hrs] | G10: [vehs/hr] | H10: [vehs] | I10: [vehs] | J10: [mins] | K10: [hrs] | L10: [$/hr] | M10: [$] | O10: [$]
B11: 1 | C11: Maintenance - Stop/Go | D11: 5 | E11: 150 | F11: 8 | G11: =IF(D11="","",E11*((1+$M$6/100)^($B11-$B$11))) -> 150 | H11: =IF(D11="","",F11*G11) -> 1200 | I11: =IF(D11="","",H11*D11) -> 6000 | J11: 5 | K11: =IF(D11="","",J11/60*I11) -> 500 | L11: =IF(D11="","",VLOOKUP($E$6,$Q$18:$S$21,3)) -> 32.55 | M11: =IF(D11="","",K11*L11) -> 16275 | N11: =IF(D11="","",(1/(1.06^B11))) -> 0.9433962264 | O11: =IF(D11="",0,N11*M11) -> 15353.77358
B12: 2 | C12: Maintenance - Stop/Go | D12: 2 | E12: 150 | F12: 8 | G12: 152.4 | H12: 1219.2 | I12: 2438.4 | J12: 2 | K12: 81.28 | L12: 32.55 | M12: 2645.664 | N12: 0.88999644 | O12: 2354.631541
B13: 3 | C13: Maintenance - Stop/Go | D13: 2 | E13: 150 | F13: 8 | G13: 154.8384 | H13: 1238.7072 | I13: 2477.4144 | J13: 2 | K13: 82.58048 | L13: 32.55 | M13: 2687.994624 | N13: 0.839619283 | O13: 2256.892119
B14: 4 | C14: Maintenance - Stop/Go | D14: 2 | E14: 150 | F14: 8 | G14: 157.3158144 | H14: 1258.526515 | I14: 2517.05303 | J14: 2 | K14: 83.90176768 | L14: 32.55 | M14: 2731.002538 | N14: 0.7920936632 | O14: 2163.209805 | Q14: Table A4-3 Update Factor to 2013 | R14: 1.4
B15: 5 | C15: Maintenance & Reseal - Stop/Go | D15: 4 | E15: 150 | F15: 8 | G15: 159.8328674 | H15: 1278.662939 | I15: 5114.651758 | J15: 5 | K15: 426.2209798 | L15: 32.55 | M15: 13873.49289 | N15: 0.7472581729 | O15: 10367.08095
B16: 6 | C16: Maintenance - Stop/Go | D16: 3 | E16: 150 | F16: 8 | G16: 162.3901933 | H16: 1299.121546 | I16: 3897.364639 | J16: 2 | K16: 129.9121546 | L16: 32.55 | M16: =IF(D16="","",K16*L16) -> 4228.640634 | N16: 0.7049605404 | O16: 2981.024787 | Q16: Extract from EEM Table A4-3
B17: 7 | C17: Maintenance - Stop/Go | D17: 3 | E17: 150 | F17: 8 | G17: 164.9884364 | H17: 1319.907491 | I17: 3959.722474 | J17: 2 | K17: 131.9907491 | L17: 32.55 | M17: 4296.298884 | N17: 0.6650571136 | O17: 2857.284135 | Q17: Road category and time period | R17: Base value of time ($/h) | S17: Updated
B18: 8 | C18: Maintenance - Stop/Go | D18: 3 | E18: 150 | F18: 8 | G18: 167.6282514 | H18: 1341.026011 | I18: 4023.078033 | J18: 2 | K18: 134.1026011 | L18: 32.55 | M18: 4365.039666 | N18: 0.6274123713 | O18: 2738.679888 | Q18: Rural other | R18: 22.72 | S18: =$R$14*R18 -> 31.808
B19: 9 | C19: Renewal - Stop/Go | D19: 5 | E19: 150 | F19: 24 | G19: 170.3103034 | H19: 4087.447282 | I19: 20437.23641 | J19: 5 | K19: 1703.103034 | L19: 32.55 | M19: 55436.00376 | N19: 0.5918984635 | O19: 32812.48545 | Q19: Rural strategic | R19: 23.25 | S19: =$R$14*R19 -> 32.55
B20: 10 | O20: 0 | Q20: Urban arterial | R20: 16.27 | S20: =$R$14*R20 -> 22.778
Q21: Urban other | R21: 16.23 | S21: =$R$14*R21 -> 22.722
N23: TOTAL | O23: =SUM(O11:O20) -> 73885.06226 | Q23: Note: Above values are from EEM current edition in July 2014
B24: Notes:
B25: 1 - This is the number of times the TTM occurs within the year (e.g. number of nights or days of road closures or days of temporary signals).
B26: 2 - Traffic flow is the average hourly traffic flow during the hours of the TTM (not the AADT)
B27: 3 - This is the duration of the TTM per average day (e.g. 7 hours for a night time session or 24 hours for a weekly road closure).

Sheet D2-Renewal1
A1: TRAVEL TIME DELAY COSTS WORKSHEET
A2: TRAVEL TIME COSTS DUE TO TRAFFIC MANAGEMENT
C5: Name of Option being considered | E5: Road Category
C6: RENEWAL No.1 | E6: ='Site Details'!B13 -> Rural strategic | L6: Traffic Growth | M6: =Traffic_Growth*100 -> 1.6 | N6: %
B8: Description | D8: TTM Events | E8: Traffic Flow Affected by TTM | J8: Vehicle Delay | L8: Travel Time Costs (TTC) | N8: Present Value Costs
B9: Year | C9: Works Description | D9: No TTM Events1 | E9: Traffic Flow2 | F9: Length of time3 | G9: Factored Flow | H9: Vehs per period | I9: Total vehs affected | J9: Ave Delay per veh | K9: Total Delay | L9: TTC per Veh | M9: Total TTC | N9: SPPWF | O9: Present Value
B10: [ no ] | D10: [no.] | E10: [vehs/hr] | F10: [hrs] | G10: [vehs/hr] | H10: [vehs] | I10: [vehs] | J10: [mins] | K10: [hrs] | L10: [$/hr] | M10: [$] | O10: [$]
B11: 1 | C11: Pavement Renewal | D11: 4 | E11: 150 | F11: 24 | G11: =IF(D11="","",E11*((1+$M$6/100)^($B11-$B$11))) -> 150 | H11: =IF(D11="","",F11*G11) -> 3600 | I11: =IF(D11="","",H11*D11) -> 14400 | J11: 5 | K11: =IF(D11="","",J11/60*I11) -> 1200 | L11: =IF(D11="","",VLOOKUP($E$6,$Q$18:$S$21,3)) -> 32.55 | M11: =IF(D11="","",K11*L11) -> 39060 | N11: =IF(D11="","",(1/(1.06^B11))) -> 0.9433962264 | O11: =IF(D11="",0,N11*M11) -> 36849.0566
B12: 2 | O12: 0
B13: 3 | C13: Reseal | D13: 2 | E13: 150 | F13: 24 | G13: 154.8384 | H13: 3716.1216 | I13: 7432.2432 | J13: 5 | K13: 619.3536 | L13: 32.55 | M13: 20159.95968 | N13: 0.839619283 | O13: 16926.69089
B14: 4 | O14: 0 | Q14: Table A4-3 Update Factor to 2013 | R14: 1.4
B15: 5 | O15: 0
B16: 6 | O16: 0 | Q16: Extract from EEM Table A4-3
B17: 7 | O17: 0 | Q17: Road category and time period | R17: Base value of time ($/h) | S17: Updated
B18: 8 | O18: 0 | Q18: Rural other | R18: 22.72 | S18: =$R$14*R18 -> 31.808
B19: 9 | O19: 0 | Q19: Rural strategic | R19: 23.25 | S19: =$R$14*R19 -> 32.55
B20: 10 | O20: 0 | Q20: Urban arterial | R20: 16.27 | S20: =$R$14*R20 -> 22.778
Q21: Urban other | R21: 16.23 | S21: =$R$14*R21 -> 22.722
N23: TOTAL | O23: =SUM(O11:O20) -> 53775.7475 | Q23: Note: Above values are from EEM current edition in July 2014
B24: Notes:
B25: 1 - This is the number of times the TTM occurs within the year (e.g. number of nights or days of road closures or days of temporary signals).
B26: 2 - Traffic flow is the average hourly traffic flow during the hours of the TTM (not the AADT)
B27: 3 - This is the duration of the TTM per average day (e.g. 7 hours for a night time session or 24 hours for a weekly road closure).

Sheet D3-Renewal2
A1: TRAVEL TIME DELAY COSTS WORKSHEET
A2: TRAVEL TIME COSTS DUE TO TRAFFIC MANAGEMENT
C5: Name of Option being considered | E5: Road Category
C6: RENEWAL No.2 | E6: ='Site Details'!B13 -> Rural strategic | L6: Traffic Growth | M6: =Traffic_Growth*100 -> 1.6 | N6: %
B8: Description | D8: TTM Events | E8: Traffic Flow Affected by TTM | J8: Vehicle Delay | L8: Travel Time Costs (TTC) | N8: Present Value Costs
B9: Year | C9: Works Description | D9: No TTM Events1 | E9: Traffic Flow2 | F9: Length of time3 | G9: Factored Flow | H9: Vehs per period | I9: Total vehs affected | J9: Ave Delay per veh | K9: Total Delay | L9: TTC per Veh | M9: Total TTC | N9: SPPWF | O9: Present Value
B10: [ no ] | D10: [no.] | E10: [vehs/hr] | F10: [hrs] | G10: [vehs/hr] | H10: [vehs] | I10: [vehs] | J10: [mins] | K10: [hrs] | L10: [$/hr] | M10: [$] | O10: [$]
B11: 1 | C11: Pavement Renewal | D11: 3 | E11: 150 | F11: 24 | G11: =IF(D11="","",E11*((1+$M$6/100)^($B11-$B$11))) -> 150 | H11: =IF(D11="","",F11*G11) -> 3600 | I11: =IF(D11="","",H11*D11) -> 10800 | J11: 5 | K11: =IF(D11="","",J11/60*I11) -> 900 | L11: =IF(D11="","",VLOOKUP($E$6,$Q$18:$S$21,3)) -> 32.55 | M11: =IF(D11="","",K11*L11) -> 29295 | N11: =IF(D11="","",(1/(1.06^B11))) -> 0.9433962264 | O11: =IF(D11="",0,N11*M11) -> 27636.79245
B12: 2 | O12: 0
B13: 3 | C13: Reseal | D13: 2 | E13: 150 | F13: 24 | G13: 154.8384 | H13: 3716.1216 | I13: 7432.2432 | J13: 5 | K13: 619.3536 | L13: 32.55 | M13: 20159.95968 | N13: 0.839619283 | O13: 16926.69089
B14: 4 | O14: 0 | Q14: Table A4-3 Update Factor to 2013 | R14: 1.4
B15: 5 | O15: 0
B16: 6 | O16: 0 | Q16: Extract from EEM Table A4-3
B17: 7 | O17: 0 | Q17: Road category and time period | R17: Base value of time ($/h) | S17: Updated
B18: 8 | O18: 0 | Q18: Rural other | R18: 22.72 | S18: =$R$14*R18 -> 31.808
B19: 9 | O19: 0 | Q19: Rural strategic | R19: 23.25 | S19: =$R$14*R19 -> 32.55
B20: 10 | O20: 0 | Q20: Urban arterial | R20: 16.27 | S20: =$R$14*R20 -> 22.778
Q21: Urban other | R21: 16.23 | S21: =$R$14*R21 -> 22.722
N23: TOTAL | O23: =SUM(O11:O20) -> 44563.48335 | Q23: Note: Above values are from EEM current edition in July 2014
B24: Notes:
B25: 1 - This is the number of times the TTM occurs within the year (e.g. number of nights or days of road closures or days of temporary signals).
B26: 2 - Traffic flow is the average hourly traffic flow during the hours of the TTM (not the AADT)
B27: 3 - This is the duration of the TTM per average day (e.g. 7 hours for a night time session or 24 hours for a weekly road closure).

Sheet D4-Renewal3
A1: TRAVEL TIME DELAY COSTS WORKSHEET
A2: TRAVEL TIME COSTS DUE TO TRAFFIC MANAGEMENT
C5: Name of Option being considered | E5: Road Category
C6: RENEWAL No.3 | E6: ='Site Details'!B13 -> Rural strategic | L6: Traffic Growth | M6: =Traffic_Growth*100 -> 1.6 | N6: %
B8: Description | D8: TTM Events | E8: Traffic Flow Affected by TTM | J8: Vehicle Delay | L8: Travel Time Costs (TTC) | N8: Present Value Costs
B9: Year | C9: Works Description | D9: No TTM Events1 | E9: Traffic Flow2 | F9: Length of time3 | G9: Factored Flow | H9: Vehs per period | I9: Total vehs affected | J9: Ave Delay per veh | K9: Total Delay | L9: TTC per Veh | M9: Total TTC | N9: SPPWF | O9: Present Value
B10: [ no ] | D10: [no.] | E10: [vehs/hr] | F10: [hrs] | G10: [vehs/hr] | H10: [vehs] | I10: [vehs] | J10: [mins] | K10: [hrs] | L10: [$/hr] | M10: [$] | O10: [$]
B11: 1 | G11: =IF(D11="","",E11*((1+$M$6/100)^($B11-$B$11))) ->  | H11: =IF(D11="","",F11*G11) ->  | I11: =IF(D11="","",H11*D11) ->  | K11: =IF(D11="","",J11/60*I11) ->  | L11: =IF(D11="","",VLOOKUP($E$6,$Q$18:$S$21,3)) ->  | M11: =IF(D11="","",K11*L11) ->  | N11: =IF(D11="","",(1/(1.06^B11))) ->  | O11: =IF(D11="",0,N11*M11) -> 0
B12: 2 | O12: 0
B13: 3 | O13: 0
B14: 4 | O14: 0 | Q14: Table A4-3 Update Factor to 2013 | R14: 1.4
B15: 5 | O15: 0
B16: 6 | O16: 0 | Q16: Extract from EEM Table A4-3
B17: 7 | O17: 0 | Q17: Road category and time period | R17: Base value of time ($/h) | S17: Updated
B18: 8 | O18: 0 | Q18: Rural other | R18: 22.72 | S18: =$R$14*R18 -> 31.808
B19: 9 | O19: 0 | Q19: Rural strategic | R19: 23.25 | S19: =$R$14*R19 -> 32.55
B20: 10 | O20: 0 | Q20: Urban arterial | R20: 16.27 | S20: =$R$14*R20 -> 22.778
Q21: Urban other | R21: 16.23 | S21: =$R$14*R21 -> 22.722
N23: TOTAL | O23: =SUM(O11:O20) -> 0 | Q23: Note: Above values are from EEM current edition in July 2014
B24: Notes:
B25: 1 - This is the number of times the TTM occurs within the year (e.g. number of nights or days of road closures or days of temporary signals).
B26: 2 - Traffic flow is the average hourly traffic flow during the hours of the TTM (not the AADT)
B27: 3 - This is the duration of the TTM per average day (e.g. 7 hours for a night time session or 24 hours for a weekly road closure).

Sheet Process Summary
M15: No
H19: Yes | S19: No | AD19: No
M23: No | X23: Yes
H27: Yes | AB27: Yes
P36: No
S37: Yes

Sheet SensitivitySliders
A1: Sensitivity Analysis
O2: Adjustment | P2: Adjustment Factor | Q2: Scroll Value
F3: Decrease/increase the maintenance cost progression (±20%) | T3: Year | U3: 1 | V3: 2 | W3: 3 | X3: 4 | Y3: 5 | Z3: 6 | AA3: 7 | AB3: 8 | AC3: 9 | AD3: 10 | AE3: 11 | AF3: 12 | AG3: 13
A4: Do Minimum Maintenance Cost Progression | E4: Decrease | M4: Increase | O4: =($Q$4-20)/100 -> 0 | P4: =1+O4 -> 1 | Q4: 20 | U4: 2017/18 | V4: 2018/19 | W4: 2019/20 | X4: 2020/21 | Y4: 2021/22 | Z4: 2022/23 | AA4: 2023/24 | AB4: 2024/25 | AC4: 2025/26 | AD4: 2026/27 | AE4: 2027/28 | AF4: 2028/29 | AG4: 2029/30
S5: Maintenance Costs | T5: Pavement | U5: =V80 -> 37500 | V5: =W80 -> 17952.94545 | W5: 19124.98182 | X5: 20297.01818 | Y5: 21469.05455 | Z5: 22641.09091 | AA5: 23813.12727 | AB5: 24985.16364 | AC5: 26157.2 | AD5: 27329.23636 | AE5: 28501.27273 | AF5: 29673.30909 | AG5: 30845.34545
F6: Decrease/increase Do Minimum Year 1 assessed maintenance costs (±20%) | T6: Surfacing | U6: =V81 -> 15000 | V6: 5057.134545 | W6: 5254.741818 | X6: 5452.349091 | Y6: 5649.956364 | Z6: 5847.563636 | AA6: 6045.170909 | AB6: 6242.778182 | AC6: 6440.385455 | AD6: 6637.992727 | AE6: 6835.6 | AF6: 7033.207273 | AG6: 7230.814545
A7: Year 1 Do Minimum Maintenance Costs | E7: Decrease | M7: Increase | O7: =(Q7-20)/100 -> 0 | P7: =1+O7 -> 1 | Q7: 20 | T7: Shoulder | U7: 4800 | V7: 5072.727273 | W7: 5581.090909 | X7: 6089.454545 | Y7: 6597.818182 | Z7: 7106.181818 | AA7: 7614.545455 | AB7: 8122.909091 | AC7: 8631.272727 | AD7: 9139.636364 | AE7: 9648 | AF7: 10156.36364 | AG7: 10664.72727
F9: Decrease/increase the Year 1 treatment estimate for proposed options (±10%)
A10: Year 1 Treatment Costs (excluding Do Minimum) | E10: Decrease | M10: Increase | O10: =(Q10-10)/100 -> 0 | P10: =1+O10 -> 1 | Q10: 10
F12: Advance/defer the rehabilitation timing within the Do Minimum option (±2 years)
A13: Do Minimum Rehabilitation Timing | E13: Advance | M13: Defer | O13: years | P13: =Q13-2 -> 0 | Q13: 2
I16: BEFORE SENSITIVITY | K16: AFTER SENSITIVITY
F17: OPTIONS SUMMARY | I17: NPV | J17: EI | K17: NPV | L17: EI
F18: HEAVY MAINTENANCE | I18: =Template!N61 -> 29010.19167 | J18: =Template!N62 -> -4.014230477 | K18: =N62 -> 29010.19167 | L18: =N63 -> -4.014230477
F19: RENEWAL No.1 | I19: =Template!T61 -> 123842.1764 | J19: =Template!T62 -> 0.8878934639 | K19: =T62 -> 123842.1764 | L19: =T63 -> 0.8878934639
F20: RENEWAL No.2 | I20: =Template!Z61 -> 33096.95033 | J20: =Template!Z62 -> 0.1342894603 | K20: =Z62 -> 33096.95033 | L20: =Z63 -> 0.1342894603
F21: RENEWAL No.3 | I21: =Template!AF61 -> -85770.97419 | J21: =Template!AF62 -> -0.2347781842 | K21: =AF62 -> -85770.97419 | L21: =AF63 -> -0.2347781842
F22: PREFERED OPTION | I22: =VLOOKUP(MAX(Template!G101:G104),Template!G101:K104,4,FALSE) -> Renewal No.1 | K22: =IF(ISERROR(VLOOKUP(MAX(F68:F71),F68:H71,3,FALSE)),"Do Minimum",(VLOOKUP(MAX(F68:F71),F68:H71,3,FALSE))) -> Renewal No.1
D25: DO MINIMUM | J25: HEAVY MAINTENANCE | P25: RENEWAL No.1 | V25: RENEWAL No.2 | AB25: RENEWAL No.3
A26: Year | C26: SPPWF | D26: Rehab | E26: Resurf | F26: Annual Maint (Pave) | G26: Annual Maint (Surf) | H26: Annual Maint (Should) | I26: Discounted Total Costs | J26: Rehab | K26: Resurf | L26: Annual Maint (Pave) | M26: Annual Maint (Surf) | N26: Annual Maint (Should) | O26: Discounted Total Costs | P26: Rehab | Q26: Resurf | R26: Annual Maint (Pave) | S26: Annual Maint (Surf) | T26: Annual Maint (Should) | U26: Discounted Total Costs | V26: Rehab | W26: Resurf | X26: Annual Maint (Pave) | Y26: Annual Maint (Surf) | Z26: Annual Maint (Should) | AA26: Discounted Total Costs | AB26: Rehab | AC26: Resurf | AD26: Annual Maint (Pave) | AE26: Annual Maint (Surf) | AF26: Annual Maint (Should) | AG26: Discounted Total Costs
A27: 2017/18 | B27: 1 | C27: =1/((1+6%)^B27) -> 0.9433962264 | D27: =Template!D6 -> 0 | E27: =Template!E6 -> 0 | F27: =IF(SUM(D27)=0,U5,0) -> 37500 | G27: =IF(SUM(D27)=0,U6,0) -> 15000 | H27: =IF(SUM(D27)=0,U7,0) -> 4800 | I27: =SUM(D27:H27)*C27 -> 54056.60377 | J27: =Template!J6 -> 0 | K27: =Template!K6 -> 0 | L27: =Template!L6*$P$10 -> 110300 | M27: =Template!M6 -> 0 | N27: =Template!N6 -> 0 | O27: =SUM(J27:N27)*C27 -> 104056.6038 | P27: =Template!P6*$P$10 -> 289800 | Q27: =Template!Q6 -> 0 | R27: =Template!R6 -> 0 | S27: =Template!S6 -> 0 | T27: =Template!T6 -> 0 | U27: =SUM(P27:T27)*C27 -> 273396.2264 | V27: =Template!V6*$P$10 -> 403200 | W27: =Template!W6 -> 0 | X27: =Template!X6 -> 0 | Y27: =Template!Y6 -> 0 | Z27: =Template!Z6 -> 0 | AA27: =SUM(V27:Z27)*C27 -> 380377.3585 | AB27: =Template!AB6*$P$10 -> 529200 | AC27: =Template!AC6 -> 0 | AD27: =Template!AD6 -> 0 | AE27: =Template!AE6 -> 0 | AF27: =Template!AF6 -> 0 | AG27: =SUM(AB27:AF27)*C27 -> 499245.283
A28: 2018/19 | B28: 2 | C28: 0.88999644 | D28: =Template!D7 -> 0 | E28: =Template!E7 -> 0 | F28: =IF(SUM(D27:D28)=0,V5,0) -> 17952.94545 | G28: =IF(SUM(D27:D28)=0,V6,0) -> 5057.134545 | H28: =IF(SUM(D27:D28)=0,V7,0) -> 5072.727273 | I28: 24993.5985 | J28: =Template!J7 -> 0 | K28: =Template!K7 -> 0 | L28: =Template!L7 -> 2000 | M28: =Template!M7 -> 1500 | N28: =Template!N7 -> 500 | O28: 3559.98576 | P28: =Template!P7 -> 0 | Q28: =Template!Q7 -> 0 | R28: =Template!R7 -> 0 | S28: =Template!S7 -> 0 | T28: =Template!T7 -> 0 | U28: 0 | V28: =Template!V7 -> 0 | W28: =Template!W7 -> 0 | X28: =Template!X7 -> 0 | Y28: =Template!Y7 -> 0 | Z28: =Template!Z7 -> 0 | AA28: 0 | AB28: =Template!AB7 -> 0 | AC28: =Template!AC7 -> 0 | AD28: =Template!AD7 -> 0 | AE28: =Template!AE7 -> 0 | AF28: =Template!AF7 -> 0 | AG28: 0
A29: 2019/20 | B29: 3 | C29: 0.839619283 | D29: =Template!D8 -> 0 | E29: =Template!E8 -> 0 | F29: =IF(SUM(D27:D29)=0,W5,0) -> 19124.98182 | G29: =IF(SUM(D27:D29)=0,W6,0) -> 5254.741818 | H29: =IF(SUM(D27:D29)=0,W7,0) -> 5581.090909 | I29: 25155.67763 | J29: =Template!J8 -> 0 | K29: =Template!K8 -> 0 | L29: =Template!L8 -> 4000 | M29: =Template!M8 -> 3000 | N29: =Template!N8 -> 1000 | O29: 6716.954264 | P29: =Template!P8 -> 0 | Q29: =Template!Q8 -> 82000 | R29: =Template!R8 -> 0 | S29: =Template!S8 -> 0 | T29: =Template!T8 -> 0 | U29: 68848.78121 | V29: =Template!V8 -> 0 | W29: =Template!W8 -> 82000 | X29: =Template!X8 -> 0 | Y29: =Template!Y8 -> 0 | Z29: =Template!Z8 -> 0 | AA29: 68848.78121 | AB29: =Template!AB8 -> 0 | AC29: =Template!AC8 -> 82000 | AD29: =Template!AD8 -> 0 | AE29: =Template!AE8 -> 0 | AF29: =Template!AF8 -> 0 | AG29: 68848.78121
A30: 2020/21 | B30: 4 | C30: 0.7920936632 | D30: =IF(P16<=0,OFFSET(Template!D9,-$P$13,0,1,1),0) -> 0 | E30: =IF(Q16<=0,OFFSET(Template!E9,-$P$13,0,1,1),0) -> 0 | F30: =IF(SUM(D27:D30)=0,X5,0) -> 20297.01818 | G30: =IF(SUM(D27:D30)=0,X6,0) -> 5452.349091 | H30: =IF(SUM(D27:D30)=0,X7,0) -> 6089.454545 | I30: 25219.32901 | J30: =OFFSET(Template!J9,-$P$12,0,1,1) -> 0 | K30: =Template!K9 -> 0 | L30: =Template!L9 -> 6000 | M30: =Template!M9 -> 4500 | N30: =Template!N9 -> 1500 | O30: 9505.123959 | P30: =Template!P9 -> 0 | Q30: =Template!Q9 -> 0 | R30: =Template!R9 -> 0 | S30: =Template!S9 -> 0 | T30: =Template!T9 -> 0 | U30: 0 | V30: =Template!V9 -> 0 | W30: =Template!W9 -> 0 | X30: =Template!X9 -> 0 | Y30: =Template!Y9 -> 0 | Z30: =Template!Z9 -> 0 | AA30: 0 | AB30: =Template!AB9 -> 0 | AC30: =Template!AC9 -> 0 | AD30: =Template!AD9 -> 0 | AE30: =Template!AE9 -> 0 | AF30: =Template!AF9 -> 0 | AG30: 0
A31: 2021/22 | B31: 5 | C31: 0.7472581729 | D31: =IF(P17<=0,OFFSET(Template!D10,-$P$13,0,1,1),0) -> 0 | E31: =IF(Q17<=0,OFFSET(Template!E10,-$P$13,0,1,1),0) -> 0 | F31: =IF(SUM(D27:D31)=0,Y5,0) -> 21469.05455 | G31: =IF(SUM(D27:D31)=0,Y6,0) -> 5649.956364 | H31: =IF(SUM(D27:D31)=0,Y7,0) -> 6597.818182 | I31: 25195.1761 | J31: =OFFSET(Template!J10,-$P$12,0,1,1) -> 0 | K31: =Template!K10 -> 92000 | L31: =Template!L10 -> 0 | M31: =Template!M10 -> 0 | N31: =Template!N10 -> 0 | O31: 68747.7519 | P31: =Template!P10 -> 0 | Q31: =Template!Q10 -> 0 | R31: =Template!R10 -> 250 | S31: =Template!S10 -> 150 | T31: =Template!T10 -> 50 | U31: 336.2661778 | V31: =Template!V10 -> 0 | W31: =Template!W10 -> 0 | X31: =Template!X10 -> 250 | Y31: =Template!Y10 -> 150 | Z31: =Template!Z10 -> 50 | AA31: 336.2661778 | AB31: =Template!AB10 -> 0 | AC31: =Template!AC10 -> 0 | AD31: =Template!AD10 -> 250 | AE31: =Template!AE10 -> 150 | AF31: =Template!AF10 -> 50 | AG31: 336.2661778
A32: 2022/23 | B32: 6 | C32: 0.7049605404 | D32: =IF(P18<=0,OFFSET(Template!D11,-$P$13,0,1,1),0) -> 0 | E32: =IF(Q18<=0,OFFSET(Template!E11,-$P$13,0,1,1),0) -> 0 | F32: =IF(SUM(D27:D32)=0,Z5,0) -> 22641.09091 | G32: =IF(SUM(D27:D32)=0,Z6,0) -> 5847.563636 | H32: =IF(SUM(D27:D32)=0,Z7,0) -> 7106.181818 | I32: 25092.95508 | J32: =OFFSET(Template!J11,-$P$12,0,1,1) -> 0 | K32: =Template!K11 -> 0 | L32: =Template!L11 -> 0 | M32: =Template!M11 -> 0 | N32: =Template!N11 -> 0 | O32: 0 | P32: =Template!P11 -> 0 | Q32: =Template!Q11 -> 0 | R32: =Template!R11 -> 500 | S32: =Template!S11 -> 300 | T32: =Template!T11 -> 100 | U32: 634.4644864 | V32: =Template!V11 -> 0 | W32: =Template!W11 -> 0 | X32: =Template!X11 -> 500 | Y32: =Template!Y11 -> 300 | Z32: =Template!Z11 -> 100 | AA32: 634.4644864 | AB32: =Template!AB11 -> 0 | AC32: =Template!AC11 -> 0 | AD32: =Template!AD11 -> 500 | AE32: =Template!AE11 -> 300 | AF32: =Template!AF11 -> 100 | AG32: 634.4644864
A33: 2023/24 | B33: 7 | C33: 0.6650571136 | D33: =IF(P19<=0,OFFSET(Template!D12,-$P$13,0,1,1),0) -> 0 | E33: =IF(Q19<=0,OFFSET(Template!E12,-$P$13,0,1,1),0) -> 0 | F33: =IF(SUM(D27:D33)=0,AA5,0) -> 23813.12727 | G33: =IF(SUM(D27:D33)=0,AA6,0) -> 6045.170909 | H33: =IF(SUM(D27:D33)=0,AA7,0) -> 7614.545455 | I33: 24921.58123 | J33: =OFFSET(Template!J12,-$P$12,0,1,1) -> 0 | K33: =Template!K12 -> 0 | L33: =Template!L12 -> 4000 | M33: =Template!M12 -> 2500 | N33: =Template!N12 -> 750 | O33: 4821.664074 | P33: =Template!P12 -> 0 | Q33: =Template!Q12 -> 0 | R33: =Template!R12 -> 750 | S33: =Template!S12 -> 450 | T33: =Template!T12 -> 150 | U33: 897.8271034 | V33: =Template!V12 -> 0 | W33: =Template!W12 -> 0 | X33: =Template!X12 -> 750 | Y33: =Template!Y12 -> 450 | Z33: =Template!Z12 -> 150 | AA33: 897.8271034 | AB33: =Template!AB12 -> 0 | AC33: =Template!AC12 -> 0 | AD33: =Template!AD12 -> 750 | AE33: =Template!AE12 -> 450 | AF33: =Template!AF12 -> 150 | AG33: 897.8271034
A34: 2024/25 | B34: 8 | C34: 0.6274123713 | D34: =IF(P20<=0,OFFSET(Template!D13,-$P$13,0,1,1),0) -> 0 | E34: =IF(Q20<=0,OFFSET(Template!E13,-$P$13,0,1,1),0) -> 0 | F34: =IF(SUM(D27:D34)=0,AB5,0) -> 24985.16364 | G34: =IF(SUM(D27:D34)=0,AB6,0) -> 6242.778182 | H34: =IF(SUM(D27:D34)=0,AB7,0) -> 8122.909091 | I34: 24689.21068 | J34: =OFFSET(Template!J13,-$P$12,0,1,1) -> 0 | K34: =Template!K13 -> 0 | L34: =Template!L13 -> 8000 | M34: =Template!M13 -> 5000 | N34: =Template!N13 -> 1500 | O34: 9097.479384 | P34: =Template!P13 -> 0 | Q34: =Template!Q13 -> 0 | R34: =Template!R13 -> 1000 | S34: =Template!S13 -> 600 | T34: =Template!T13 -> 200 | U34: 1129.342268 | V34: =Template!V13 -> 0 | W34: =Template!W13 -> 0 | X34: =Template!X13 -> 1000 | Y34: =Template!Y13 -> 600 | Z34: =Template!Z13 -> 200 | AA34: 1129.342268 | AB34: =Template!AB13 -> 0 | AC34: =Template!AC13 -> 0 | AD34: =Template!AD13 -> 1000 | AE34: =Template!AE13 -> 600 | AF34: =Template!AF13 -> 200 | AG34: 1129.342268
A35: 2025/26 | B35: 9 | C35: 0.5918984635 | D35: =IF(P21<=0,OFFSET(Template!D14,-$P$13,0,1,1),0) -> 403200 | E35: =IF(Q21<=0,OFFSET(Template!E14,-$P$13,0,1,1),0) -> 0 | F35: =IF(SUM(D27:D35)=0,AC5,0) -> 0 | G35: =IF(SUM(D27:D35)=0,AC6,0) -> 0 | H35: =IF(SUM(D27:D35)=0,AC7,0) -> 0 | I35: 238653.4605 | J35: =OFFSET(Template!J14,-$P$12,0,1,1) -> 0 | K35: =Template!K14 -> 0 | L35: =Template!L14 -> 12000 | M35: =Template!M14 -> 7500 | N35: =Template!N14 -> 2250 | O35: 12873.79158 | P35: =Template!P14 -> 0 | Q35: =Template!Q14 -> 0 | R35: =Template!R14 -> 1250 | S35: =Template!S14 -> 750 | T35: =Template!T14 -> 250 | U35: 1331.771543 | V35: =Template!V14 -> 0 | W35: =Template!W14 -> 0 | X35: =Template!X14 -> 1250 | Y35: =Template!Y14 -> 750 | Z35: =Template!Z14 -> 250 | AA35: 1331.771543 | AB35: =Template!AB14 -> 0 | AC35: =Template!AC14 -> 0 | AD35: =Template!AD14 -> 1250 | AE35: =Template!AE14 -> 750 | AF35: =Template!AF14 -> 250 | AG35: 1331.771543
A36: 2026/27 | B36: 10 | C36: 0.5583947769 | D36: =IF(P22<=0,OFFSET(Template!D15,-$P$13,0,1,1),0) -> 0 | E36: =IF(Q22<=0,OFFSET(Template!E15,-$P$13,0,1,1),0) -> 0 | F36: =IF(SUM(D27:D36)=0,AN8,0) -> 0 | G36: =IF(SUM(D27:D36)=0,AN9,0) -> 0 | H36: =IF(SUM(D27:D36)=0,AN10,0) -> 0 | I36: 0 | J36: =OFFSET(Template!J15,-$P$12,0,1,1) -> 0 | K36: =Template!K15 -> 0 | L36: =Template!L15 -> 16000 | M36: =Template!M15 -> 10000 | N36: =Template!N15 -> 3000 | O36: 16193.44853 | P36: =Template!P15 -> 0 | Q36: =Template!Q15 -> 0 | R36: =Template!R15 -> 1500 | S36: =Template!S15 -> 900 | T36: =Template!T15 -> 300 | U36: 1507.665898 | V36: =Template!V15 -> 0 | W36: =Template!W15 -> 0 | X36: =Template!X15 -> 1500 | Y36: =Template!Y15 -> 900 | Z36: =Template!Z15 -> 300 | AA36: 1507.665898 | AB36: =Template!AB15 -> 0 | AC36: =Template!AC15 -> 0 | AD36: =Template!AD15 -> 1500 | AE36: =Template!AE15 -> 900 | AF36: =Template!AF15 -> 300 | AG36: 1507.665898
A37: 2027/28 | B37: 11 | C37: 0.5267875254 | D37: =IF(P23<=0,OFFSET(Template!D16,-$P$13,0,1,1),0) -> 0 | E37: =IF(Q23<=0,OFFSET(Template!E16,-$P$13,0,1,1),0) -> 82000 | F37: =IF(SUM(D27:D37)=0,AO8,0) -> 0 | G37: =IF(SUM(D27:D37)=0,AO9,0) -> 0 | H37: =IF(SUM(D27:D37)=0,AO10,0) -> 0 | I37: 43196.57708 | J37: =OFFSET(Template!J16,-$P$12,0,1,1) -> 403200 | K37: =Template!K16 -> 0 | L37: =Template!L16 -> 0 | M37: =Template!M16 -> 0 | N37: =Template!N16 -> 0 | O37: 212400.7302 | P37: =Template!P16 -> 0 | Q37: =Template!Q16 -> 0 | R37: =Template!R16 -> 1750 | S37: =Template!S16 -> 1050 | T37: =Template!T16 -> 350 | U37: 1659.380705 | V37: =Template!V16 -> 0 | W37: =Template!W16 -> 0 | X37: =Template!X16 -> 1750 | Y37: =Template!Y16 -> 1050 | Z37: =Template!Z16 -> 350 | AA37: 1659.380705 | AB37: =Template!AB16 -> 0 | AC37: =Template!AC16 -> 0 | AD37: =Template!AD16 -> 1750 | AE37: =Template!AE16 -> 1050 | AF37: =Template!AF16 -> 350 | AG37: 1659.380705
A38: 2028/29 | B38: 12 | C38: 0.4969693636 | D38: =IF(P24<=0,OFFSET(Template!D17,-$P$13,0,1,1),0) -> 0 | E38: =IF(Q24<=0,OFFSET(Template!E17,-$P$13,0,1,1),0) -> 0 | F38: =Template!F17 -> 0 | G38: =Template!G17 -> 0 | H38: =Template!H17 -> 0 | I38: 0 | J38: =OFFSET(Template!J17,-$P$12,0,1,1) -> 0 | K38: =Template!K17 -> 0 | L38: =Template!L17 -> 0 | M38: =Template!M17 -> 0 | N38: =Template!N17 -> 0 | O38: 0 | P38: =Template!P17 -> 0 | Q38: =Template!Q17 -> 0 | R38: =Template!R17 -> 2000 | S38: =Template!S17 -> 1200 | T38: =Template!T17 -> 400 | U38: 1789.089709 | V38: =Template!V17 -> 0 | W38: =Template!W17 -> 0 | X38: =Template!X17 -> 2000 | Y38: =Template!Y17 -> 1200 | Z38: =Template!Z17 -> 400 | AA38: 1789.089709 | AB38: =Template!AB17 -> 0 | AC38: =Template!AC17 -> 0 | AD38: =Template!AD17 -> 2000 | AE38: =Template!AE17 -> 1200 | AF38: =Template!AF17 -> 400 | AG38: 1789.089709
A39: 2029/30 | B39: 13 | C39: 0.4688390222 | D39: =IF(P25<=0,OFFSET(Template!D18,-$P$13,0,1,1),0) -> 0 | E39: =IF(Q25<=0,OFFSET(Template!E18,-$P$13,0,1,1),0) -> 0 | F39: =Template!F18 -> 250 | G39: =Template!G18 -> 150 | H39: =Template!H18 -> 50 | I39: 210.97756 | J39: =OFFSET(Template!J18,-$P$12,0,1,1) -> 0 | K39: =Template!K18 -> 82000 | L39: =Template!L18 -> 0 | M39: =Template!M18 -> 0 | N39: =Template!N18 -> 0 | O39: 38444.79982 | P39: =Template!P18 -> 0 | Q39: =Template!Q18 -> 0 | R39: =Template!R18 -> 2250 | S39: =Template!S18 -> 1350 | T39: =Template!T18 -> 450 | U39: 1898.79804 | V39: =Template!V18 -> 0 | W39: =Template!W18 -> 0 | X39: =Template!X18 -> 2250 | Y39: =Template!Y18 -> 1350 | Z39: =Template!Z18 -> 450 | AA39: 1898.79804 | AB39: =Template!AB18 -> 0 | AC39: =Template!AC18 -> 0 | AD39: =Template!AD18 -> 2250 | AE39: =Template!AE18 -> 1350 | AF39: =Template!AF18 -> 450 | AG39: 1898.79804
A40: 2030/31 | B40: 14 | C40: 0.4423009644 | D40: =IF(P26<=0,OFFSET(Template!D19,-$P$13,0,1,1),0) -> 0 | E40: =IF(Q26<=0,OFFSET(Template!E19,-$P$13,0,1,1),0) -> 0 | F40: =Template!F19 -> 500 | G40: =Template!G19 -> 300 | H40: =Template!H19 -> 100 | I40: 398.0708679 | J40: =OFFSET(Template!J19,-$P$12,0,1,1) -> 0 | K40: =Template!K19 -> 0 | L40: =Template!L19 -> 0 | M40: =Template!M19 -> 0 | N40: =Template!N19 -> 0 | O40: 0 | P40: =Template!P19 -> 0 | Q40: =Template!Q19 -> 0 | R40: =Template!R19 -> 2500 | S40: =Template!S19 -> 1500 | T40: =Template!T19 -> 500 | U40: 1990.35434 | V40: =Template!V19 -> 0 | W40: =Template!W19 -> 0 | X40: =Template!X19 -> 2500 | Y40: =Template!Y19 -> 1500 | Z40: =Template!Z19 -> 500 | AA40: 1990.35434 | AB40: =Template!AB19 -> 0 | AC40: =Template!AC19 -> 0 | AD40: =Template!AD19 -> 2500 | AE40: =Template!AE19 -> 1500 | AF40: =Template!AF19 -> 500 | AG40: 1990.35434
A41: 2031/32 | B41: 15 | C41: 0.4172650607 | D41: =IF(P27<=0,OFFSET(Template!D20,-$P$13,0,1,1),0) -> 0 | E41: =IF(Q27<=0,OFFSET(Template!E20,-$P$13,0,1,1),0) -> 0 | F41: =Template!F20 -> 750 | G41: =Template!G20 -> 450 | H41: =Template!H20 -> 150 | I41: 563.307832 | J41: =OFFSET(Template!J20,-$P$12,0,1,1) -> 0 | K41: =Template!K20 -> 0 | L41: =Template!L20 -> 250 | M41: =Template!M20 -> 150 | N41: =Template!N20 -> 50 | O41: 187.7692773 | P41: =Template!P20 -> 0 | Q41: =Template!Q20 -> 82000 | R41: =Template!R20 -> 0 | S41: =Template!S20 -> 0 | T41: =Template!T20 -> 0 | U41: 34215.73498 | V41: =Template!V20 -> 0 | W41: =Template!W20 -> 0 | X41: =Template!X20 -> 2750 | Y41: =Template!Y20 -> 1650 | Z41: =Template!Z20 -> 550 | AA41: 2065.462051 | AB41: =Template!AB20 -> 0 | AC41: =Template!AC20 -> 0 | AD41: =Template!AD20 -> 2750 | AE41: =Template!AE20 -> 1650 | AF41: =Template!AF20 -> 550 | AG41: 2065.462051
A42: 2032/33 | B42: 16 | C42: 0.3936462837 | D42: =IF(P28<=0,OFFSET(Template!D21,-$P$13,0,1,1),0) -> 0 | E42: =IF(Q28<=0,OFFSET(Template!E21,-$P$13,0,1,1),0) -> 0 | F42: =Template!F21 -> 1000 | G42: =Template!G21 -> 600 | H42: =Template!H21 -> 200 | I42: 708.5633107 | J42: =OFFSET(Template!J21,-$P$12,0,1,1) -> 0 | K42: =Template!K21 -> 0 | L42: =Template!L21 -> 500 | M42: =Template!M21 -> 300 | N42: =Template!N21 -> 100 | O42: 354.2816553 | P42: =Template!P21 -> 0 | Q42: =Template!Q21 -> 0 | R42: =Template!R21 -> 0 | S42: =Template!S21 -> 0 | T42: =Template!T21 -> 0 | U42: 0 | V42: =Template!V21 -> 0 | W42: =Template!W21 -> 0 | X42: =Template!X21 -> 3000 | Y42: =Template!Y21 -> 1800 | Z42: =Template!Z21 -> 600 | AA42: 2125.689932 | AB42: =Template!AB21 -> 0 | AC42: =Template!AC21 -> 0 | AD42: =Template!AD21 -> 3000 | AE42: =Template!AE21 -> 1800 | AF42: =Template!AF21 -> 600 | AG42: 2125.689932
A43: 2033/34 | B43: 17 | C43: 0.3713644186 | D43: =IF(P29<=0,OFFSET(Template!D22,-$P$13,0,1,1),0) -> 0 | E43: =IF(Q29<=0,OFFSET(Template!E22,-$P$13,0,1,1),0) -> 0 | F43: =Template!F22 -> 1250 | G43: =Template!G22 -> 750 | H43: =Template!H22 -> 250 | I43: 835.5699418 | J43: =OFFSET(Template!J22,-$P$12,0,1,1) -> 0 | K43: =Template!K22 -> 0 | L43: =Template!L22 -> 750 | M43: =Template!M22 -> 450 | N43: =Template!N22 -> 150 | O43: 501.3419651 | P43: =Template!P22 -> 0 | Q43: =Template!Q22 -> 0 | R43: =Template!R22 -> 400 | S43: =Template!S22 -> 250 | T43: =Template!T22 -> 75 | U43: 269.2392035 | V43: =Template!V22 -> 0 | W43: =Template!W22 -> 82000 | X43: =Template!X22 -> 0 | Y43: =Template!Y22 -> 0 | Z43: =Template!Z22 -> 0 | AA43: 30451.88232 | AB43: =Template!AB22 -> 0 | AC43: =Template!AC22 -> 82000 | AD43: =Template!AD22 -> 0 | AE43: =Template!AE22 -> 0 | AF43: =Template!AF22 -> 0 | AG43: 30451.88232
A44: 2034/35 | B44: 18 | C44: 0.3503437911 | D44: =IF(P30<=0,OFFSET(Template!D23,-$P$13,0,1,1),0) -> 0 | E44: =IF(Q30<=0,OFFSET(Template!E23,-$P$13,0,1,1),0) -> 0 | F44: =Template!F23 -> 1500 | G44: =Template!G23 -> 900 | H44: =Template!H23 -> 300 | I44: 945.928236 | J44: =OFFSET(Template!J23,-$P$12,0,1,1) -> 0 | K44: =Template!K23 -> 0 | L44: =Template!L23 -> 1000 | M44: =Template!M23 -> 600 | N44: =Template!N23 -> 200 | O44: 630.618824 | P44: =Template!P23 -> 0 | Q44: =Template!Q23 -> 0 | R44: =Template!R23 -> 800 | S44: =Template!S23 -> 500 | T44: =Template!T23 -> 150 | U44: 507.9984971 | V44: =Template!V23 -> 0 | W44: =Template!W23 -> 0 | X44: =Template!X23 -> 0 | Y44: =Template!Y23 -> 0 | Z44: =Template!Z23 -> 0 | AA44: 0 | AB44: =Template!AB23 -> 0 | AC44: =Template!AC23 -> 0 | AD44: =Template!AD23 -> 0 | AE44: =Template!AE23 -> 0 | AF44: =Template!AF23 -> 0 | AG44: 0
A45: 2035/36 | B45: 19 | C45: 0.3305130105 | D45: =IF(P31<=0,OFFSET(Template!D24,-$P$13,0,1,1),0) -> 0 | E45: =IF(Q31<=0,OFFSET(Template!E24,-$P$13,0,1,1),0) -> 0 | F45: =Template!F24 -> 1750 | G45: =Template!G24 -> 1050 | H45: =Template!H24 -> 350 | I45: 1041.115983 | J45: =OFFSET(Template!J24,-$P$12,0,1,1) -> 0 | K45: =Template!K24 -> 0 | L45: =Template!L24 -> 1250 | M45: =Template!M24 -> 750 | N45: =Template!N24 -> 250 | O45: 743.6542736 | P45: =Template!P24 -> 0 | Q45: =Template!Q24 -> 0 | R45: =Template!R24 -> 1200 | S45: =Template!S24 -> 750 | T45: =Template!T24 -> 225 | U45: 718.8657978 | V45: =Template!V24 -> 0 | W45: =Template!W24 -> 0 | X45: =Template!X24 -> 400 | Y45: =Template!Y24 -> 250 | Z45: =Template!Z24 -> 75 | AA45: 239.6219326 | AB45: =Template!AB24 -> 0 | AC45: =Template!AC24 -> 0 | AD45: =Template!AD24 -> 400 | AE45: =Template!AE24 -> 250 | AF45: =Template!AF24 -> 75 | AG45: 239.6219326
A46: 2036/37 | B46: 20 | C46: 0.3118047269 | D46: =IF(P32<=0,OFFSET(Template!D25,-$P$13,0,1,1),0) -> 0 | E46: =IF(Q32<=0,OFFSET(Template!E25,-$P$13,0,1,1),0) -> 0 | F46: =Template!F25 -> 2000 | G46: =Template!G25 -> 1200 | H46: =Template!H25 -> 400 | I46: 1122.497017 | J46: =OFFSET(Template!J25,-$P$12,0,1,1) -> 0 | K46: =Template!K25 -> 0 | L46: =Template!L25 -> 1500 | M46: =Template!M25 -> 900 | N46: =Template!N25 -> 300 | O46: 841.8727626 | P46: =Template!P25 -> 0 | Q46: =Template!Q25 -> 0 | R46: =Template!R25 -> 1600 | S46: =Template!S25 -> 1000 | T46: =Template!T25 -> 300 | U46: 904.233708 | V46: =Template!V25 -> 0 | W46: =Template!W25 -> 0 | X46: =Template!X25 -> 800 | Y46: =Template!Y25 -> 500 | Z46: =Template!Z25 -> 150 | AA46: 452.116854 | AB46: =Template!AB25 -> 0 | AC46: =Template!AC25 -> 0 | AD46: =Template!AD25 -> 800 | AE46: =Template!AE25 -> 500 | AF46: =Template!AF25 -> 150 | AG46: 452.116854
A47: 2037/38 | B47: 21 | C47: 0.2941554027 | D47: =IF(P33<=0,OFFSET(Template!D26,-$P$13,0,1,1),0) -> 0 | E47: =IF(Q33<=0,OFFSET(Template!E26,-$P$13,0,1,1),0) -> 0 | F47: =Template!F26 -> 2250 | G47: =Template!G26 -> 1350 | H47: =Template!H26 -> 450 | I47: 1191.329381 | J47: =OFFSET(Template!J26,-$P$12,0,1,1) -> 0 | K47: =Template!K26 -> 0 | L47: =Template!L26 -> 1750 | M47: =Template!M26 -> 1050 | N47: =Template!N26 -> 350 | O47: 926.5895186 | P47: =Template!P26 -> 0 | Q47: =Template!Q26 -> 0 | R47: =Template!R26 -> 2000 | S47: =Template!S26 -> 1250 | T47: =Template!T26 -> 375 | U47: 1066.313335 | V47: =Template!V26 -> 0 | W47: =Template!W26 -> 0 | X47: =Template!X26 -> 1200 | Y47: =Template!Y26 -> 750 | Z47: =Template!Z26 -> 225 | AA47: 639.7880009 | AB47: =Template!AB26 -> 0 | AC47: =Template!AC26 -> 0 | AD47: =Template!AD26 -> 1200 | AE47: =Template!AE26 -> 750 | AF47: =Template!AF26 -> 225 | AG47: 639.7880009
A48: 2038/39 | B48: 22 | C48: 0.2775050969 | D48: =IF(P34<=0,OFFSET(Template!D27,-$P$13,0,1,1),0) -> 0 | E48: =IF(Q34<=0,OFFSET(Template!E27,-$P$13,0,1,1),0) -> 0 | F48: =Template!F27 -> 2500 | G48: =Template!G27 -> 1500 | H48: =Template!H27 -> 500 | I48: 1248.772936 | J48: =OFFSET(Template!J27,-$P$12,0,1,1) -> 0 | K48: =Template!K27 -> 0 | L48: =Template!L27 -> 2000 | M48: =Template!M27 -> 1200 | N48: =Template!N27 -> 400 | O48: 999.0183489 | P48: =Template!P27 -> 0 | Q48: =Template!Q27 -> 0 | R48: =Template!R27 -> 2400 | S48: =Template!S27 -> 1500 | T48: =Template!T27 -> 450 | U48: 1207.147172 | V48: =Template!V27 -> 0 | W48: =Template!W27 -> 0 | X48: =Template!X27 -> 1600 | Y48: =Template!Y27 -> 1000 | Z48: =Template!Z27 -> 300 | AA48: 804.764781 | AB48: =Template!AB27 -> 0 | AC48: =Template!AC27 -> 0 | AD48: =Template!AD27 -> 1600 | AE48: =Template!AE27 -> 1000 | AF48: =Template!AF27 -> 300 | AG48: 804.764781
A49: 2039/40 | B49: 23 | C49: 0.2617972612 | D49: =IF(P35<=0,OFFSET(Template!D28,-$P$13,0,1,1),0) -> 0 | E49: =IF(Q35<=0,OFFSET(Template!E28,-$P$13,0,1,1),0) -> 0 | F49: =Template!F28 -> 2750 | G49: =Template!G28 -> 1650 | H49: =Template!H28 -> 550 | I49: 1295.896443 | J49: =OFFSET(Template!J28,-$P$12,0,1,1) -> 0 | K49: =Template!K28 -> 0 | L49: =Template!L28 -> 2250 | M49: =Template!M28 -> 1350 | N49: =Template!N28 -> 450 | O49: 1060.278908 | P49: =Template!P28 -> 0 | Q49: =Template!Q28 -> 0 | R49: =Template!R28 -> 2800 | S49: =Template!S28 -> 1750 | T49: =Template!T28 -> 525 | U49: 1328.621101 | V49: =Template!V28 -> 0 | W49: =Template!W28 -> 0 | X49: =Template!X28 -> 2000 | Y49: =Template!Y28 -> 1250 | Z49: =Template!Z28 -> 375 | AA49: 949.015072 | AB49: =Template!AB28 -> 0 | AC49: =Template!AC28 -> 0 | AD49: =Template!AD28 -> 2000 | AE49: =Template!AE28 -> 1250 | AF49: =Template!AF28 -> 375 | AG49: 949.015072
A50: 2040/41 | B50: 24 | C50: 0.2469785483 | D50: =IF(P36<=0,OFFSET(Template!D29,-$P$13,0,1,1),0) -> 0 | E50: =IF(Q36<=0,OFFSET(Template!E29,-$P$13,0,1,1),0) -> 0 | F50: =Template!F29 -> 3000 | G50: =Template!G29 -> 1800 | H50: =Template!H29 -> 600 | I50: 1333.684161 | J50: =OFFSET(Template!J29,-$P$12,0,1,1) -> 0 | K50: =Template!K29 -> 0 | L50: =Template!L29 -> 2500 | M50: =Template!M29 -> 1500 | N50: =Template!N29 -> 500 | O50: 1111.403468 | P50: =Template!P29 -> 0 | Q50: =Template!Q29 -> 0 | R50: =Template!R29 -> 3200 | S50: =Template!S29 -> 2000 | T50: =Template!T29 -> 600 | U50: 1432.47558 | V50: =Template!V29 -> 0 | W50: =Template!W29 -> 0 | X50: =Template!X29 -> 2400 | Y50: =Template!Y29 -> 1500 | Z50: =Template!Z29 -> 450 | AA50: 1074.356685 | AB50: =Template!AB29 -> 0 | AC50: =Template!AC29 -> 0 | AD50: =Template!AD29 -> 2400 | AE50: =Template!AE29 -> 1500 | AF50: =Template!AF29 -> 450 | AG50: 1074.356685
A51: 2041/42 | B51: 25 | C51: 0.2329986305 | D51: =IF(P37<=0,OFFSET(Template!D30,-$P$13,0,1,1),0) -> 0 | E51: =IF(Q37<=0,OFFSET(Template!E30,-$P$13,0,1,1),0) -> 82000 | F51: =Template!F30 -> 0 | G51: =Template!G30 -> 0 | H51: =Template!H30 -> 0 | I51: 19105.8877 | J51: =OFFSET(Template!J30,-$P$12,0,1,1) -> 0 | K51: =Template!K30 -> 0 | L51: =Template!L30 -> 2750 | M51: =Template!M30 -> 1650 | N51: =Template!N30 -> 550 | O51: 1153.343221 | P51: =Template!P30 -> 0 | Q51: =Template!Q30 -> 0 | R51: =Template!R30 -> 3600 | S51: =Template!S30 -> 2250 | T51: =Template!T30 -> 675 | U51: 1520.316064 | V51: =Template!V30 -> 0 | W51: =Template!W30 -> 0 | X51: =Template!X30 -> 2800 | Y51: =Template!Y30 -> 1750 | Z51: =Template!Z30 -> 525 | AA51: 1182.46805 | AB51: =Template!AB30 -> 0 | AC51: =Template!AC30 -> 0 | AD51: =Template!AD30 -> 2800 | AE51: =Template!AE30 -> 1750 | AF51: =Template!AF30 -> 525 | AG51: 1182.46805
A52: 2042/43 | B52: 26 | C52: 0.2198100288 | D52: =IF(P38<=0,OFFSET(Template!D31,-$P$13,0,1,1),0) -> 0 | E52: =IF(Q38<=0,OFFSET(Template!E31,-$P$13,0,1,1),0) -> 0 | F52: =Template!F31 -> 0 | G52: =Template!G31 -> 0 | H52: =Template!H31 -> 0 | I52: 0 | J52: =OFFSET(Template!J31,-$P$12,0,1,1) -> 0 | K52: =Template!K31 -> 0 | L52: =Template!L31 -> 3000 | M52: =Template!M31 -> 1800 | N52: =Template!N31 -> 600 | O52: 1186.974155 | P52: =Template!P31 -> 0 | Q52: =Template!Q31 -> 0 | R52: =Template!R31 -> 4000 | S52: =Template!S31 -> 2500 | T52: =Template!T31 -> 750 | U52: 1593.622709 | V52: =Template!V31 -> 0 | W52: =Template!W31 -> 0 | X52: =Template!X31 -> 3200 | Y52: =Template!Y31 -> 2000 | Z52: =Template!Z31 -> 600 | AA52: 1274.898167 | AB52: =Template!AB31 -> 0 | AC52: =Template!AC31 -> 0 | AD52: =Template!AD31 -> 3200 | AE52: =Template!AE31 -> 2000 | AF52: =Template!AF31 -> 600 | AG52: 1274.898167
A53: 2043/44 | B53: 27 | C53: 0.2073679517 | D53: =IF(P39<=0,OFFSET(Template!D32,-$P$13,0,1,1),0) -> 0 | E53: =IF(Q39<=0,OFFSET(Template!E32,-$P$13,0,1,1),0) -> 0 | F53: =Template!F32 -> 400 | G53: =Template!G32 -> 250 | H53: =Template!H32 -> 75 | I53: 150.341765 | J53: =OFFSET(Template!J32,-$P$12,0,1,1) -> 0 | K53: =Template!K32 -> 82000 | L53: =Template!L32 -> 0 | M53: =Template!M32 -> 0 | N53: =Template!N32 -> 0 | O53: 17004.17204 | P53: =Template!P32 -> 0 | Q53: =Template!Q32 -> 0 | R53: =Template!R32 -> 4400 | S53: =Template!S32 -> 2750 | T53: =Template!T32 -> 825 | U53: 1653.759415 | V53: =Template!V32 -> 0 | W53: =Template!W32 -> 0 | X53: =Template!X32 -> 3600 | Y53: =Template!Y32 -> 2250 | Z53: =Template!Z32 -> 675 | AA53: 1353.075885 | AB53: =Template!AB32 -> 0 | AC53: =Template!AC32 -> 0 | AD53: =Template!AD32 -> 3600 | AE53: =Template!AE32 -> 2250 | AF53: =Template!AF32 -> 675 | AG53: 1353.075885
A54: 2044/45 | B54: 28 | C54: 0.1956301431 | D54: =IF(P40<=0,OFFSET(Template!D33,-$P$13,0,1,1),0) -> 0 | E54: =IF(Q40<=0,OFFSET(Template!E33,-$P$13,0,1,1),0) -> 0 | F54: =Template!F33 -> 800 | G54: =Template!G33 -> 500 | H54: =Template!H33 -> 150 | I54: 283.6637075 | J54: =OFFSET(Template!J33,-$P$12,0,1,1) -> 0 | K54: =Template!K33 -> 0 | L54: =Template!L33 -> 0 | M54: =Template!M33 -> 0 | N54: =Template!N33 -> 0 | O54: 0 | P54: =Template!P33 -> 0 | Q54: =Template!Q33 -> 0 | R54: =Template!R33 -> 4800 | S54: =Template!S33 -> 3000 | T54: =Template!T33 -> 900 | U54: 1701.982245 | V54: =Template!V33 -> 0 | W54: =Template!W33 -> 0 | X54: =Template!X33 -> 4000 | Y54: =Template!Y33 -> 2500 | Z54: =Template!Z33 -> 750 | AA54: 1418.318537 | AB54: =Template!AB33 -> 0 | AC54: =Template!AC33 -> 0 | AD54: =Template!AD33 -> 4000 | AE54: =Template!AE33 -> 2500 | AF54: =Template!AF33 -> 750 | AG54: 1418.318537
A55: 2045/46 | B55: 29 | C55: 0.1845567388 | D55: =IF(P41<=0,OFFSET(Template!D34,-$P$13,0,1,1),0) -> 0 | E55: =IF(Q41<=0,OFFSET(Template!E34,-$P$13,0,1,1),0) -> 0 | F55: =Template!F34 -> 1200 | G55: =Template!G34 -> 750 | H55: =Template!H34 -> 225 | I55: 401.4109068 | J55: =OFFSET(Template!J34,-$P$12,0,1,1) -> 0 | K55: =Template!K34 -> 0 | L55: =Template!L34 -> 400 | M55: =Template!M34 -> 250 | N55: =Template!N34 -> 75 | O55: 133.8036356 | P55: =Template!P34 -> 0 | Q55: =Template!Q34 -> 82000 | R55: =Template!R34 -> 0 | S55: =Template!S34 -> 0 | T55: =Template!T34 -> 0 | U55: 15133.65258 | V55: =Template!V34 -> 0 | W55: =Template!W34 -> 0 | X55: =Template!X34 -> 4400 | Y55: =Template!Y34 -> 2750 | Z55: =Template!Z34 -> 825 | AA55: 1471.839992 | AB55: =Template!AB34 -> 0 | AC55: =Template!AC34 -> 0 | AD55: =Template!AD34 -> 4400 | AE55: =Template!AE34 -> 2750 | AF55: =Template!AF34 -> 825 | AG55: 1471.839992
A56: 2046/47 | B56: 30 | C56: 0.1741101309 | D56: =IF(P42<=0,OFFSET(Template!D35,-$P$13,0,1,1),0) -> 0 | E56: =IF(Q42<=0,OFFSET(Template!E35,-$P$13,0,1,1),0) -> 0 | F56: =Template!F35 -> 1600 | G56: =Template!G35 -> 1000 | H56: =Template!H35 -> 300 | I56: 504.9193796 | J56: =OFFSET(Template!J35,-$P$12,0,1,1) -> 0 | K56: =Template!K35 -> 0 | L56: =Template!L35 -> 800 | M56: =Template!M35 -> 500 | N56: =Template!N35 -> 150 | O56: 252.4596898 | P56: =Template!P35 -> 0 | Q56: =Template!Q35 -> 0 | R56: =Template!R35 -> 0 | S56: =Template!S35 -> 0 | T56: =Template!T35 -> 0 | U56: 0 | V56: =Template!V35 -> 0 | W56: =Template!W35 -> 0 | X56: =Template!X35 -> 4800 | Y56: =Template!Y35 -> 3000 | Z56: =Template!Z35 -> 900 | AA56: 1514.758139 | AB56: =Template!AB35 -> 0 | AC56: =Template!AC35 -> 0 | AD56: =Template!AD35 -> 4800 | AE56: =Template!AE35 -> 3000 | AF56: =Template!AF35 -> 900 | AG56: 1514.758139
H57: Discounted Total Cost | I57: =SUM(I27:I56) -> 542516.1067 | N57: Discounted Total Cost | O57: =SUM(O27:O56) -> 513505.915 | T57: Discounted Total Cost | U57: =SUM(U27:U56) -> 418673.9303 | Z57: Discounted Total Cost | AA57: =SUM(AA27:AA56) -> 509419.1564 | AF57: Discounted Total Cost | AG57: =SUM(AG27:AG56) -> 628287.0809
D59: OPTIONS SUMMARY - DO MINIMUM | J59: OPTIONS SUMMARY - HEAVY MAINTENANCE | P59: OPTIONS SUMMARY - PAVEMENT REHAB No.1 | V59: OPTIONS SUMMARY - PAVEMENT REHAB No.2 | AB59: OPTIONS SUMMARY - PAVEMENT REHAB No.3
D60: Short Term Present Value (7yr) | H60: =SUM(I27:I33) -> 204634.9213 | J60: Contract Period Present Value | N60: =SUM(O27:O33) -> 197408.0837 | P60: Contract Period Present Value | T60: =SUM(U27:U33) -> 344113.5654 | V60: Contract Period Present Value | Z60: =SUM(AA27:AA33) -> 451094.6975 | AB60: Contract Period Present Value | AF60: =SUM(AG27:AG33) -> 569962.622
D61: Long Term Present Value (30yr) | H61: =I57 -> 542516.1067 | J61: 30yr Present Value | N61: =O57 -> 513505.915 | P61: 30yr Present Value | T61: =U57 -> 418673.9303 | V61: 30yr Present Value | Z61: =AA57 -> 509419.1564 | AB61: 30yr Present Value | AF61: =AG57 -> 628287.0809
H62: CHECKPOINT 1 | J62: NPV (vs. Do Minimum) | M62: =IF(N62="Not Assessed","Review",IF(N62>(VLOOKUP(ONRC_Classification,Template!$B$106:$C$111,2,FALSE)),"Pass","Fail")) -> Pass | N62: =IF(O57<5000,"Not Assessed",H61-N61) -> 29010.19167 | P62: NPV (vs. Do Minimum) | S62: =IF(T62="Not Assessed","Review",IF(T62>(VLOOKUP(ONRC_Classification,Template!$B$106:$C$111,2,FALSE)),"Pass","Fail")) -> Pass | T62: =IF(T61<5000,"Not Assessed",H61-U57) -> 123842.1764 | V62: NPV (vs. Do Minimum) | Y62: =IF(Z62="Not Assessed","Review",IF(Z62>(VLOOKUP(ONRC_Classification,Template!$B$106:$C$111,2,FALSE)),"Pass","Fail")) -> Pass | Z62: =IF(Z61<5000,"Not Assessed",H61-AA57) -> 33096.95033 | AB62: NPV (vs. Do Minimum) | AE62: =IF(AF62="Not Assessed","Review",IF(AF62>(VLOOKUP(ONRC_Classification,Template!$B$106:$C$111,2,FALSE)),"Pass","Fail")) -> Fail | AF62: =IF(AF61<5000,"Not Assessed",H61-AG57) -> -85770.97419
H63: CHECKPOINT 2 | J63: EI | M63: =IF(ISNUMBER(N63),IF(N63<0,"Review",IF(N63<0.8,"Fail",IF(N63<2,"Pass",IF(N63>2,"Review","Check")))),"Review") -> Review | N63: =IF(O57<5000,"Not Assessed",(H61-N61)/(N60-H60)) -> -4.014230477 | P63: EI | S63: =IF(ISNUMBER(T63),IF(T63<0,"Review",IF(T63<0.8,"Fail",IF(T63<2,"Pass",IF(T63>2,"Review","Check")))),"Review") -> Pass | T63: =IF(U57<5000,"Not Assessed",(H61-T61)/(T60-H60)) -> 0.8878934639 | V63: EI | Y63: =IF(ISNUMBER(Z63),IF(Z63<0,"Review",IF(Z63<0.8,"Fail",IF(Z63<2,"Pass",IF(Z63>2,"Review","Check")))),"Review") -> Fail | Z63: =IF(AA57<5000,"Not Assessed",(H61-Z61)/(Z60-H60)) -> 0.1342894603 | AB63: EI | AE63: =IF(ISNUMBER(AF63),IF(AF63<0,"Review",IF(AF63<0.8,"Fail",IF(AF63<2,"Pass",IF(AF63>2,"Review","Check")))),"Review") -> Review | AF63: =IF(AG57<5000,"Not Assessed",(H61-AF61)/(AF60-H60)) -> -0.2347781842
D66: Checkpoint | F66: Process
D67: 1 | E67: 2 | F67: NPV | G67: EI
C68: Heavy Maintenance | D68: =IF(OR($M$62="Pass",$M$62="Review"),$N$62,"Fail") -> 29010.19167 | E68: =IF(AND($D$68<>"Fail",OR($M$63="Pass",$M$63="Review")),$N$63,"Fail") -> -4.014230477 | F68: =IF(E68<>"Fail",D68,"N/A") -> 29010.19167 | G68: =M63 -> Review | H68: Heavy Maintenance
C69: Renewal No.1 | D69: =IF(OR($S$62="Pass",$S$62="Review"),$T$62,"Fail") -> 123842.1764 | E69: =IF(AND(D69<>"Fail",OR($S$63="Pass",$S$63="Review")),$T$63,"Fail") -> 0.8878934639 | F69: =IF(E69<>"Fail",D69,"N/A") -> 123842.1764 | G69: =S63 -> Pass | H69: Renewal No.1
C70: Renewal No.2 | D70: =IF(OR($Y$62="Pass",$Y$62="Review"),$Z$62,"Fail") -> 33096.95033 | E70: =IF(AND(D70<>"Fail",OR($Y$63="Pass",$Y$63="Review")),$Z$63,"Fail") -> Fail | F70: =IF(E70<>"Fail",D70,"N/A") -> N/A | G70: =Y63 -> Fail | H70: Renewal No.2
C71: Renewal No.3 | D71: =IF(OR($AE$62="Pass",$AE$62="Review"),$AF$62,"Fail") -> Fail | E71: =IF(AND(D71<>"Fail",OR($AE$63="Pass",$AE$63="Review")),$AF$63,"Fail") -> Fail | F71: =IF(E71<>"Fail",D71,"N/A") -> N/A | G71: =AE63 -> Review | H71: Renewal No.3
K78: Ref. Year | L78: 1 | M78: 2 | N78: 3 | O78: 4 | P78: 5 | Q78: 6 | R78: 7 | S78: 8 | T78: 9 | U78: 10 | V78: 11 | W78: 12 | X78: 13 | Y78: 14 | Z78: 15 | AA78: 16 | AB78: 17 | AC78: 18 | AD78: 19 | AE78: 20 | AF78: 21 | AG78: 22 | AH78: 23
K79: Year | L79: 2007/08 | M79: 2008/09 | N79: 2009/10 | O79: 2010/11 | P79: 2011/12 | Q79: 2012/13 | R79: 2013/14 | S79: 2014/15 | T79: 2015/16 | U79: 2016/17 | V79: 2017/18 | W79: 2018/19 | X79: 2019/20 | Y79: 2020/21 | Z79: 2021/22 | AA79: 2022/23 | AB79: 2023/24 | AC79: 2024/25 | AD79: 2025/26 | AE79: 2026/27 | AF79: 2027/28 | AG79: 2028/29 | AH79: 2029/30
K80: Pavement | L80: ='Do Min Cost Model'!C6 -> 0 | M80: ='Do Min Cost Model'!D6 -> 0 | N80: ='Do Min Cost Model'!E6 -> 0 | O80: ='Do Min Cost Model'!F6 -> 51420 | P80: ='Do Min Cost Model'!G6 -> 13722 | Q80: ='Do Min Cost Model'!H6 -> 0 | R80: ='Do Min Cost Model'!I6 -> 3986 | S80: ='Do Min Cost Model'!J6 -> 0 | T80: ='Do Min Cost Model'!K6 -> 0 | U80: ='Do Min Cost Model'!L6 -> 13500 | V80: ='Do Min Cost Model'!M6*P7 -> 37500 | W80: =TREND($L$80:$V$80,$L$78:$V$78,W78)*$P$4 -> 17952.94545 | X80: 19124.98182 | Y80: 20297.01818 | Z80: 21469.05455 | AA80: 22641.09091 | AB80: 23813.12727 | AC80: 24985.16364 | AD80: 26157.2 | AE80: 27329.23636 | AF80: 28501.27273 | AG80: 29673.30909 | AH80: 30845.34545
K81: Surfacing | L81: ='Do Min Cost Model'!C7 -> 0 | M81: ='Do Min Cost Model'!D7 -> 12720 | N81: ='Do Min Cost Model'!E7 -> 8362.4 | O81: ='Do Min Cost Model'!F7 -> 0 | P81: ='Do Min Cost Model'!G7 -> 0 | Q81: ='Do Min Cost Model'!H7 -> 0 | R81: ='Do Min Cost Model'!I7 -> 1104 | S81: ='Do Min Cost Model'!J7 -> 0 | T81: ='Do Min Cost Model'!K7 -> 0 | U81: ='Do Min Cost Model'!L7 -> 5400 | V81: ='Do Min Cost Model'!M7*P7 -> 15000 | W81: =TREND($L$81:$V$81,$L$78:$V$78,W78)*$P$4 -> 5057.134545 | X81: 5254.741818 | Y81: 5452.349091 | Z81: 5649.956364 | AA81: 5847.563636 | AB81: 6045.170909 | AC81: 6242.778182 | AD81: 6440.385455 | AE81: 6637.992727 | AF81: 6835.6 | AG81: 7033.207273 | AH81: 7230.814545
K82: Shoulder | L82: ='Do Min Cost Model'!C8 -> 0 | M82: ='Do Min Cost Model'!D8 -> 0 | N82: ='Do Min Cost Model'!E8 -> 0 | O82: ='Do Min Cost Model'!F8 -> 0 | P82: ='Do Min Cost Model'!G8 -> 300 | Q82: ='Do Min Cost Model'!H8 -> 60 | R82: ='Do Min Cost Model'!I8 -> 6756 | S82: ='Do Min Cost Model'!J8 -> 7932 | T82: ='Do Min Cost Model'!K8 -> 0 | U82: ='Do Min Cost Model'!L8 -> 2400 | V82: ='Do Min Cost Model'!M8*P7 -> 4800 | W82: =TREND($L$82:$V$82,$L$78:$V$78,W78)*$P$4 -> 5072.727273 | X82: 5581.090909 | Y82: 6089.454545 | Z82: 6597.818182 | AA82: 7106.181818 | AB82: 7614.545455 | AC82: 8122.909091 | AD82: 8631.272727 | AE82: 9139.636364 | AF82: 9648 | AG82: 10156.36364 | AH82: 10664.72727

Sheet SensitivityWorst (hidden)
A1: Minimum Sensitivity Adjustment
O2: Adjustment | P2: Adjustment Factor | Q2: Scroll Value
F3: Decrease the maintenance cost progression -20% | T3: Year | U3: 1 | V3: 2 | W3: 3 | X3: 4 | Y3: 5 | Z3: 6 | AA3: 7 | AB3: 8 | AC3: 9 | AD3: 10 | AE3: 11 | AF3: 12 | AG3: 13
A4: Do Minimum Maintenance Cost Progression | E4: Decrease | M4: Increase | P4: 0.8 | U4: 2017/18 | V4: 2018/19 | W4: 2019/20 | X4: 2020/21 | Y4: 2021/22 | Z4: 2022/23 | AA4: 2023/24 | AB4: 2024/25 | AC4: 2025/26 | AD4: 2026/27 | AE4: 2027/28 | AF4: 2028/29 | AG4: 2029/30
S5: Maintenance Costs | T5: Pavement | U5: =V80 -> 30000 | V5: =W80 -> 12180.53818 | W5: 12845.44 | X5: 13510.34182 | Y5: 14175.24364 | Z5: 14840.14545 | AA5: 15505.04727 | AB5: 16169.94909 | AC5: 16834.85091 | AD5: 17499.75273 | AE5: 18164.65455 | AF5: 18829.55636 | AG5: 19494.45818
F6: Decrease Do Minimum Year 1 assessed maintenance costs -20% | T6: Surfacing | U6: =V81 -> 12000 | V6: 3172.980364 | W6: 3221.975273 | X6: 3270.970182 | Y6: 3319.965091 | Z6: 3368.96 | AA6: 3417.954909 | AB6: 3466.949818 | AC6: 3515.944727 | AD6: 3564.939636 | AE6: 3613.934545 | AF6: 3662.929455 | AG6: 3711.924364
A7: Year 1 Do Minimum Maintenance Costs | E7: Decrease | M7: Increase | P7: 0.8 | T7: Shoulder | U7: 3840 | V7: 3778.909091 | W7: 4150.690909 | X7: 4522.472727 | Y7: 4894.254545 | Z7: 5266.036364 | AA7: 5637.818182 | AB7: 6009.6 | AC7: 6381.381818 | AD7: 6753.163636 | AE7: 7124.945455 | AF7: 7496.727273 | AG7: 7868.509091
F9: Increase the Year 1 treatment estimate for proposed options +10%
A10: Year 1 Treatment Costs (excluding Do Minimum) | E10: Decrease | M10: Increase | P10: 1.1
F12: Defer the rehabilitation timing within the Do Minimum option +2 years
A13: Do Minimum Rehabilitation Timing | E13: Advance | M13: Defer | P13: -2
I16: BEFORE SENSITIVITY | K16: AFTER SENSITIVITY
F17: OPTIONS SUMMARY | I17: NPV | J17: EI | K17: NPV | L17: EI
F18: HEAVY MAINTENANCE | I18: =Template!N61 -> 29010.19167 | J18: =Template!N62 -> -4.014230477 | K18: =N62 ->  | L18: =N63 -> 
F19: RENEWAL No.1 | I19: =Template!T61 -> 123842.1764 | J19: =Template!T62 -> 0.8878934639 | K19: =T62 -> 31779.51244 | L19: =T63 -> -1.318609375
F20: RENEWAL No.2 | I20: =Template!Z61 -> 33096.95033 | J20: =Template!Z62 -> 0.1342894603 | K20: =Z62 -> -69663.82686 | L20: =Z63 -> -0.7444429176
F21: RENEWAL No.3 | I21: =Template!AF61 -> -85770.97419 | J21: =Template!AF62 -> -0.2347781842 | K21: =AF62 -> -200418.5438 | L21: =AF63 -> -0.8933967791
F22: PREFERED OPTION | I22: =VLOOKUP(MAX(Template!G101:G104),Template!G101:K104,4,FALSE) -> Renewal No.1 | K22: =IF(ISERROR(VLOOKUP(MAX(F68:F71),F68:H71,3,FALSE)),"Do Minimum",(VLOOKUP(MAX(F68:F71),F68:H71,3,FALSE))) -> Do Minimum
D25: DO MINIMUM | J25: HEAVY MAINTENANCE | P25: RENEWAL No.1 | V25: RENEWAL No.2 | AB25: RENEWAL No.3
A26: Year | C26: SPPWF | D26: Rehab | E26: Resurf | F26: Annual Maint (Pave) | G26: Annual Maint (Surf) | H26: Annual Maint (Should) | I26: Discounted Total Costs | J26: Rehab | K26: Resurf | L26: Annual Maint (Pave) | M26: Annual Maint (Surf) | N26: Annual Maint (Should) | O26: Discounted Total Costs | P26: Rehab | Q26: Resurf | R26: Annual Maint (Pave) | S26: Annual Maint (Surf) | T26: Annual Maint (Should) | U26: Discounted Total Costs | V26: Rehab | W26: Resurf | X26: Annual Maint (Pave) | Y26: Annual Maint (Surf) | Z26: Annual Maint (Should) | AA26: Discounted Total Costs | AB26: Rehab | AC26: Resurf | AD26: Annual Maint (Pave) | AE26: Annual Maint (Surf) | AF26: Annual Maint (Should) | AG26: Discounted Total Costs
A27: 2017/18 | B27: 1 | C27: =1/((1+6%)^B27) -> 0.9433962264 | D27: =Template!D6 -> 0 | E27: =Template!E6 -> 0 | F27: =IF(SUM(D27)=0,U5,0) -> 30000 | G27: =IF(SUM(D27)=0,U6,0) -> 12000 | H27: =IF(SUM(D27)=0,U7,0) -> 3840 | I27: =SUM(D27:H27)*C27 -> 43245.28302 | J27: =Template!L6*$P$10 -> 121330 | K27: =Template!K6 -> 0 | L27: =Template!#REF! ->  | M27: =Template!M6 -> 0 | N27: =Template!N6 -> 0 | O27: =SUM(J27:N27)*C27 ->  | P27: =Template!P6*$P$10 -> 318780 | Q27: =Template!Q6 -> 0 | R27: =Template!R6 -> 0 | S27: =Template!S6 -> 0 | T27: =Template!T6 -> 0 | U27: =SUM(P27:T27)*C27 -> 300735.8491 | V27: =Template!V6*$P$10 -> 443520 | W27: =Template!W6 -> 0 | X27: =Template!X6 -> 0 | Y27: =Template!Y6 -> 0 | Z27: =Template!Z6 -> 0 | AA27: =SUM(V27:Z27)*C27 -> 418415.0943 | AB27: =Template!AB6*$P$10 -> 582120 | AC27: =Template!AC6 -> 0 | AD27: =Template!AD6 -> 0 | AE27: =Template!AE6 -> 0 | AF27: =Template!AF6 -> 0 | AG27: =SUM(AB27:AF27)*C27 -> 549169.8113
A28: 2018/19 | B28: 2 | C28: 0.88999644 | D28: =Template!D7 -> 0 | E28: =Template!E7 -> 0 | F28: =IF(SUM(D27:D28)=0,V5,0) -> 12180.53818 | G28: =IF(SUM(D27:D28)=0,V6,0) -> 3172.980364 | H28: =IF(SUM(D27:D28)=0,V7,0) -> 3778.909091 | I28: 17027.79249 | J28: =Template!J7 -> 0 | K28: =Template!K7 -> 0 | L28: =Template!L7 -> 2000 | M28: =Template!M7 -> 1500 | N28: =Template!N7 -> 500 | O28: 3559.98576 | P28: =Template!P7 -> 0 | Q28: =Template!Q7 -> 0 | R28: =Template!R7 -> 0 | S28: =Template!S7 -> 0 | T28: =Template!T7 -> 0 | U28: 0 | V28: =Template!V7 -> 0 | W28: =Template!W7 -> 0 | X28: =Template!X7 -> 0 | Y28: =Template!Y7 -> 0 | Z28: =Template!Z7 -> 0 | AA28: 0 | AB28: =Template!AB7 -> 0 | AC28: =Template!AC7 -> 0 | AD28: =Template!AD7 -> 0 | AE28: =Template!AE7 -> 0 | AF28: =Template!AF7 -> 0 | AG28: 0
A29: 2019/20 | B29: 3 | C29: 0.839619283 | D29: =Template!D8 -> 0 | E29: =Template!E8 -> 0 | F29: =IF(SUM(D27:D29)=0,W5,0) -> 12845.44 | G29: =IF(SUM(D27:D29)=0,W6,0) -> 3221.975273 | H29: =IF(SUM(D27:D29)=0,W7,0) -> 4150.690909 | I29: 16975.51182 | J29: =Template!J8 -> 0 | K29: =Template!K8 -> 0 | L29: =Template!L8 -> 4000 | M29: =Template!M8 -> 3000 | N29: =Template!N8 -> 1000 | O29: 6716.954264 | P29: =Template!P8 -> 0 | Q29: =Template!Q8 -> 82000 | R29: =Template!R8 -> 0 | S29: =Template!S8 -> 0 | T29: =Template!T8 -> 0 | U29: 68848.78121 | V29: =Template!V8 -> 0 | W29: =Template!W8 -> 82000 | X29: =Template!X8 -> 0 | Y29: =Template!Y8 -> 0 | Z29: =Template!Z8 -> 0 | AA29: 68848.78121 | AB29: =Template!AB8 -> 0 | AC29: =Template!AC8 -> 82000 | AD29: =Template!AD8 -> 0 | AE29: =Template!AE8 -> 0 | AF29: =Template!AF8 -> 0 | AG29: 68848.78121
A30: 2020/21 | B30: 4 | C30: 0.7920936632 | D30: =IF(P16<=0,OFFSET(Template!D9,-$P$13,0,1,1),0) -> 0 | E30: =IF(Q16<=0,OFFSET(Template!E9,-$P$13,0,1,1),0) -> 0 | F30: =IF(SUM(D27:D30)=0,X5,0) -> 13510.34182 | G30: =IF(SUM(D27:D30)=0,X6,0) -> 3270.970182 | H30: =IF(SUM(D27:D30)=0,X7,0) -> 4522.472727 | I30: 16874.59289 | J30: =OFFSET(Template!J9,-$P$12,0,1,1) -> 0 | K30: =Template!K9 -> 0 | L30: =Template!L9 -> 6000 | M30: =Template!M9 -> 4500 | N30: =Template!N9 -> 1500 | O30: 9505.123959 | P30: =Template!P9 -> 0 | Q30: =Template!Q9 -> 0 | R30: =Template!R9 -> 0 | S30: =Template!S9 -> 0 | T30: =Template!T9 -> 0 | U30: 0 | V30: =Template!V9 -> 0 | W30: =Template!W9 -> 0 | X30: =Template!X9 -> 0 | Y30: =Template!Y9 -> 0 | Z30: =Template!Z9 -> 0 | AA30: 0 | AB30: =Template!AB9 -> 0 | AC30: =Template!AC9 -> 0 | AD30: =Template!AD9 -> 0 | AE30: =Template!AE9 -> 0 | AF30: =Template!AF9 -> 0 | AG30: 0
A31: 2021/22 | B31: 5 | C31: 0.7472581729 | D31: =IF(P17<=0,OFFSET(Template!D10,-$P$13,0,1,1),0) -> 0 | E31: =IF(Q17<=0,OFFSET(Template!E10,-$P$13,0,1,1),0) -> 0 | F31: =IF(SUM(D27:D31)=0,Y5,0) -> 14175.24364 | G31: =IF(SUM(D27:D31)=0,Y6,0) -> 3319.965091 | H31: =IF(SUM(D27:D31)=0,Y7,0) -> 4894.254545 | I31: 16730.70942 | J31: =OFFSET(Template!J10,-$P$12,0,1,1) -> 0 | K31: =Template!K10 -> 92000 | L31: =Template!L10 -> 0 | M31: =Template!M10 -> 0 | N31: =Template!N10 -> 0 | O31: 68747.7519 | P31: =Template!P10 -> 0 | Q31: =Template!Q10 -> 0 | R31: =Template!R10 -> 250 | S31: =Template!S10 -> 150 | T31: =Template!T10 -> 50 | U31: 336.2661778 | V31: =Template!V10 -> 0 | W31: =Template!W10 -> 0 | X31: =Template!X10 -> 250 | Y31: =Template!Y10 -> 150 | Z31: =Template!Z10 -> 50 | AA31: 336.2661778 | AB31: =Template!AB10 -> 0 | AC31: =Template!AC10 -> 0 | AD31: =Template!AD10 -> 250 | AE31: =Template!AE10 -> 150 | AF31: =Template!AF10 -> 50 | AG31: 336.2661778
A32: 2022/23 | B32: 6 | C32: 0.7049605404 | D32: =IF(P18<=0,OFFSET(Template!D11,-$P$13,0,1,1),0) -> 0 | E32: =IF(Q18<=0,OFFSET(Template!E11,-$P$13,0,1,1),0) -> 0 | F32: =IF(SUM(D27:D32)=0,Z5,0) -> 14840.14545 | G32: =IF(SUM(D27:D32)=0,Z6,0) -> 3368.96 | H32: =IF(SUM(D27:D32)=0,Z7,0) -> 5266.036364 | I32: 16549.04866 | J32: =OFFSET(Template!J11,-$P$12,0,1,1) -> 0 | K32: =Template!K11 -> 0 | L32: =Template!L11 -> 0 | M32: =Template!M11 -> 0 | N32: =Template!N11 -> 0 | O32: 0 | P32: =Template!P11 -> 0 | Q32: =Template!Q11 -> 0 | R32: =Template!R11 -> 500 | S32: =Template!S11 -> 300 | T32: =Template!T11 -> 100 | U32: 634.4644864 | V32: =Template!V11 -> 0 | W32: =Template!W11 -> 0 | X32: =Template!X11 -> 500 | Y32: =Template!Y11 -> 300 | Z32: =Template!Z11 -> 100 | AA32: 634.4644864 | AB32: =Template!AB11 -> 0 | AC32: =Template!AC11 -> 0 | AD32: =Template!AD11 -> 500 | AE32: =Template!AE11 -> 300 | AF32: =Template!AF11 -> 100 | AG32: 634.4644864
A33: 2023/24 | B33: 7 | C33: 0.6650571136 | D33: =IF(P19<=0,OFFSET(Template!D12,-$P$13,0,1,1),0) -> 403200 | E33: =IF(Q19<=0,OFFSET(Template!E12,-$P$13,0,1,1),0) -> 0 | F33: =IF(SUM(D27:D33)=0,AA5,0) -> 0 | G33: =IF(SUM(D27:D33)=0,AA6,0) -> 0 | H33: =IF(SUM(D27:D33)=0,AA7,0) -> 0 | I33: 268151.0282 | J33: =OFFSET(Template!J12,-$P$12,0,1,1) -> 0 | K33: =Template!K12 -> 0 | L33: =Template!L12 -> 4000 | M33: =Template!M12 -> 2500 | N33: =Template!N12 -> 750 | O33: 4821.664074 | P33: =Template!P12 -> 0 | Q33: =Template!Q12 -> 0 | R33: =Template!R12 -> 750 | S33: =Template!S12 -> 450 | T33: =Template!T12 -> 150 | U33: 897.8271034 | V33: =Template!V12 -> 0 | W33: =Template!W12 -> 0 | X33: =Template!X12 -> 750 | Y33: =Template!Y12 -> 450 | Z33: =Template!Z12 -> 150 | AA33: 897.8271034 | AB33: =Template!AB12 -> 0 | AC33: =Template!AC12 -> 0 | AD33: =Template!AD12 -> 750 | AE33: =Template!AE12 -> 450 | AF33: =Template!AF12 -> 150 | AG33: 897.8271034
A34: 2024/25 | B34: 8 | C34: 0.6274123713 | D34: =IF(P20<=0,OFFSET(Template!D13,-$P$13,0,1,1),0) -> 0 | E34: =IF(Q20<=0,OFFSET(Template!E13,-$P$13,0,1,1),0) -> 0 | F34: =IF(SUM(D27:D34)=0,AB5,0) -> 0 | G34: =IF(SUM(D27:D34)=0,AB6,0) -> 0 | H34: =IF(SUM(D27:D34)=0,AB7,0) -> 0 | I34: 0 | J34: =OFFSET(Template!J13,-$P$12,0,1,1) -> 0 | K34: =Template!K13 -> 0 | L34: =Template!L13 -> 8000 | M34: =Template!M13 -> 5000 | N34: =Template!N13 -> 1500 | O34: 9097.479384 | P34: =Template!P13 -> 0 | Q34: =Template!Q13 -> 0 | R34: =Template!R13 -> 1000 | S34: =Template!S13 -> 600 | T34: =Template!T13 -> 200 | U34: 1129.342268 | V34: =Template!V13 -> 0 | W34: =Template!W13 -> 0 | X34: =Template!X13 -> 1000 | Y34: =Template!Y13 -> 600 | Z34: =Template!Z13 -> 200 | AA34: 1129.342268 | AB34: =Template!AB13 -> 0 | AC34: =Template!AC13 -> 0 | AD34: =Template!AD13 -> 1000 | AE34: =Template!AE13 -> 600 | AF34: =Template!AF13 -> 200 | AG34: 1129.342268
A35: 2025/26 | B35: 9 | C35: 0.5918984635 | D35: =IF(P21<=0,OFFSET(Template!D14,-$P$13,0,1,1),0) -> 0 | E35: =IF(Q21<=0,OFFSET(Template!E14,-$P$13,0,1,1),0) -> 82000 | F35: =IF(SUM(D27:D35)=0,AC5,0) -> 0 | G35: =IF(SUM(D27:D35)=0,AC6,0) -> 0 | H35: =IF(SUM(D27:D35)=0,AC7,0) -> 0 | I35: 48535.67401 | J35: =OFFSET(Template!J14,-$P$12,0,1,1) -> 0 | K35: =Template!K14 -> 0 | L35: =Template!L14 -> 12000 | M35: =Template!M14 -> 7500 | N35: =Template!N14 -> 2250 | O35: 12873.79158 | P35: =Template!P14 -> 0 | Q35: =Template!Q14 -> 0 | R35: =Template!R14 -> 1250 | S35: =Template!S14 -> 750 | T35: =Template!T14 -> 250 | U35: 1331.771543 | V35: =Template!V14 -> 0 | W35: =Template!W14 -> 0 | X35: =Template!X14 -> 1250 | Y35: =Template!Y14 -> 750 | Z35: =Template!Z14 -> 250 | AA35: 1331.771543 | AB35: =Template!AB14 -> 0 | AC35: =Template!AC14 -> 0 | AD35: =Template!AD14 -> 1250 | AE35: =Template!AE14 -> 750 | AF35: =Template!AF14 -> 250 | AG35: 1331.771543
A36: 2026/27 | B36: 10 | C36: 0.5583947769 | D36: =IF(P22<=0,OFFSET(Template!D15,-$P$13,0,1,1),0) -> 0 | E36: =IF(Q22<=0,OFFSET(Template!E15,-$P$13,0,1,1),0) -> 0 | F36: =IF(SUM(D27:D36)=0,AN8,0) -> 0 | G36: =IF(SUM(D27:D36)=0,AN9,0) -> 0 | H36: =IF(SUM(D27:D36)=0,AN10,0) -> 0 | I36: 0 | J36: =OFFSET(Template!J15,-$P$12,0,1,1) -> 0 | K36: =Template!K15 -> 0 | L36: =Template!L15 -> 16000 | M36: =Template!M15 -> 10000 | N36: =Template!N15 -> 3000 | O36: 16193.44853 | P36: =Template!P15 -> 0 | Q36: =Template!Q15 -> 0 | R36: =Template!R15 -> 1500 | S36: =Template!S15 -> 900 | T36: =Template!T15 -> 300 | U36: 1507.665898 | V36: =Template!V15 -> 0 | W36: =Template!W15 -> 0 | X36: =Template!X15 -> 1500 | Y36: =Template!Y15 -> 900 | Z36: =Template!Z15 -> 300 | AA36: 1507.665898 | AB36: =Template!AB15 -> 0 | AC36: =Template!AC15 -> 0 | AD36: =Template!AD15 -> 1500 | AE36: =Template!AE15 -> 900 | AF36: =Template!AF15 -> 300 | AG36: 1507.665898
A37: 2027/28 | B37: 11 | C37: 0.5267875254 | D37: =IF(P23<=0,OFFSET(Template!D16,-$P$13,0,1,1),0) -> 0 | E37: =IF(Q23<=0,OFFSET(Template!E16,-$P$13,0,1,1),0) -> 0 | F37: =IF(SUM(D27:D37)=0,AO8,0) -> 0 | G37: =IF(SUM(D27:D37)=0,AO9,0) -> 0 | H37: =IF(SUM(D27:D37)=0,AO10,0) -> 0 | I37: 0 | J37: =OFFSET(Template!J16,-$P$12,0,1,1) -> 403200 | K37: =Template!K16 -> 0 | L37: =Template!L16 -> 0 | M37: =Template!M16 -> 0 | N37: =Template!N16 -> 0 | O37: 212400.7302 | P37: =Template!P16 -> 0 | Q37: =Template!Q16 -> 0 | R37: =Template!R16 -> 1750 | S37: =Template!S16 -> 1050 | T37: =Template!T16 -> 350 | U37: 1659.380705 | V37: =Template!V16 -> 0 | W37: =Template!W16 -> 0 | X37: =Template!X16 -> 1750 | Y37: =Template!Y16 -> 1050 | Z37: =Template!Z16 -> 350 | AA37: 1659.380705 | AB37: =Template!AB16 -> 0 | AC37: =Template!AC16 -> 0 | AD37: =Template!AD16 -> 1750 | AE37: =Template!AE16 -> 1050 | AF37: =Template!AF16 -> 350 | AG37: 1659.380705
A38: 2028/29 | B38: 12 | C38: 0.4969693636 | D38: =IF(P24<=0,OFFSET(Template!D17,-$P$13,0,1,1),0) -> 0 | E38: =IF(Q24<=0,OFFSET(Template!E17,-$P$13,0,1,1),0) -> 0 | F38: =Template!F17 -> 0 | G38: =Template!G17 -> 0 | H38: =Template!H17 -> 0 | I38: 0 | J38: =OFFSET(Template!J17,-$P$12,0,1,1) -> 0 | K38: =Template!K17 -> 0 | L38: =Template!L17 -> 0 | M38: =Template!M17 -> 0 | N38: =Template!N17 -> 0 | O38: 0 | P38: =Template!P17 -> 0 | Q38: =Template!Q17 -> 0 | R38: =Template!R17 -> 2000 | S38: =Template!S17 -> 1200 | T38: =Template!T17 -> 400 | U38: 1789.089709 | V38: =Template!V17 -> 0 | W38: =Template!W17 -> 0 | X38: =Template!X17 -> 2000 | Y38: =Template!Y17 -> 1200 | Z38: =Template!Z17 -> 400 | AA38: 1789.089709 | AB38: =Template!AB17 -> 0 | AC38: =Template!AC17 -> 0 | AD38: =Template!AD17 -> 2000 | AE38: =Template!AE17 -> 1200 | AF38: =Template!AF17 -> 400 | AG38: 1789.089709
A39: 2029/30 | B39: 13 | C39: 0.4688390222 | D39: =IF(P25<=0,OFFSET(Template!D18,-$P$13,0,1,1),0) -> 0 | E39: =IF(Q25<=0,OFFSET(Template!E18,-$P$13,0,1,1),0) -> 0 | F39: =Template!F18 -> 250 | G39: =Template!G18 -> 150 | H39: =Template!H18 -> 50 | I39: 210.97756 | J39: =OFFSET(Template!J18,-$P$12,0,1,1) -> 0 | K39: =Template!K18 -> 82000 | L39: =Template!L18 -> 0 | M39: =Template!M18 -> 0 | N39: =Template!N18 -> 0 | O39: 38444.79982 | P39: =Template!P18 -> 0 | Q39: =Template!Q18 -> 0 | R39: =Template!R18 -> 2250 | S39: =Template!S18 -> 1350 | T39: =Template!T18 -> 450 | U39: 1898.79804 | V39: =Template!V18 -> 0 | W39: =Template!W18 -> 0 | X39: =Template!X18 -> 2250 | Y39: =Template!Y18 -> 1350 | Z39: =Template!Z18 -> 450 | AA39: 1898.79804 | AB39: =Template!AB18 -> 0 | AC39: =Template!AC18 -> 0 | AD39: =Template!AD18 -> 2250 | AE39: =Template!AE18 -> 1350 | AF39: =Template!AF18 -> 450 | AG39: 1898.79804
A40: 2030/31 | B40: 14 | C40: 0.4423009644 | D40: =IF(P26<=0,OFFSET(Template!D19,-$P$13,0,1,1),0) -> 0 | E40: =IF(Q26<=0,OFFSET(Template!E19,-$P$13,0,1,1),0) -> 0 | F40: =Template!F19 -> 500 | G40: =Template!G19 -> 300 | H40: =Template!H19 -> 100 | I40: 398.0708679 | J40: =OFFSET(Template!J19,-$P$12,0,1,1) -> 0 | K40: =Template!K19 -> 0 | L40: =Template!L19 -> 0 | M40: =Template!M19 -> 0 | N40: =Template!N19 -> 0 | O40: 0 | P40: =Template!P19 -> 0 | Q40: =Template!Q19 -> 0 | R40: =Template!R19 -> 2500 | S40: =Template!S19 -> 1500 | T40: =Template!T19 -> 500 | U40: 1990.35434 | V40: =Template!V19 -> 0 | W40: =Template!W19 -> 0 | X40: =Template!X19 -> 2500 | Y40: =Template!Y19 -> 1500 | Z40: =Template!Z19 -> 500 | AA40: 1990.35434 | AB40: =Template!AB19 -> 0 | AC40: =Template!AC19 -> 0 | AD40: =Template!AD19 -> 2500 | AE40: =Template!AE19 -> 1500 | AF40: =Template!AF19 -> 500 | AG40: 1990.35434
A41: 2031/32 | B41: 15 | C41: 0.4172650607 | D41: =IF(P27<=0,OFFSET(Template!D20,-$P$13,0,1,1),0) -> 0 | E41: =IF(Q27<=0,OFFSET(Template!E20,-$P$13,0,1,1),0) -> 0 | F41: =Template!F20 -> 750 | G41: =Template!G20 -> 450 | H41: =Template!H20 -> 150 | I41: 563.307832 | J41: =OFFSET(Template!J20,-$P$12,0,1,1) -> 0 | K41: =Template!K20 -> 0 | L41: =Template!L20 -> 250 | M41: =Template!M20 -> 150 | N41: =Template!N20 -> 50 | O41: 187.7692773 | P41: =Template!P20 -> 0 | Q41: =Template!Q20 -> 82000 | R41: =Template!R20 -> 0 | S41: =Template!S20 -> 0 | T41: =Template!T20 -> 0 | U41: 34215.73498 | V41: =Template!V20 -> 0 | W41: =Template!W20 -> 0 | X41: =Template!X20 -> 2750 | Y41: =Template!Y20 -> 1650 | Z41: =Template!Z20 -> 550 | AA41: 2065.462051 | AB41: =Template!AB20 -> 0 | AC41: =Template!AC20 -> 0 | AD41: =Template!AD20 -> 2750 | AE41: =Template!AE20 -> 1650 | AF41: =Template!AF20 -> 550 | AG41: 2065.462051
A42: 2032/33 | B42: 16 | C42: 0.3936462837 | D42: =IF(P28<=0,OFFSET(Template!D21,-$P$13,0,1,1),0) -> 0 | E42: =IF(Q28<=0,OFFSET(Template!E21,-$P$13,0,1,1),0) -> 0 | F42: =Template!F21 -> 1000 | G42: =Template!G21 -> 600 | H42: =Template!H21 -> 200 | I42: 708.5633107 | J42: =OFFSET(Template!J21,-$P$12,0,1,1) -> 0 | K42: =Template!K21 -> 0 | L42: =Template!L21 -> 500 | M42: =Template!M21 -> 300 | N42: =Template!N21 -> 100 | O42: 354.2816553 | P42: =Template!P21 -> 0 | Q42: =Template!Q21 -> 0 | R42: =Template!R21 -> 0 | S42: =Template!S21 -> 0 | T42: =Template!T21 -> 0 | U42: 0 | V42: =Template!V21 -> 0 | W42: =Template!W21 -> 0 | X42: =Template!X21 -> 3000 | Y42: =Template!Y21 -> 1800 | Z42: =Template!Z21 -> 600 | AA42: 2125.689932 | AB42: =Template!AB21 -> 0 | AC42: =Template!AC21 -> 0 | AD42: =Template!AD21 -> 3000 | AE42: =Template!AE21 -> 1800 | AF42: =Template!AF21 -> 600 | AG42: 2125.689932
A43: 2033/34 | B43: 17 | C43: 0.3713644186 | D43: =OFFSET(Template!D22,-$P$13,0,1,1) -> 0 | E43: =IF(Q29<=0,OFFSET(Template!E22,-$P$13,0,1,1),0) -> 0 | F43: =Template!F22 -> 1250 | G43: =Template!G22 -> 750 | H43: =Template!H22 -> 250 | I43: 835.5699418 | J43: =OFFSET(Template!J22,-$P$12,0,1,1) -> 0 | K43: =Template!K22 -> 0 | L43: =Template!L22 -> 750 | M43: =Template!M22 -> 450 | N43: =Template!N22 -> 150 | O43: 501.3419651 | P43: =Template!P22 -> 0 | Q43: =Template!Q22 -> 0 | R43: =Template!R22 -> 400 | S43: =Template!S22 -> 250 | T43: =Template!T22 -> 75 | U43: 269.2392035 | V43: =Template!V22 -> 0 | W43: =Template!W22 -> 82000 | X43: =Template!X22 -> 0 | Y43: =Template!Y22 -> 0 | Z43: =Template!Z22 -> 0 | AA43: 30451.88232 | AB43: =Template!AB22 -> 0 | AC43: =Template!AC22 -> 82000 | AD43: =Template!AD22 -> 0 | AE43: =Template!AE22 -> 0 | AF43: =Template!AF22 -> 0 | AG43: 30451.88232
A44: 2034/35 | B44: 18 | C44: 0.3503437911 | D44: =OFFSET(Template!D23,-$P$13,0,1,1) -> 0 | E44: =IF(Q30<=0,OFFSET(Template!E23,-$P$13,0,1,1),0) -> 0 | F44: =Template!F23 -> 1500 | G44: =Template!G23 -> 900 | H44: =Template!H23 -> 300 | I44: 945.928236 | J44: =OFFSET(Template!J23,-$P$12,0,1,1) -> 0 | K44: =Template!K23 -> 0 | L44: =Template!L23 -> 1000 | M44: =Template!M23 -> 600 | N44: =Template!N23 -> 200 | O44: 630.618824 | P44: =Template!P23 -> 0 | Q44: =Template!Q23 -> 0 | R44: =Template!R23 -> 800 | S44: =Template!S23 -> 500 | T44: =Template!T23 -> 150 | U44: 507.9984971 | V44: =Template!V23 -> 0 | W44: =Template!W23 -> 0 | X44: =Template!X23 -> 0 | Y44: =Template!Y23 -> 0 | Z44: =Template!Z23 -> 0 | AA44: 0 | AB44: =Template!AB23 -> 0 | AC44: =Template!AC23 -> 0 | AD44: =Template!AD23 -> 0 | AE44: =Template!AE23 -> 0 | AF44: =Template!AF23 -> 0 | AG44: 0
A45: 2035/36 | B45: 19 | C45: 0.3305130105 | D45: =OFFSET(Template!D24,-$P$13,0,1,1) -> 0 | E45: =IF(Q31<=0,OFFSET(Template!E24,-$P$13,0,1,1),0) -> 0 | F45: =Template!F24 -> 1750 | G45: =Template!G24 -> 1050 | H45: =Template!H24 -> 350 | I45: 1041.115983 | J45: =OFFSET(Template!J24,-$P$12,0,1,1) -> 0 | K45: =Template!K24 -> 0 | L45: =Template!L24 -> 1250 | M45: =Template!M24 -> 750 | N45: =Template!N24 -> 250 | O45: 743.6542736 | P45: =Template!P24 -> 0 | Q45: =Template!Q24 -> 0 | R45: =Template!R24 -> 1200 | S45: =Template!S24 -> 750 | T45: =Template!T24 -> 225 | U45: 718.8657978 | V45: =Template!V24 -> 0 | W45: =Template!W24 -> 0 | X45: =Template!X24 -> 400 | Y45: =Template!Y24 -> 250 | Z45: =Template!Z24 -> 75 | AA45: 239.6219326 | AB45: =Template!AB24 -> 0 | AC45: =Template!AC24 -> 0 | AD45: =Template!AD24 -> 400 | AE45: =Template!AE24 -> 250 | AF45: =Template!AF24 -> 75 | AG45: 239.6219326
A46: 2036/37 | B46: 20 | C46: 0.3118047269 | D46: =OFFSET(Template!D25,-$P$13,0,1,1) -> 0 | E46: =IF(Q32<=0,OFFSET(Template!E25,-$P$13,0,1,1),0) -> 0 | F46: =Template!F25 -> 2000 | G46: =Template!G25 -> 1200 | H46: =Template!H25 -> 400 | I46: 1122.497017 | J46: =OFFSET(Template!J25,-$P$12,0,1,1) -> 0 | K46: =Template!K25 -> 0 | L46: =Template!L25 -> 1500 | M46: =Template!M25 -> 900 | N46: =Template!N25 -> 300 | O46: 841.8727626 | P46: =Template!P25 -> 0 | Q46: =Template!Q25 -> 0 | R46: =Template!R25 -> 1600 | S46: =Template!S25 -> 1000 | T46: =Template!T25 -> 300 | U46: 904.233708 | V46: =Template!V25 -> 0 | W46: =Template!W25 -> 0 | X46: =Template!X25 -> 800 | Y46: =Template!Y25 -> 500 | Z46: =Template!Z25 -> 150 | AA46: 452.116854 | AB46: =Template!AB25 -> 0 | AC46: =Template!AC25 -> 0 | AD46: =Template!AD25 -> 800 | AE46: =Template!AE25 -> 500 | AF46: =Template!AF25 -> 150 | AG46: 452.116854
A47: 2037/38 | B47: 21 | C47: 0.2941554027 | D47: =OFFSET(Template!D26,-$P$13,0,1,1) -> 0 | E47: =IF(Q33<=0,OFFSET(Template!E26,-$P$13,0,1,1),0) -> 0 | F47: =Template!F26 -> 2250 | G47: =Template!G26 -> 1350 | H47: =Template!H26 -> 450 | I47: 1191.329381 | J47: =OFFSET(Template!J26,-$P$12,0,1,1) -> 0 | K47: =Template!K26 -> 0 | L47: =Template!L26 -> 1750 | M47: =Template!M26 -> 1050 | N47: =Template!N26 -> 350 | O47: 926.5895186 | P47: =Template!P26 -> 0 | Q47: =Template!Q26 -> 0 | R47: =Template!R26 -> 2000 | S47: =Template!S26 -> 1250 | T47: =Template!T26 -> 375 | U47: 1066.313335 | V47: =Template!V26 -> 0 | W47: =Template!W26 -> 0 | X47: =Template!X26 -> 1200 | Y47: =Template!Y26 -> 750 | Z47: =Template!Z26 -> 225 | AA47: 639.7880009 | AB47: =Template!AB26 -> 0 | AC47: =Template!AC26 -> 0 | AD47: =Template!AD26 -> 1200 | AE47: =Template!AE26 -> 750 | AF47: =Template!AF26 -> 225 | AG47: 639.7880009
A48: 2038/39 | B48: 22 | C48: 0.2775050969 | D48: =OFFSET(Template!D27,-$P$13,0,1,1) -> 0 | E48: =IF(Q34<=0,OFFSET(Template!E27,-$P$13,0,1,1),0) -> 0 | F48: =Template!F27 -> 2500 | G48: =Template!G27 -> 1500 | H48: =Template!H27 -> 500 | I48: 1248.772936 | J48: =OFFSET(Template!J27,-$P$12,0,1,1) -> 0 | K48: =Template!K27 -> 0 | L48: =Template!L27 -> 2000 | M48: =Template!M27 -> 1200 | N48: =Template!N27 -> 400 | O48: 999.0183489 | P48: =Template!P27 -> 0 | Q48: =Template!Q27 -> 0 | R48: =Template!R27 -> 2400 | S48: =Template!S27 -> 1500 | T48: =Template!T27 -> 450 | U48: 1207.147172 | V48: =Template!V27 -> 0 | W48: =Template!W27 -> 0 | X48: =Template!X27 -> 1600 | Y48: =Template!Y27 -> 1000 | Z48: =Template!Z27 -> 300 | AA48: 804.764781 | AB48: =Template!AB27 -> 0 | AC48: =Template!AC27 -> 0 | AD48: =Template!AD27 -> 1600 | AE48: =Template!AE27 -> 1000 | AF48: =Template!AF27 -> 300 | AG48: 804.764781
A49: 2039/40 | B49: 23 | C49: 0.2617972612 | D49: =OFFSET(Template!D28,-$P$13,0,1,1) -> 0 | E49: =IF(Q35<=0,OFFSET(Template!E28,-$P$13,0,1,1),0) -> 82000 | F49: =Template!F28 -> 2750 | G49: =Template!G28 -> 1650 | H49: =Template!H28 -> 550 | I49: 22763.27186 | J49: =OFFSET(Template!J28,-$P$12,0,1,1) -> 0 | K49: =Template!K28 -> 0 | L49: =Template!L28 -> 2250 | M49: =Template!M28 -> 1350 | N49: =Template!N28 -> 450 | O49: 1060.278908 | P49: =Template!P28 -> 0 | Q49: =Template!Q28 -> 0 | R49: =Template!R28 -> 2800 | S49: =Template!S28 -> 1750 | T49: =Template!T28 -> 525 | U49: 1328.621101 | V49: =Template!V28 -> 0 | W49: =Template!W28 -> 0 | X49: =Template!X28 -> 2000 | Y49: =Template!Y28 -> 1250 | Z49: =Template!Z28 -> 375 | AA49: 949.015072 | AB49: =Template!AB28 -> 0 | AC49: =Template!AC28 -> 0 | AD49: =Template!AD28 -> 2000 | AE49: =Template!AE28 -> 1250 | AF49: =Template!AF28 -> 375 | AG49: 949.015072
A50: 2040/41 | B50: 24 | C50: 0.2469785483 | D50: =OFFSET(Template!D29,-$P$13,0,1,1) -> 0 | E50: =IF(Q36<=0,OFFSET(Template!E29,-$P$13,0,1,1),0) -> 0 | F50: =Template!F29 -> 3000 | G50: =Template!G29 -> 1800 | H50: =Template!H29 -> 600 | I50: 1333.684161 | J50: =OFFSET(Template!J29,-$P$12,0,1,1) -> 0 | K50: =Template!K29 -> 0 | L50: =Template!L29 -> 2500 | M50: =Template!M29 -> 1500 | N50: =Template!N29 -> 500 | O50: 1111.403468 | P50: =Template!P29 -> 0 | Q50: =Template!Q29 -> 0 | R50: =Template!R29 -> 3200 | S50: =Template!S29 -> 2000 | T50: =Template!T29 -> 600 | U50: 1432.47558 | V50: =Template!V29 -> 0 | W50: =Template!W29 -> 0 | X50: =Template!X29 -> 2400 | Y50: =Template!Y29 -> 1500 | Z50: =Template!Z29 -> 450 | AA50: 1074.356685 | AB50: =Template!AB29 -> 0 | AC50: =Template!AC29 -> 0 | AD50: =Template!AD29 -> 2400 | AE50: =Template!AE29 -> 1500 | AF50: =Template!AF29 -> 450 | AG50: 1074.356685
A51: 2041/42 | B51: 25 | C51: 0.2329986305 | D51: =OFFSET(Template!D30,-$P$13,0,1,1) -> 0 | E51: =IF(Q37<=0,OFFSET(Template!E30,-$P$13,0,1,1),0) -> 0 | F51: =Template!F30 -> 0 | G51: =Template!G30 -> 0 | H51: =Template!H30 -> 0 | I51: 0 | J51: =OFFSET(Template!J30,-$P$12,0,1,1) -> 0 | K51: =Template!K30 -> 0 | L51: =Template!L30 -> 2750 | M51: =Template!M30 -> 1650 | N51: =Template!N30 -> 550 | O51: 1153.343221 | P51: =Template!P30 -> 0 | Q51: =Template!Q30 -> 0 | R51: =Template!R30 -> 3600 | S51: =Template!S30 -> 2250 | T51: =Template!T30 -> 675 | U51: 1520.316064 | V51: =Template!V30 -> 0 | W51: =Template!W30 -> 0 | X51: =Template!X30 -> 2800 | Y51: =Template!Y30 -> 1750 | Z51: =Template!Z30 -> 525 | AA51: 1182.46805 | AB51: =Template!AB30 -> 0 | AC51: =Template!AC30 -> 0 | AD51: =Template!AD30 -> 2800 | AE51: =Template!AE30 -> 1750 | AF51: =Template!AF30 -> 525 | AG51: 1182.46805
A52: 2042/43 | B52: 26 | C52: 0.2198100288 | D52: =OFFSET(Template!D31,-$P$13,0,1,1) -> 0 | E52: =IF(Q38<=0,OFFSET(Template!E31,-$P$13,0,1,1),0) -> 0 | F52: =Template!F31 -> 0 | G52: =Template!G31 -> 0 | H52: =Template!H31 -> 0 | I52: 0 | J52: =OFFSET(Template!J31,-$P$12,0,1,1) -> 0 | K52: =Template!K31 -> 0 | L52: =Template!L31 -> 3000 | M52: =Template!M31 -> 1800 | N52: =Template!N31 -> 600 | O52: 1186.974155 | P52: =Template!P31 -> 0 | Q52: =Template!Q31 -> 0 | R52: =Template!R31 -> 4000 | S52: =Template!S31 -> 2500 | T52: =Template!T31 -> 750 | U52: 1593.622709 | V52: =Template!V31 -> 0 | W52: =Template!W31 -> 0 | X52: =Template!X31 -> 3200 | Y52: =Template!Y31 -> 2000 | Z52: =Template!Z31 -> 600 | AA52: 1274.898167 | AB52: =Template!AB31 -> 0 | AC52: =Template!AC31 -> 0 | AD52: =Template!AD31 -> 3200 | AE52: =Template!AE31 -> 2000 | AF52: =Template!AF31 -> 600 | AG52: 1274.898167
A53: 2043/44 | B53: 27 | C53: 0.2073679517 | D53: =OFFSET(Template!D32,-$P$13,0,1,1) -> 0 | E53: =IF(Q39<=0,OFFSET(Template!E32,-$P$13,0,1,1),0) -> 0 | F53: =Template!F32 -> 400 | G53: =Template!G32 -> 250 | H53: =Template!H32 -> 75 | I53: 150.341765 | J53: =OFFSET(Template!J32,-$P$12,0,1,1) -> 0 | K53: =Template!K32 -> 82000 | L53: =Template!L32 -> 0 | M53: =Template!M32 -> 0 | N53: =Template!N32 -> 0 | O53: 17004.17204 | P53: =Template!P32 -> 0 | Q53: =Template!Q32 -> 0 | R53: =Template!R32 -> 4400 | S53: =Template!S32 -> 2750 | T53: =Template!T32 -> 825 | U53: 1653.759415 | V53: =Template!V32 -> 0 | W53: =Template!W32 -> 0 | X53: =Template!X32 -> 3600 | Y53: =Template!Y32 -> 2250 | Z53: =Template!Z32 -> 675 | AA53: 1353.075885 | AB53: =Template!AB32 -> 0 | AC53: =Template!AC32 -> 0 | AD53: =Template!AD32 -> 3600 | AE53: =Template!AE32 -> 2250 | AF53: =Template!AF32 -> 675 | AG53: 1353.075885
A54: 2044/45 | B54: 28 | C54: 0.1956301431 | D54: =OFFSET(Template!D33,-$P$13,0,1,1) -> 0 | E54: =IF(Q40<=0,OFFSET(Template!E33,-$P$13,0,1,1),0) -> 0 | F54: =Template!F33 -> 800 | G54: =Template!G33 -> 500 | H54: =Template!H33 -> 150 | I54: 283.6637075 | J54: =OFFSET(Template!J33,-$P$12,0,1,1) -> 0 | K54: =Template!K33 -> 0 | L54: =Template!L33 -> 0 | M54: =Template!M33 -> 0 | N54: =Template!N33 -> 0 | O54: 0 | P54: =Template!P33 -> 0 | Q54: =Template!Q33 -> 0 | R54: =Template!R33 -> 4800 | S54: =Template!S33 -> 3000 | T54: =Template!T33 -> 900 | U54: 1701.982245 | V54: =Template!V33 -> 0 | W54: =Template!W33 -> 0 | X54: =Template!X33 -> 4000 | Y54: =Template!Y33 -> 2500 | Z54: =Template!Z33 -> 750 | AA54: 1418.318537 | AB54: =Template!AB33 -> 0 | AC54: =Template!AC33 -> 0 | AD54: =Template!AD33 -> 4000 | AE54: =Template!AE33 -> 2500 | AF54: =Template!AF33 -> 750 | AG54: 1418.318537
A55: 2045/46 | B55: 29 | C55: 0.1845567388 | D55: =OFFSET(Template!D34,-$P$13,0,1,1) -> 0 | E55: =IF(Q41<=0,OFFSET(Template!E34,-$P$13,0,1,1),0) -> 0 | F55: =Template!F34 -> 1200 | G55: =Template!G34 -> 750 | H55: =Template!H34 -> 225 | I55: 401.4109068 | J55: =OFFSET(Template!J34,-$P$12,0,1,1) -> 0 | K55: =Template!K34 -> 0 | L55: =Template!L34 -> 400 | M55: =Template!M34 -> 250 | N55: =Template!N34 -> 75 | O55: 133.8036356 | P55: =Template!P34 -> 0 | Q55: =Template!Q34 -> 82000 | R55: =Template!R34 -> 0 | S55: =Template!S34 -> 0 | T55: =Template!T34 -> 0 | U55: 15133.65258 | V55: =Template!V34 -> 0 | W55: =Template!W34 -> 0 | X55: =Template!X34 -> 4400 | Y55: =Template!Y34 -> 2750 | Z55: =Template!Z34 -> 825 | AA55: 1471.839992 | AB55: =Template!AB34 -> 0 | AC55: =Template!AC34 -> 0 | AD55: =Template!AD34 -> 4400 | AE55: =Template!AE34 -> 2750 | AF55: =Template!AF34 -> 825 | AG55: 1471.839992
A56: 2046/47 | B56: 30 | C56: 0.1741101309 | D56: =OFFSET(Template!D35,-$P$13,0,1,1) -> 0 | E56: =IF(Q42<=0,OFFSET(Template!E35,-$P$13,0,1,1),0) -> 0 | F56: =Template!F35 -> 1600 | G56: =Template!G35 -> 1000 | H56: =Template!H35 -> 300 | I56: 504.9193796 | J56: =OFFSET(Template!J35,-$P$12,0,1,1) -> 0 | K56: =Template!K35 -> 0 | L56: =Template!L35 -> 800 | M56: =Template!M35 -> 500 | N56: =Template!N35 -> 150 | O56: 252.4596898 | P56: =Template!P35 -> 0 | Q56: =Template!Q35 -> 0 | R56: =Template!R35 -> 0 | S56: =Template!S35 -> 0 | T56: =Template!T35 -> 0 | U56: 0 | V56: =Template!V35 -> 0 | W56: =Template!W35 -> 0 | X56: =Template!X35 -> 4800 | Y56: =Template!Y35 -> 3000 | Z56: =Template!Z35 -> 900 | AA56: 1514.758139 | AB56: =Template!AB35 -> 0 | AC56: =Template!AC35 -> 0 | AD56: =Template!AD35 -> 4800 | AE56: =Template!AE35 -> 3000 | AF56: =Template!AF35 -> 900 | AG56: 1514.758139
H57: Discounted Total Cost | I57: =SUM(I27:I56) -> 477793.0654 | N57: Discounted Total Cost | O57: =SUM(O27:O56) ->  | T57: Discounted Total Cost | U57: =SUM(U27:U56) -> 446013.5529 | Z57: Discounted Total Cost | AA57: =SUM(AA27:AA56) -> 547456.8922 | AF57: Discounted Total Cost | AG57: =SUM(AG27:AG56) -> 678211.6092
D59: OPTIONS SUMMARY - DO MINIMUM | J59: OPTIONS SUMMARY - HEAVY MAINTENANCE | P59: OPTIONS SUMMARY - PAVEMENT REHAB No.1 | V59: OPTIONS SUMMARY - PAVEMENT REHAB No.2 | AB59: OPTIONS SUMMARY - PAVEMENT REHAB No.3
D60: Short Term Present Value (7yr) | H60: =SUM(I27:I33) -> 395553.9665 | J60: Contract Period Present Value | N60: =SUM(O27:O33) ->  | P60: Contract Period Present Value | T60: =SUM(U27:U33) -> 371453.188 | V60: Contract Period Present Value | Z60: =SUM(AA27:AA33) -> 489132.4333 | AB60: Contract Period Present Value | AF60: =SUM(AG27:AG33) -> 619887.1503
D61: Long Term Present Value (30yr) | H61: =I57 -> 477793.0654 | J61: 30yr Present Value | N61: =O57 ->  | P61: 30yr Present Value | T61: =U57 -> 446013.5529 | V61: 30yr Present Value | Z61: =AA57 -> 547456.8922 | AB61: 30yr Present Value | AF61: =AG57 -> 678211.6092
H62: CHECKPOINT 1 | J62: NPV (vs. Do Minimum) | M62: =IF(N62="Not Assessed","Review",IF(N62>(VLOOKUP(ONRC_Classification,Template!$B$106:$C$111,2,FALSE)),"Pass","Fail")) ->  | N62: =IF(O57<5000,"Not Assessed",H61-N61) ->  | P62: NPV (vs. Do Minimum) | S62: =IF(T62="Not Assessed","Review",IF(T62>(VLOOKUP(ONRC_Classification,Template!$B$106:$C$111,2,FALSE)),"Pass","Fail")) -> Pass | T62: =IF(T61<5000,"Not Assessed",H61-U57) -> 31779.51244 | V62: NPV (vs. Do Minimum) | Y62: =IF(Z62="Not Assessed","Review",IF(Z62>(VLOOKUP(ONRC_Classification,Template!$B$106:$C$111,2,FALSE)),"Pass","Fail")) -> Fail | Z62: =IF(Z61<5000,"Not Assessed",H61-AA57) -> -69663.82686 | AB62: NPV (vs. Do Minimum) | AE62: =IF(AF62="Not Assessed","Review",IF(AF62>(VLOOKUP(ONRC_Classification,Template!$B$106:$C$111,2,FALSE)),"Pass","Fail")) -> Fail | AF62: =IF(AF61<5000,"Not Assessed",H61-AG57) -> -200418.5438
H63: CHECKPOINT 2 | J63: EI | M63: =IF(ISNUMBER(N63),IF(N63<0,"Review",IF(N63<0.8,"Fail",IF(N63<2,"Pass",IF(N63>2,"Review","Check")))),"Review") -> Review | N63: =IF(O57<5000,"Not Assessed",(H61-N61)/(N60-H60)) ->  | P63: EI | S63: =IF(ISNUMBER(T63),IF(T63<0,"Review",IF(T63<0.8,"Fail",IF(T63<2,"Pass",IF(T63>2,"Review","Check")))),"Review") -> Review | T63: =IF(U57<5000,"Not Assessed",(H61-T61)/(T60-H60)) -> -1.318609375 | V63: EI | Y63: =IF(ISNUMBER(Z63),IF(Z63<0,"Review",IF(Z63<0.8,"Fail",IF(Z63<2,"Pass",IF(Z63>2,"Review","Check")))),"Review") -> Review | Z63: =IF(AA57<5000,"Not Assessed",(H61-Z61)/(Z60-H60)) -> -0.7444429176 | AB63: EI | AE63: =IF(ISNUMBER(AF63),IF(AF63<0,"Review",IF(AF63<0.8,"Fail",IF(AF63<2,"Pass",IF(AF63>2,"Review","Check")))),"Review") -> Review | AF63: =IF(AG57<5000,"Not Assessed",(H61-AF61)/(AF60-H60)) -> -0.8933967791
D66: Checkpoint | F66: Process
D67: 1 | E67: 2 | F67: NPV | G67: EI
C68: Heavy Maintenance | D68: =($N$62) ->  | E68: =$N$63 ->  | F68: =D68 ->  | G68: =M63 -> Review | H68: Heavy Maintenance
C69: Renewal No.1 | D69: =$T$62 -> 31779.51244 | E69: =$T$63 -> -1.318609375 | F69: =D69 -> 31779.51244 | G69: =S63 -> Review | H69: Renewal No.1
C70: Renewal No.2 | D70: =$Z$62 -> -69663.82686 | E70: =$Z$63 -> -0.7444429176 | F70: =D70 -> -69663.82686 | G70: =Y63 -> Review | H70: Renewal No.2
C71: Renewal No.3 | D71: =$AF$62 -> -200418.5438 | E71: =$AF$63 -> -0.8933967791 | F71: -200418.5438 | G71: =AE63 -> Review | H71: Renewal No.3
K78: Ref. Year | L78: 1 | M78: 2 | N78: 3 | O78: 4 | P78: 5 | Q78: 6 | R78: 7 | S78: 8 | T78: 9 | U78: 10 | V78: 11 | W78: 12 | X78: 13 | Y78: 14 | Z78: 15 | AA78: 16 | AB78: 17 | AC78: 18 | AD78: 19 | AE78: 20 | AF78: 21 | AG78: 22 | AH78: 23
K79: Year | L79: 2007/08 | M79: 2008/09 | N79: 2009/10 | O79: 2010/11 | P79: 2011/12 | Q79: 2012/13 | R79: 2013/14 | S79: 2014/15 | T79: 2015/16 | U79: 2016/17 | V79: 2017/18 | W79: 2018/19 | X79: 2019/20 | Y79: 2020/21 | Z79: 2021/22 | AA79: 2022/23 | AB79: 2023/24 | AC79: 2024/25 | AD79: 2025/26 | AE79: 2026/27 | AF79: 2027/28 | AG79: 2028/29 | AH79: 2029/30
K80: Pavement | L80: ='Do Min Cost Model'!C6 -> 0 | M80: ='Do Min Cost Model'!D6 -> 0 | N80: ='Do Min Cost Model'!E6 -> 0 | O80: ='Do Min Cost Model'!F6 -> 51420 | P80: ='Do Min Cost Model'!G6 -> 13722 | Q80: ='Do Min Cost Model'!H6 -> 0 | R80: ='Do Min Cost Model'!I6 -> 3986 | S80: ='Do Min Cost Model'!J6 -> 0 | T80: ='Do Min Cost Model'!K6 -> 0 | U80: ='Do Min Cost Model'!L6 -> 13500 | V80: ='Do Min Cost Model'!M6*P7 -> 30000 | W80: =TREND($L$80:$V$80,$L$78:$V$78,W78)*$P$4 -> 12180.53818 | X80: 12845.44 | Y80: 13510.34182 | Z80: 14175.24364 | AA80: 14840.14545 | AB80: 15505.04727 | AC80: 16169.94909 | AD80: 16834.85091 | AE80: 17499.75273 | AF80: 18164.65455 | AG80: 18829.55636 | AH80: 19494.45818
K81: Surfacing | L81: ='Do Min Cost Model'!C7 -> 0 | M81: ='Do Min Cost Model'!D7 -> 12720 | N81: ='Do Min Cost Model'!E7 -> 8362.4 | O81: ='Do Min Cost Model'!F7 -> 0 | P81: ='Do Min Cost Model'!G7 -> 0 | Q81: ='Do Min Cost Model'!H7 -> 0 | R81: ='Do Min Cost Model'!I7 -> 1104 | S81: ='Do Min Cost Model'!J7 -> 0 | T81: ='Do Min Cost Model'!K7 -> 0 | U81: ='Do Min Cost Model'!L7 -> 5400 | V81: ='Do Min Cost Model'!M7*P7 -> 12000 | W81: =TREND($L$81:$V$81,$L$78:$V$78,W78)*$P$4 -> 3172.980364 | X81: 3221.975273 | Y81: 3270.970182 | Z81: 3319.965091 | AA81: 3368.96 | AB81: 3417.954909 | AC81: 3466.949818 | AD81: 3515.944727 | AE81: 3564.939636 | AF81: 3613.934545 | AG81: 3662.929455 | AH81: 3711.924364
K82: Shoulder | L82: ='Do Min Cost Model'!C8 -> 0 | M82: ='Do Min Cost Model'!D8 -> 0 | N82: ='Do Min Cost Model'!E8 -> 0 | O82: ='Do Min Cost Model'!F8 -> 0 | P82: ='Do Min Cost Model'!G8 -> 300 | Q82: ='Do Min Cost Model'!H8 -> 60 | R82: ='Do Min Cost Model'!I8 -> 6756 | S82: ='Do Min Cost Model'!J8 -> 7932 | T82: ='Do Min Cost Model'!K8 -> 0 | U82: ='Do Min Cost Model'!L8 -> 2400 | V82: ='Do Min Cost Model'!M8*P7 -> 3840 | W82: =TREND($L$82:$V$82,$L$78:$V$78,W78)*$P$4 -> 3778.909091 | X82: 4150.690909 | Y82: 4522.472727 | Z82: 4894.254545 | AA82: 5266.036364 | AB82: 5637.818182 | AC82: 6009.6 | AD82: 6381.381818 | AE82: 6753.163636 | AF82: 7124.945455 | AG82: 7496.727273 | AH82: 7868.509091

Sheet SensitivityBest (hidden)
A1: Maximum Sensitivity Adjustment
O2: Adjustment | P2: Adjustment Factor | Q2: Scroll Value
F3: Increase the maintenance cost progression +20% | T3: Year | U3: 1 | V3: 2 | W3: 3 | X3: 4 | Y3: 5 | Z3: 6 | AA3: 7 | AB3: 8 | AC3: 9 | AD3: 10 | AE3: 11 | AF3: 12 | AG3: 13
A4: Do Minimum Maintenance Cost Progression | E4: Decrease | M4: Increase | P4: 1.2 | U4: 2017/18 | V4: 2018/19 | W4: 2019/20 | X4: 2020/21 | Y4: 2021/22 | Z4: 2022/23 | AA4: 2023/24 | AB4: 2024/25 | AC4: 2025/26 | AD4: 2026/27 | AE4: 2027/28 | AF4: 2028/29 | AG4: 2029/30
S5: Maintenance Costs | T5: Pavement | U5: =V80 -> 45000 | V5: =W80 -> 24816.26182 | W5: 26631.79636 | X5: 28447.33091 | Y5: 30262.86545 | Z5: 32078.4 | AA5: 33893.93455 | AB5: 35709.46909 | AC5: 37525.00364 | AD5: 39340.53818 | AE5: 41156.07273 | AF5: 42971.60727 | AG5: 44787.14182
F6: Increase Do Minimum Year 1 assessed maintenance costs +20% | T6: Surfacing | U6: =V81 -> 18000 | V6: 7377.652364 | W6: 7778.417455 | X6: 8179.182545 | Y6: 8579.947636 | Z6: 8980.712727 | AA6: 9381.477818 | AB6: 9782.242909 | AC6: 10183.008 | AD6: 10583.77309 | AE6: 10984.53818 | AF6: 11385.30327 | AG6: 11786.06836
A7: Year 1 Do Minimum Maintenance Costs | E7: Decrease | M7: Increase | P7: 1.2 | T7: Shoulder | U7: 5760 | V7: 6506.181818 | W7: 7168.581818 | X7: 7830.981818 | Y7: 8493.381818 | Z7: 9155.781818 | AA7: 9818.181818 | AB7: 10480.58182 | AC7: 11142.98182 | AD7: 11805.38182 | AE7: 12467.78182 | AF7: 13130.18182 | AG7: 13792.58182
F9: Decrease the Year 1 treatment estimate for proposed options -10%
A10: Year 1 Treatment Costs (excluding Do Minimum) | E10: Decrease | M10: Increase | P10: 0.9
F12: Advance the rehabilitation timing within the Do Minimum option -2 years
A13: Do Minimum Rehabilitation Timing | E13: Advance | M13: Defer | P13: 2
I16: BEFORE SENSITIVITY | K16: AFTER SENSITIVITY
F17: OPTIONS SUMMARY | I17: NPV | J17: EI | K17: NPV | L17: EI
F18: HEAVY MAINTENANCE | I18: =Template!N61 -> 29010.19167 | J18: =Template!N62 -> -4.014230477 | K18: =N62 ->  | L18: =N63 -> 
F19: RENEWAL No.1 | I19: =Template!T61 -> 123842.1764 | J19: =Template!T62 -> 0.8878934639 | K19: =T62 -> 234220.8474 | L19: =T63 -> 5.677246907
F20: RENEWAL No.2 | I20: =Template!Z61 -> 33096.95033 | J20: =Template!Z62 -> 0.1342894603 | K20: =Z62 -> 154173.7345 | L20: =Z63 -> 1.120944928
F21: RENEWAL No.3 | I21: =Template!AF61 -> -85770.97419 | J21: =Template!AF62 -> -0.2347781842 | K21: =AF62 -> 47192.60241 | L21: =AF63 -> 0.1930008237
F22: PREFERED OPTION | I22: =VLOOKUP(MAX(Template!G101:G104),Template!G101:K104,4,FALSE) -> Renewal No.1 | K22: =IF(ISERROR(VLOOKUP(MAX(F68:F71),F68:H71,3,FALSE)),"Do Minimum",(VLOOKUP(MAX(F68:F71),F68:H71,3,FALSE))) -> Do Minimum
D25: DO MINIMUM | J25: HEAVY MAINTENANCE | P25: RENEWAL No.1 | V25: RENEWAL No.2 | AB25: RENEWAL No.3
A26: Year | C26: SPPWF | D26: Rehab | E26: Resurf | F26: Annual Maint (Pave) | G26: Annual Maint (Surf) | H26: Annual Maint (Should) | I26: Discounted Total Costs | J26: Rehab | K26: Resurf | L26: Annual Maint (Pave) | M26: Annual Maint (Surf) | N26: Annual Maint (Should) | O26: Discounted Total Costs | P26: Rehab | Q26: Resurf | R26: Annual Maint (Pave) | S26: Annual Maint (Surf) | T26: Annual Maint (Should) | U26: Discounted Total Costs | V26: Rehab | W26: Resurf | X26: Annual Maint (Pave) | Y26: Annual Maint (Surf) | Z26: Annual Maint (Should) | AA26: Discounted Total Costs | AB26: Rehab | AC26: Resurf | AD26: Annual Maint (Pave) | AE26: Annual Maint (Surf) | AF26: Annual Maint (Should) | AG26: Discounted Total Costs
A27: 2017/18 | B27: 1 | C27: =1/((1+6%)^B27) -> 0.9433962264 | D27: =Template!D6 -> 0 | E27: =Template!E6 -> 0 | F27: =IF(SUM(D27)=0,U5,0) -> 45000 | G27: =IF(SUM(D27)=0,U6,0) -> 18000 | H27: =IF(SUM(D27)=0,U7,0) -> 5760 | I27: =SUM(D27:H27)*C27 -> 64867.92453 | J27: =Template!L6*$P$10 -> 99270 | K27: =Template!K6 -> 0 | L27: =Template!#REF! ->  | M27: =Template!M6 -> 0 | N27: =Template!N6 -> 0 | O27: =SUM(J27:N27)*C27 ->  | P27: =Template!P6*$P$10 -> 260820 | Q27: =Template!Q6 -> 0 | R27: =Template!R6 -> 0 | S27: =Template!S6 -> 0 | T27: =Template!T6 -> 0 | U27: =SUM(P27:T27)*C27 -> 246056.6038 | V27: =Template!V6*$P$10 -> 362880 | W27: =Template!W6 -> 0 | X27: =Template!X6 -> 0 | Y27: =Template!Y6 -> 0 | Z27: =Template!Z6 -> 0 | AA27: =SUM(V27:Z27)*C27 -> 342339.6226 | AB27: =Template!AB6*$P$10 -> 476280 | AC27: =Template!AC6 -> 0 | AD27: =Template!AD6 -> 0 | AE27: =Template!AE6 -> 0 | AF27: =Template!AF6 -> 0 | AG27: =SUM(AB27:AF27)*C27 -> 449320.7547
A28: 2018/19 | B28: 2 | C28: 0.88999644 | D28: =Template!D7 -> 0 | E28: =Template!E7 -> 0 | F28: =IF(SUM(D27:D28)=0,V5,0) -> 24816.26182 | G28: =IF(SUM(D27:D28)=0,V6,0) -> 7377.652364 | H28: =IF(SUM(D27:D28)=0,V7,0) -> 6506.181818 | I28: 34442.94767 | J28: =Template!J7 -> 0 | K28: =Template!K7 -> 0 | L28: =Template!L7 -> 2000 | M28: =Template!M7 -> 1500 | N28: =Template!N7 -> 500 | O28: 3559.98576 | P28: =Template!P7 -> 0 | Q28: =Template!Q7 -> 0 | R28: =Template!R7 -> 0 | S28: =Template!S7 -> 0 | T28: =Template!T7 -> 0 | U28: 0 | V28: =Template!V7 -> 0 | W28: =Template!W7 -> 0 | X28: =Template!X7 -> 0 | Y28: =Template!Y7 -> 0 | Z28: =Template!Z7 -> 0 | AA28: 0 | AB28: =Template!AB7 -> 0 | AC28: =Template!AC7 -> 0 | AD28: =Template!AD7 -> 0 | AE28: =Template!AE7 -> 0 | AF28: =Template!AF7 -> 0 | AG28: 0
A29: 2019/20 | B29: 3 | C29: 0.839619283 | D29: =Template!D8 -> 0 | E29: =Template!E8 -> 0 | F29: =IF(SUM(D27:D29)=0,W5,0) -> 26631.79636 | G29: =IF(SUM(D27:D29)=0,W6,0) -> 7778.417455 | H29: =IF(SUM(D27:D29)=0,W7,0) -> 7168.581818 | I29: 34910.35858 | J29: =Template!J8 -> 0 | K29: =Template!K8 -> 0 | L29: =Template!L8 -> 4000 | M29: =Template!M8 -> 3000 | N29: =Template!N8 -> 1000 | O29: 6716.954264 | P29: =Template!P8 -> 0 | Q29: =Template!Q8 -> 82000 | R29: =Template!R8 -> 0 | S29: =Template!S8 -> 0 | T29: =Template!T8 -> 0 | U29: 68848.78121 | V29: =Template!V8 -> 0 | W29: =Template!W8 -> 82000 | X29: =Template!X8 -> 0 | Y29: =Template!Y8 -> 0 | Z29: =Template!Z8 -> 0 | AA29: 68848.78121 | AB29: =Template!AB8 -> 0 | AC29: =Template!AC8 -> 82000 | AD29: =Template!AD8 -> 0 | AE29: =Template!AE8 -> 0 | AF29: =Template!AF8 -> 0 | AG29: 68848.78121
A30: 2020/21 | B30: 4 | C30: 0.7920936632 | D30: =OFFSET(Template!D9,-$P$13,0,1,1) -> 0 | E30: =OFFSET(Template!E9,-$P$13,0,1,1) -> 0 | F30: =IF(SUM(D27:D30)=0,X5,0) -> 28447.33091 | G30: =IF(SUM(D27:D30)=0,X6,0) -> 8179.182545 | H30: =IF(SUM(D27:D30)=0,X7,0) -> 7830.981818 | I30: 35214.50029 | J30: =OFFSET(Template!J9,-$P$12,0,1,1) -> 0 | K30: =Template!K9 -> 0 | L30: =Template!L9 -> 6000 | M30: =Template!M9 -> 4500 | N30: =Template!N9 -> 1500 | O30: 9505.123959 | P30: =Template!P9 -> 0 | Q30: =Template!Q9 -> 0 | R30: =Template!R9 -> 0 | S30: =Template!S9 -> 0 | T30: =Template!T9 -> 0 | U30: 0 | V30: =Template!V9 -> 0 | W30: =Template!W9 -> 0 | X30: =Template!X9 -> 0 | Y30: =Template!Y9 -> 0 | Z30: =Template!Z9 -> 0 | AA30: 0 | AB30: =Template!AB9 -> 0 | AC30: =Template!AC9 -> 0 | AD30: =Template!AD9 -> 0 | AE30: =Template!AE9 -> 0 | AF30: =Template!AF9 -> 0 | AG30: 0
A31: 2021/22 | B31: 5 | C31: 0.7472581729 | D31: =OFFSET(Template!D10,-$P$13,0,1,1) -> 0 | E31: =OFFSET(Template!E10,-$P$13,0,1,1) -> 0 | F31: =IF(SUM(D27:D31)=0,Y5,0) -> 30262.86545 | G31: =IF(SUM(D27:D31)=0,Y6,0) -> 8579.947636 | H31: =IF(SUM(D27:D31)=0,Y7,0) -> 8493.381818 | I31: 35372.35852 | J31: =OFFSET(Template!J10,-$P$12,0,1,1) -> 0 | K31: =Template!K10 -> 92000 | L31: =Template!L10 -> 0 | M31: =Template!M10 -> 0 | N31: =Template!N10 -> 0 | O31: 68747.7519 | P31: =Template!P10 -> 0 | Q31: =Template!Q10 -> 0 | R31: =Template!R10 -> 250 | S31: =Template!S10 -> 150 | T31: =Template!T10 -> 50 | U31: 336.2661778 | V31: =Template!V10 -> 0 | W31: =Template!W10 -> 0 | X31: =Template!X10 -> 250 | Y31: =Template!Y10 -> 150 | Z31: =Template!Z10 -> 50 | AA31: 336.2661778 | AB31: =Template!AB10 -> 0 | AC31: =Template!AC10 -> 0 | AD31: =Template!AD10 -> 250 | AE31: =Template!AE10 -> 150 | AF31: =Template!AF10 -> 50 | AG31: 336.2661778
A32: 2022/23 | B32: 6 | C32: 0.7049605404 | D32: =OFFSET(Template!D11,-$P$13,0,1,1) -> 0 | E32: =OFFSET(Template!E11,-$P$13,0,1,1) -> 0 | F32: =IF(SUM(D27:D32)=0,Z5,0) -> 32078.4 | G32: =IF(SUM(D27:D32)=0,Z6,0) -> 8980.712727 | H32: =IF(SUM(D27:D32)=0,Z7,0) -> 9155.781818 | I32: 35399.5192 | J32: =OFFSET(Template!J11,-$P$12,0,1,1) -> 0 | K32: =Template!K11 -> 0 | L32: =Template!L11 -> 0 | M32: =Template!M11 -> 0 | N32: =Template!N11 -> 0 | O32: 0 | P32: =Template!P11 -> 0 | Q32: =Template!Q11 -> 0 | R32: =Template!R11 -> 500 | S32: =Template!S11 -> 300 | T32: =Template!T11 -> 100 | U32: 634.4644864 | V32: =Template!V11 -> 0 | W32: =Template!W11 -> 0 | X32: =Template!X11 -> 500 | Y32: =Template!Y11 -> 300 | Z32: =Template!Z11 -> 100 | AA32: 634.4644864 | AB32: =Template!AB11 -> 0 | AC32: =Template!AC11 -> 0 | AD32: =Template!AD11 -> 500 | AE32: =Template!AE11 -> 300 | AF32: =Template!AF11 -> 100 | AG32: 634.4644864
A33: 2023/24 | B33: 7 | C33: 0.6650571136 | D33: =OFFSET(Template!D12,-$P$13,0,1,1) -> 0 | E33: =OFFSET(Template!E12,-$P$13,0,1,1) -> 0 | F33: =IF(SUM(D27:D33)=0,AA5,0) -> 33893.93455 | G33: =IF(SUM(D27:D33)=0,AA6,0) -> 9381.477818 | H33: =IF(SUM(D27:D33)=0,AA7,0) -> 9818.181818 | I33: 35310.2725 | J33: =OFFSET(Template!J12,-$P$12,0,1,1) -> 0 | K33: =Template!K12 -> 0 | L33: =Template!L12 -> 4000 | M33: =Template!M12 -> 2500 | N33: =Template!N12 -> 750 | O33: 4821.664074 | P33: =Template!P12 -> 0 | Q33: =Template!Q12 -> 0 | R33: =Template!R12 -> 750 | S33: =Template!S12 -> 450 | T33: =Template!T12 -> 150 | U33: 897.8271034 | V33: =Template!V12 -> 0 | W33: =Template!W12 -> 0 | X33: =Template!X12 -> 750 | Y33: =Template!Y12 -> 450 | Z33: =Template!Z12 -> 150 | AA33: 897.8271034 | AB33: =Template!AB12 -> 0 | AC33: =Template!AC12 -> 0 | AD33: =Template!AD12 -> 750 | AE33: =Template!AE12 -> 450 | AF33: =Template!AF12 -> 150 | AG33: 897.8271034
A34: 2024/25 | B34: 8 | C34: 0.6274123713 | D34: =OFFSET(Template!D13,-$P$13,0,1,1) -> 0 | E34: =OFFSET(Template!E13,-$P$13,0,1,1) -> 0 | F34: =IF(SUM(D27:D34)=0,AB5,0) -> 35709.46909 | G34: =IF(SUM(D27:D34)=0,AB6,0) -> 9782.242909 | H34: =IF(SUM(D27:D34)=0,AB7,0) -> 10480.58182 | I34: 35117.70959 | J34: =OFFSET(Template!J13,-$P$12,0,1,1) -> 0 | K34: =Template!K13 -> 0 | L34: =Template!L13 -> 8000 | M34: =Template!M13 -> 5000 | N34: =Template!N13 -> 1500 | O34: 9097.479384 | P34: =Template!P13 -> 0 | Q34: =Template!Q13 -> 0 | R34: =Template!R13 -> 1000 | S34: =Template!S13 -> 600 | T34: =Template!T13 -> 200 | U34: 1129.342268 | V34: =Template!V13 -> 0 | W34: =Template!W13 -> 0 | X34: =Template!X13 -> 1000 | Y34: =Template!Y13 -> 600 | Z34: =Template!Z13 -> 200 | AA34: 1129.342268 | AB34: =Template!AB13 -> 0 | AC34: =Template!AC13 -> 0 | AD34: =Template!AD13 -> 1000 | AE34: =Template!AE13 -> 600 | AF34: =Template!AF13 -> 200 | AG34: 1129.342268
A35: 2025/26 | B35: 9 | C35: 0.5918984635 | D35: =OFFSET(Template!D14,-$P$13,0,1,1) -> 0 | E35: =OFFSET(Template!E14,-$P$13,0,1,1) -> 0 | F35: =IF(SUM(D27:D35)=0,AC5,0) -> 37525.00364 | G35: =IF(SUM(D27:D35)=0,AC6,0) -> 10183.008 | H35: =IF(SUM(D27:D35)=0,AC7,0) -> 11142.98182 | I35: 34833.8126 | J35: =OFFSET(Template!J14,-$P$12,0,1,1) -> 0 | K35: =Template!K14 -> 0 | L35: =Template!L14 -> 12000 | M35: =Template!M14 -> 7500 | N35: =Template!N14 -> 2250 | O35: 12873.79158 | P35: =Template!P14 -> 0 | Q35: =Template!Q14 -> 0 | R35: =Template!R14 -> 1250 | S35: =Template!S14 -> 750 | T35: =Template!T14 -> 250 | U35: 1331.771543 | V35: =Template!V14 -> 0 | W35: =Template!W14 -> 0 | X35: =Template!X14 -> 1250 | Y35: =Template!Y14 -> 750 | Z35: =Template!Z14 -> 250 | AA35: 1331.771543 | AB35: =Template!AB14 -> 0 | AC35: =Template!AC14 -> 0 | AD35: =Template!AD14 -> 1250 | AE35: =Template!AE14 -> 750 | AF35: =Template!AF14 -> 250 | AG35: 1331.771543
A36: 2026/27 | B36: 10 | C36: 0.5583947769 | D36: =OFFSET(Template!D15,-$P$13,0,1,1) -> 0 | E36: =OFFSET(Template!E15,-$P$13,0,1,1) -> 0 | F36: =IF(SUM(D27:D36)=0,AN8,0) -> 0 | G36: =IF(SUM(D27:D36)=0,AN9,0) -> 0 | H36: =IF(SUM(D27:D36)=0,AN10,0) -> 0 | I36: 0 | J36: =OFFSET(Template!J15,-$P$12,0,1,1) -> 0 | K36: =Template!K15 -> 0 | L36: =Template!L15 -> 16000 | M36: =Template!M15 -> 10000 | N36: =Template!N15 -> 3000 | O36: 16193.44853 | P36: =Template!P15 -> 0 | Q36: =Template!Q15 -> 0 | R36: =Template!R15 -> 1500 | S36: =Template!S15 -> 900 | T36: =Template!T15 -> 300 | U36: 1507.665898 | V36: =Template!V15 -> 0 | W36: =Template!W15 -> 0 | X36: =Template!X15 -> 1500 | Y36: =Template!Y15 -> 900 | Z36: =Template!Z15 -> 300 | AA36: 1507.665898 | AB36: =Template!AB15 -> 0 | AC36: =Template!AC15 -> 0 | AD36: =Template!AD15 -> 1500 | AE36: =Template!AE15 -> 900 | AF36: =Template!AF15 -> 300 | AG36: 1507.665898
A37: 2027/28 | B37: 11 | C37: 0.5267875254 | D37: =OFFSET(Template!D16,-$P$13,0,1,1) -> 403200 | E37: =OFFSET(Template!E16,-$P$13,0,1,1) -> 0 | F37: =IF(SUM(D27:D37)=0,AO8,0) -> 0 | G37: =IF(SUM(D27:D37)=0,AO9,0) -> 0 | H37: =IF(SUM(D27:D37)=0,AO10,0) -> 0 | I37: 212400.7302 | J37: =OFFSET(Template!J16,-$P$12,0,1,1) -> 403200 | K37: =Template!K16 -> 0 | L37: =Template!L16 -> 0 | M37: =Template!M16 -> 0 | N37: =Template!N16 -> 0 | O37: 212400.7302 | P37: =Template!P16 -> 0 | Q37: =Template!Q16 -> 0 | R37: =Template!R16 -> 1750 | S37: =Template!S16 -> 1050 | T37: =Template!T16 -> 350 | U37: 1659.380705 | V37: =Template!V16 -> 0 | W37: =Template!W16 -> 0 | X37: =Template!X16 -> 1750 | Y37: =Template!Y16 -> 1050 | Z37: =Template!Z16 -> 350 | AA37: 1659.380705 | AB37: =Template!AB16 -> 0 | AC37: =Template!AC16 -> 0 | AD37: =Template!AD16 -> 1750 | AE37: =Template!AE16 -> 1050 | AF37: =Template!AF16 -> 350 | AG37: 1659.380705
A38: 2028/29 | B38: 12 | C38: 0.4969693636 | D38: =OFFSET(Template!D17,-$P$13,0,1,1) -> 0 | E38: =OFFSET(Template!E17,-$P$13,0,1,1) -> 0 | F38: =Template!F17 -> 0 | G38: =Template!G17 -> 0 | H38: =Template!H17 -> 0 | I38: 0 | J38: =OFFSET(Template!J17,-$P$12,0,1,1) -> 0 | K38: =Template!K17 -> 0 | L38: =Template!L17 -> 0 | M38: =Template!M17 -> 0 | N38: =Template!N17 -> 0 | O38: 0 | P38: =Template!P17 -> 0 | Q38: =Template!Q17 -> 0 | R38: =Template!R17 -> 2000 | S38: =Template!S17 -> 1200 | T38: =Template!T17 -> 400 | U38: 1789.089709 | V38: =Template!V17 -> 0 | W38: =Template!W17 -> 0 | X38: =Template!X17 -> 2000 | Y38: =Template!Y17 -> 1200 | Z38: =Template!Z17 -> 400 | AA38: 1789.089709 | AB38: =Template!AB17 -> 0 | AC38: =Template!AC17 -> 0 | AD38: =Template!AD17 -> 2000 | AE38: =Template!AE17 -> 1200 | AF38: =Template!AF17 -> 400 | AG38: 1789.089709
A39: 2029/30 | B39: 13 | C39: 0.4688390222 | D39: =OFFSET(Template!D18,-$P$13,0,1,1) -> 0 | E39: =OFFSET(Template!E18,-$P$13,0,1,1) -> 82000 | F39: =Template!F18 -> 250 | G39: =Template!G18 -> 150 | H39: =Template!H18 -> 50 | I39: 38655.77738 | J39: =OFFSET(Template!J18,-$P$12,0,1,1) -> 0 | K39: =Template!K18 -> 82000 | L39: =Template!L18 -> 0 | M39: =Template!M18 -> 0 | N39: =Template!N18 -> 0 | O39: 38444.79982 | P39: =Template!P18 -> 0 | Q39: =Template!Q18 -> 0 | R39: =Template!R18 -> 2250 | S39: =Template!S18 -> 1350 | T39: =Template!T18 -> 450 | U39: 1898.79804 | V39: =Template!V18 -> 0 | W39: =Template!W18 -> 0 | X39: =Template!X18 -> 2250 | Y39: =Template!Y18 -> 1350 | Z39: =Template!Z18 -> 450 | AA39: 1898.79804 | AB39: =Template!AB18 -> 0 | AC39: =Template!AC18 -> 0 | AD39: =Template!AD18 -> 2250 | AE39: =Template!AE18 -> 1350 | AF39: =Template!AF18 -> 450 | AG39: 1898.79804
A40: 2030/31 | B40: 14 | C40: 0.4423009644 | D40: =OFFSET(Template!D19,-$P$13,0,1,1) -> 0 | E40: =OFFSET(Template!E19,-$P$13,0,1,1) -> 0 | F40: =Template!F19 -> 500 | G40: =Template!G19 -> 300 | H40: =Template!H19 -> 100 | I40: 398.0708679 | J40: =OFFSET(Template!J19,-$P$12,0,1,1) -> 0 | K40: =Template!K19 -> 0 | L40: =Template!L19 -> 0 | M40: =Template!M19 -> 0 | N40: =Template!N19 -> 0 | O40: 0 | P40: =Template!P19 -> 0 | Q40: =Template!Q19 -> 0 | R40: =Template!R19 -> 2500 | S40: =Template!S19 -> 1500 | T40: =Template!T19 -> 500 | U40: 1990.35434 | V40: =Template!V19 -> 0 | W40: =Template!W19 -> 0 | X40: =Template!X19 -> 2500 | Y40: =Template!Y19 -> 1500 | Z40: =Template!Z19 -> 500 | AA40: 1990.35434 | AB40: =Template!AB19 -> 0 | AC40: =Template!AC19 -> 0 | AD40: =Template!AD19 -> 2500 | AE40: =Template!AE19 -> 1500 | AF40: =Template!AF19 -> 500 | AG40: 1990.35434
A41: 2031/32 | B41: 15 | C41: 0.4172650607 | D41: =OFFSET(Template!D20,-$P$13,0,1,1) -> 0 | E41: =OFFSET(Template!E20,-$P$13,0,1,1) -> 0 | F41: =Template!F20 -> 750 | G41: =Template!G20 -> 450 | H41: =Template!H20 -> 150 | I41: 563.307832 | J41: =OFFSET(Template!J20,-$P$12,0,1,1) -> 0 | K41: =Template!K20 -> 0 | L41: =Template!L20 -> 250 | M41: =Template!M20 -> 150 | N41: =Template!N20 -> 50 | O41: 187.7692773 | P41: =Template!P20 -> 0 | Q41: =Template!Q20 -> 82000 | R41: =Template!R20 -> 0 | S41: =Template!S20 -> 0 | T41: =Template!T20 -> 0 | U41: 34215.73498 | V41: =Template!V20 -> 0 | W41: =Template!W20 -> 0 | X41: =Template!X20 -> 2750 | Y41: =Template!Y20 -> 1650 | Z41: =Template!Z20 -> 550 | AA41: 2065.462051 | AB41: =Template!AB20 -> 0 | AC41: =Template!AC20 -> 0 | AD41: =Template!AD20 -> 2750 | AE41: =Template!AE20 -> 1650 | AF41: =Template!AF20 -> 550 | AG41: 2065.462051
A42: 2032/33 | B42: 16 | C42: 0.3936462837 | D42: =OFFSET(Template!D21,-$P$13,0,1,1) -> 0 | E42: =OFFSET(Template!E21,-$P$13,0,1,1) -> 0 | F42: =Template!F21 -> 1000 | G42: =Template!G21 -> 600 | H42: =Template!H21 -> 200 | I42: 708.5633107 | J42: =OFFSET(Template!J21,-$P$12,0,1,1) -> 0 | K42: =Template!K21 -> 0 | L42: =Template!L21 -> 500 | M42: =Template!M21 -> 300 | N42: =Template!N21 -> 100 | O42: 354.2816553 | P42: =Template!P21 -> 0 | Q42: =Template!Q21 -> 0 | R42: =Template!R21 -> 0 | S42: =Template!S21 -> 0 | T42: =Template!T21 -> 0 | U42: 0 | V42: =Template!V21 -> 0 | W42: =Template!W21 -> 0 | X42: =Template!X21 -> 3000 | Y42: =Template!Y21 -> 1800 | Z42: =Template!Z21 -> 600 | AA42: 2125.689932 | AB42: =Template!AB21 -> 0 | AC42: =Template!AC21 -> 0 | AD42: =Template!AD21 -> 3000 | AE42: =Template!AE21 -> 1800 | AF42: =Template!AF21 -> 600 | AG42: 2125.689932
A43: 2033/34 | B43: 17 | C43: 0.3713644186 | D43: =OFFSET(Template!D22,-$P$13,0,1,1) -> 0 | E43: =OFFSET(Template!E22,-$P$13,0,1,1) -> 0 | F43: =Template!F22 -> 1250 | G43: =Template!G22 -> 750 | H43: =Template!H22 -> 250 | I43: 835.5699418 | J43: =OFFSET(Template!J22,-$P$12,0,1,1) -> 0 | K43: =Template!K22 -> 0 | L43: =Template!L22 -> 750 | M43: =Template!M22 -> 450 | N43: =Template!N22 -> 150 | O43: 501.3419651 | P43: =Template!P22 -> 0 | Q43: =Template!Q22 -> 0 | R43: =Template!R22 -> 400 | S43: =Template!S22 -> 250 | T43: =Template!T22 -> 75 | U43: 269.2392035 | V43: =Template!V22 -> 0 | W43: =Template!W22 -> 82000 | X43: =Template!X22 -> 0 | Y43: =Template!Y22 -> 0 | Z43: =Template!Z22 -> 0 | AA43: 30451.88232 | AB43: =Template!AB22 -> 0 | AC43: =Template!AC22 -> 82000 | AD43: =Template!AD22 -> 0 | AE43: =Template!AE22 -> 0 | AF43: =Template!AF22 -> 0 | AG43: 30451.88232
A44: 2034/35 | B44: 18 | C44: 0.3503437911 | D44: =OFFSET(Template!D23,-$P$13,0,1,1) -> 0 | E44: =OFFSET(Template!E23,-$P$13,0,1,1) -> 0 | F44: =Template!F23 -> 1500 | G44: =Template!G23 -> 900 | H44: =Template!H23 -> 300 | I44: 945.928236 | J44: =OFFSET(Template!J23,-$P$12,0,1,1) -> 0 | K44: =Template!K23 -> 0 | L44: =Template!L23 -> 1000 | M44: =Template!M23 -> 600 | N44: =Template!N23 -> 200 | O44: 630.618824 | P44: =Template!P23 -> 0 | Q44: =Template!Q23 -> 0 | R44: =Template!R23 -> 800 | S44: =Template!S23 -> 500 | T44: =Template!T23 -> 150 | U44: 507.9984971 | V44: =Template!V23 -> 0 | W44: =Template!W23 -> 0 | X44: =Template!X23 -> 0 | Y44: =Template!Y23 -> 0 | Z44: =Template!Z23 -> 0 | AA44: 0 | AB44: =Template!AB23 -> 0 | AC44: =Template!AC23 -> 0 | AD44: =Template!AD23 -> 0 | AE44: =Template!AE23 -> 0 | AF44: =Template!AF23 -> 0 | AG44: 0
A45: 2035/36 | B45: 19 | C45: 0.3305130105 | D45: =OFFSET(Template!D24,-$P$13,0,1,1) -> 0 | E45: =OFFSET(Template!E24,-$P$13,0,1,1) -> 0 | F45: =Template!F24 -> 1750 | G45: =Template!G24 -> 1050 | H45: =Template!H24 -> 350 | I45: 1041.115983 | J45: =OFFSET(Template!J24,-$P$12,0,1,1) -> 0 | K45: =Template!K24 -> 0 | L45: =Template!L24 -> 1250 | M45: =Template!M24 -> 750 | N45: =Template!N24 -> 250 | O45: 743.6542736 | P45: =Template!P24 -> 0 | Q45: =Template!Q24 -> 0 | R45: =Template!R24 -> 1200 | S45: =Template!S24 -> 750 | T45: =Template!T24 -> 225 | U45: 718.8657978 | V45: =Template!V24 -> 0 | W45: =Template!W24 -> 0 | X45: =Template!X24 -> 400 | Y45: =Template!Y24 -> 250 | Z45: =Template!Z24 -> 75 | AA45: 239.6219326 | AB45: =Template!AB24 -> 0 | AC45: =Template!AC24 -> 0 | AD45: =Template!AD24 -> 400 | AE45: =Template!AE24 -> 250 | AF45: =Template!AF24 -> 75 | AG45: 239.6219326
A46: 2036/37 | B46: 20 | C46: 0.3118047269 | D46: =OFFSET(Template!D25,-$P$13,0,1,1) -> 0 | E46: =OFFSET(Template!E25,-$P$13,0,1,1) -> 0 | F46: =Template!F25 -> 2000 | G46: =Template!G25 -> 1200 | H46: =Template!H25 -> 400 | I46: 1122.497017 | J46: =OFFSET(Template!J25,-$P$12,0,1,1) -> 0 | K46: =Template!K25 -> 0 | L46: =Template!L25 -> 1500 | M46: =Template!M25 -> 900 | N46: =Template!N25 -> 300 | O46: 841.8727626 | P46: =Template!P25 -> 0 | Q46: =Template!Q25 -> 0 | R46: =Template!R25 -> 1600 | S46: =Template!S25 -> 1000 | T46: =Template!T25 -> 300 | U46: 904.233708 | V46: =Template!V25 -> 0 | W46: =Template!W25 -> 0 | X46: =Template!X25 -> 800 | Y46: =Template!Y25 -> 500 | Z46: =Template!Z25 -> 150 | AA46: 452.116854 | AB46: =Template!AB25 -> 0 | AC46: =Template!AC25 -> 0 | AD46: =Template!AD25 -> 800 | AE46: =Template!AE25 -> 500 | AF46: =Template!AF25 -> 150 | AG46: 452.116854
A47: 2037/38 | B47: 21 | C47: 0.2941554027 | D47: =OFFSET(Template!D26,-$P$13,0,1,1) -> 0 | E47: =OFFSET(Template!E26,-$P$13,0,1,1) -> 0 | F47: =Template!F26 -> 2250 | G47: =Template!G26 -> 1350 | H47: =Template!H26 -> 450 | I47: 1191.329381 | J47: =OFFSET(Template!J26,-$P$12,0,1,1) -> 0 | K47: =Template!K26 -> 0 | L47: =Template!L26 -> 1750 | M47: =Template!M26 -> 1050 | N47: =Template!N26 -> 350 | O47: 926.5895186 | P47: =Template!P26 -> 0 | Q47: =Template!Q26 -> 0 | R47: =Template!R26 -> 2000 | S47: =Template!S26 -> 1250 | T47: =Template!T26 -> 375 | U47: 1066.313335 | V47: =Template!V26 -> 0 | W47: =Template!W26 -> 0 | X47: =Template!X26 -> 1200 | Y47: =Template!Y26 -> 750 | Z47: =Template!Z26 -> 225 | AA47: 639.7880009 | AB47: =Template!AB26 -> 0 | AC47: =Template!AC26 -> 0 | AD47: =Template!AD26 -> 1200 | AE47: =Template!AE26 -> 750 | AF47: =Template!AF26 -> 225 | AG47: 639.7880009
A48: 2038/39 | B48: 22 | C48: 0.2775050969 | D48: =OFFSET(Template!D27,-$P$13,0,1,1) -> 0 | E48: =OFFSET(Template!E27,-$P$13,0,1,1) -> 0 | F48: =Template!F27 -> 2500 | G48: =Template!G27 -> 1500 | H48: =Template!H27 -> 500 | I48: 1248.772936 | J48: =OFFSET(Template!J27,-$P$12,0,1,1) -> 0 | K48: =Template!K27 -> 0 | L48: =Template!L27 -> 2000 | M48: =Template!M27 -> 1200 | N48: =Template!N27 -> 400 | O48: 999.0183489 | P48: =Template!P27 -> 0 | Q48: =Template!Q27 -> 0 | R48: =Template!R27 -> 2400 | S48: =Template!S27 -> 1500 | T48: =Template!T27 -> 450 | U48: 1207.147172 | V48: =Template!V27 -> 0 | W48: =Template!W27 -> 0 | X48: =Template!X27 -> 1600 | Y48: =Template!Y27 -> 1000 | Z48: =Template!Z27 -> 300 | AA48: 804.764781 | AB48: =Template!AB27 -> 0 | AC48: =Template!AC27 -> 0 | AD48: =Template!AD27 -> 1600 | AE48: =Template!AE27 -> 1000 | AF48: =Template!AF27 -> 300 | AG48: 804.764781
A49: 2039/40 | B49: 23 | C49: 0.2617972612 | D49: =OFFSET(Template!D28,-$P$13,0,1,1) -> 0 | E49: =OFFSET(Template!E28,-$P$13,0,1,1) -> 0 | F49: =Template!F28 -> 2750 | G49: =Template!G28 -> 1650 | H49: =Template!H28 -> 550 | I49: 1295.896443 | J49: =OFFSET(Template!J28,-$P$12,0,1,1) -> 0 | K49: =Template!K28 -> 0 | L49: =Template!L28 -> 2250 | M49: =Template!M28 -> 1350 | N49: =Template!N28 -> 450 | O49: 1060.278908 | P49: =Template!P28 -> 0 | Q49: =Template!Q28 -> 0 | R49: =Template!R28 -> 2800 | S49: =Template!S28 -> 1750 | T49: =Template!T28 -> 525 | U49: 1328.621101 | V49: =Template!V28 -> 0 | W49: =Template!W28 -> 0 | X49: =Template!X28 -> 2000 | Y49: =Template!Y28 -> 1250 | Z49: =Template!Z28 -> 375 | AA49: 949.015072 | AB49: =Template!AB28 -> 0 | AC49: =Template!AC28 -> 0 | AD49: =Template!AD28 -> 2000 | AE49: =Template!AE28 -> 1250 | AF49: =Template!AF28 -> 375 | AG49: 949.015072
A50: 2040/41 | B50: 24 | C50: 0.2469785483 | D50: =OFFSET(Template!D29,-$P$13,0,1,1) -> 0 | E50: =OFFSET(Template!E29,-$P$13,0,1,1) -> 0 | F50: =Template!F29 -> 3000 | G50: =Template!G29 -> 1800 | H50: =Template!H29 -> 600 | I50: 1333.684161 | J50: =OFFSET(Template!J29,-$P$12,0,1,1) -> 0 | K50: =Template!K29 -> 0 | L50: =Template!L29 -> 2500 | M50: =Template!M29 -> 1500 | N50: =Template!N29 -> 500 | O50: 1111.403468 | P50: =Template!P29 -> 0 | Q50: =Template!Q29 -> 0 | R50: =Template!R29 -> 3200 | S50: =Template!S29 -> 2000 | T50: =Template!T29 -> 600 | U50: 1432.47558 | V50: =Template!V29 -> 0 | W50: =Template!W29 -> 0 | X50: =Template!X29 -> 2400 | Y50: =Template!Y29 -> 1500 | Z50: =Template!Z29 -> 450 | AA50: 1074.356685 | AB50: =Template!AB29 -> 0 | AC50: =Template!AC29 -> 0 | AD50: =Template!AD29 -> 2400 | AE50: =Template!AE29 -> 1500 | AF50: =Template!AF29 -> 450 | AG50: 1074.356685
A51: 2041/42 | B51: 25 | C51: 0.2329986305 | D51: =OFFSET(Template!D30,-$P$13,0,1,1) -> 0 | E51: =OFFSET(Template!E30,-$P$13,0,1,1) -> 0 | F51: =Template!F30 -> 0 | G51: =Template!G30 -> 0 | H51: =Template!H30 -> 0 | I51: 0 | J51: =OFFSET(Template!J30,-$P$12,0,1,1) -> 0 | K51: =Template!K30 -> 0 | L51: =Template!L30 -> 2750 | M51: =Template!M30 -> 1650 | N51: =Template!N30 -> 550 | O51: 1153.343221 | P51: =Template!P30 -> 0 | Q51: =Template!Q30 -> 0 | R51: =Template!R30 -> 3600 | S51: =Template!S30 -> 2250 | T51: =Template!T30 -> 675 | U51: 1520.316064 | V51: =Template!V30 -> 0 | W51: =Template!W30 -> 0 | X51: =Template!X30 -> 2800 | Y51: =Template!Y30 -> 1750 | Z51: =Template!Z30 -> 525 | AA51: 1182.46805 | AB51: =Template!AB30 -> 0 | AC51: =Template!AC30 -> 0 | AD51: =Template!AD30 -> 2800 | AE51: =Template!AE30 -> 1750 | AF51: =Template!AF30 -> 525 | AG51: 1182.46805
A52: 2042/43 | B52: 26 | C52: 0.2198100288 | D52: =OFFSET(Template!D31,-$P$13,0,1,1) -> 0 | E52: =OFFSET(Template!E31,-$P$13,0,1,1) -> 0 | F52: =Template!F31 -> 0 | G52: =Template!G31 -> 0 | H52: =Template!H31 -> 0 | I52: 0 | J52: =OFFSET(Template!J31,-$P$12,0,1,1) -> 0 | K52: =Template!K31 -> 0 | L52: =Template!L31 -> 3000 | M52: =Template!M31 -> 1800 | N52: =Template!N31 -> 600 | O52: 1186.974155 | P52: =Template!P31 -> 0 | Q52: =Template!Q31 -> 0 | R52: =Template!R31 -> 4000 | S52: =Template!S31 -> 2500 | T52: =Template!T31 -> 750 | U52: 1593.622709 | V52: =Template!V31 -> 0 | W52: =Template!W31 -> 0 | X52: =Template!X31 -> 3200 | Y52: =Template!Y31 -> 2000 | Z52: =Template!Z31 -> 600 | AA52: 1274.898167 | AB52: =Template!AB31 -> 0 | AC52: =Template!AC31 -> 0 | AD52: =Template!AD31 -> 3200 | AE52: =Template!AE31 -> 2000 | AF52: =Template!AF31 -> 600 | AG52: 1274.898167
A53: 2043/44 | B53: 27 | C53: 0.2073679517 | D53: =OFFSET(Template!D32,-$P$13,0,1,1) -> 0 | E53: =OFFSET(Template!E32,-$P$13,0,1,1) -> 82000 | F53: =Template!F32 -> 400 | G53: =Template!G32 -> 250 | H53: =Template!H32 -> 75 | I53: 17154.5138 | J53: =OFFSET(Template!J32,-$P$12,0,1,1) -> 0 | K53: =Template!K32 -> 82000 | L53: =Template!L32 -> 0 | M53: =Template!M32 -> 0 | N53: =Template!N32 -> 0 | O53: 17004.17204 | P53: =Template!P32 -> 0 | Q53: =Template!Q32 -> 0 | R53: =Template!R32 -> 4400 | S53: =Template!S32 -> 2750 | T53: =Template!T32 -> 825 | U53: 1653.759415 | V53: =Template!V32 -> 0 | W53: =Template!W32 -> 0 | X53: =Template!X32 -> 3600 | Y53: =Template!Y32 -> 2250 | Z53: =Template!Z32 -> 675 | AA53: 1353.075885 | AB53: =Template!AB32 -> 0 | AC53: =Template!AC32 -> 0 | AD53: =Template!AD32 -> 3600 | AE53: =Template!AE32 -> 2250 | AF53: =Template!AF32 -> 675 | AG53: 1353.075885
A54: 2044/45 | B54: 28 | C54: 0.1956301431 | D54: =OFFSET(Template!D33,-$P$13,0,1,1) -> 0 | E54: =OFFSET(Template!E33,-$P$13,0,1,1) -> 0 | F54: =Template!F33 -> 800 | G54: =Template!G33 -> 500 | H54: =Template!H33 -> 150 | I54: 283.6637075 | J54: =OFFSET(Template!J33,-$P$12,0,1,1) -> 0 | K54: =Template!K33 -> 0 | L54: =Template!L33 -> 0 | M54: =Template!M33 -> 0 | N54: =Template!N33 -> 0 | O54: 0 | P54: =Template!P33 -> 0 | Q54: =Template!Q33 -> 0 | R54: =Template!R33 -> 4800 | S54: =Template!S33 -> 3000 | T54: =Template!T33 -> 900 | U54: 1701.982245 | V54: =Template!V33 -> 0 | W54: =Template!W33 -> 0 | X54: =Template!X33 -> 4000 | Y54: =Template!Y33 -> 2500 | Z54: =Template!Z33 -> 750 | AA54: 1418.318537 | AB54: =Template!AB33 -> 0 | AC54: =Template!AC33 -> 0 | AD54: =Template!AD33 -> 4000 | AE54: =Template!AE33 -> 2500 | AF54: =Template!AF33 -> 750 | AG54: 1418.318537
A55: 2045/46 | B55: 29 | C55: 0.1845567388 | D55: =OFFSET(Template!D34,-$P$13,0,1,1) -> 0 | E55: =OFFSET(Template!E34,-$P$13,0,1,1) -> 0 | F55: =Template!F34 -> 1200 | G55: =Template!G34 -> 750 | H55: =Template!H34 -> 225 | I55: 401.4109068 | J55: =OFFSET(Template!J34,-$P$12,0,1,1) -> 0 | K55: =Template!K34 -> 0 | L55: =Template!L34 -> 400 | M55: =Template!M34 -> 250 | N55: =Template!N34 -> 75 | O55: 133.8036356 | P55: =Template!P34 -> 0 | Q55: =Template!Q34 -> 82000 | R55: =Template!R34 -> 0 | S55: =Template!S34 -> 0 | T55: =Template!T34 -> 0 | U55: 15133.65258 | V55: =Template!V34 -> 0 | W55: =Template!W34 -> 0 | X55: =Template!X34 -> 4400 | Y55: =Template!Y34 -> 2750 | Z55: =Template!Z34 -> 825 | AA55: 1471.839992 | AB55: =Template!AB34 -> 0 | AC55: =Template!AC34 -> 0 | AD55: =Template!AD34 -> 4400 | AE55: =Template!AE34 -> 2750 | AF55: =Template!AF34 -> 825 | AG55: 1471.839992
A56: 2046/47 | B56: 30 | C56: 0.1741101309 | D56: =OFFSET(Template!D35,-$P$13,0,1,1) -> 0 | E56: =OFFSET(Template!E35,-$P$13,0,1,1) -> 0 | F56: =Template!F35 -> 1600 | G56: =Template!G35 -> 1000 | H56: =Template!H35 -> 300 | I56: 504.9193796 | J56: =OFFSET(Template!J35,-$P$12,0,1,1) -> 0 | K56: =Template!K35 -> 0 | L56: =Template!L35 -> 800 | M56: =Template!M35 -> 500 | N56: =Template!N35 -> 150 | O56: 252.4596898 | P56: =Template!P35 -> 0 | Q56: =Template!Q35 -> 0 | R56: =Template!R35 -> 0 | S56: =Template!S35 -> 0 | T56: =Template!T35 -> 0 | U56: 0 | V56: =Template!V35 -> 0 | W56: =Template!W35 -> 0 | X56: =Template!X35 -> 4800 | Y56: =Template!Y35 -> 3000 | Z56: =Template!Z35 -> 900 | AA56: 1514.758139 | AB56: =Template!AB35 -> 0 | AC56: =Template!AC35 -> 0 | AD56: =Template!AD35 -> 4800 | AE56: =Template!AE35 -> 3000 | AF56: =Template!AF35 -> 900 | AG56: 1514.758139
H57: Discounted Total Cost | I57: =SUM(I27:I56) -> 625555.155 | N57: Discounted Total Cost | O57: =SUM(O27:O56) ->  | T57: Discounted Total Cost | U57: =SUM(U27:U56) -> 391334.3076 | Z57: Discounted Total Cost | AA57: =SUM(AA27:AA56) -> 471381.4205 | AF57: Discounted Total Cost | AG57: =SUM(AG27:AG56) -> 578362.5526
D59: OPTIONS SUMMARY - DO MINIMUM | J59: OPTIONS SUMMARY - HEAVY MAINTENANCE | P59: OPTIONS SUMMARY - PAVEMENT REHAB No.1 | V59: OPTIONS SUMMARY - PAVEMENT REHAB No.2 | AB59: OPTIONS SUMMARY - PAVEMENT REHAB No.3
D60: Short Term Present Value (7yr) | H60: =SUM(I27:I33) -> 275517.8813 | J60: Contract Period Present Value | N60: =SUM(O27:O33) ->  | P60: Contract Period Present Value | T60: =SUM(U27:U33) -> 316773.9427 | V60: Contract Period Present Value | Z60: =SUM(AA27:AA33) -> 413056.9616 | AB60: Contract Period Present Value | AF60: =SUM(AG27:AG33) -> 520038.0937
D61: Long Term Present Value (30yr) | H61: =I57 -> 625555.155 | J61: 30yr Present Value | N61: =O57 ->  | P61: 30yr Present Value | T61: =U57 -> 391334.3076 | V61: 30yr Present Value | Z61: =AA57 -> 471381.4205 | AB61: 30yr Present Value | AF61: =AG57 -> 578362.5526
H62: CHECKPOINT 1 | J62: NPV (vs. Do Minimum) | M62: =IF(N62="Not Assessed","Review",IF(N62>(VLOOKUP(ONRC_Classification,Template!$B$106:$C$111,2,FALSE)),"Pass","Fail")) ->  | N62: =IF(O57<5000,"Not Assessed",H61-N61) ->  | P62: NPV (vs. Do Minimum) | S62: =IF(T62="Not Assessed","Review",IF(T62>(VLOOKUP(ONRC_Classification,Template!$B$106:$C$111,2,FALSE)),"Pass","Fail")) -> Pass | T62: =IF(T61<5000,"Not Assessed",H61-U57) -> 234220.8474 | V62: NPV (vs. Do Minimum) | Y62: =IF(Z62="Not Assessed","Review",IF(Z62>(VLOOKUP(ONRC_Classification,Template!$B$106:$C$111,2,FALSE)),"Pass","Fail")) -> Pass | Z62: =IF(Z61<5000,"Not Assessed",H61-AA57) -> 154173.7345 | AB62: NPV (vs. Do Minimum) | AE62: =IF(AF62="Not Assessed","Review",IF(AF62>(VLOOKUP(ONRC_Classification,Template!$B$106:$C$111,2,FALSE)),"Pass","Fail")) -> Pass | AF62: =IF(AF61<5000,"Not Assessed",H61-AG57) -> 47192.60241
H63: CHECKPOINT 2 | J63: EI | M63: =IF(ISNUMBER(N63),IF(N63<0,"Review",IF(N63<0.8,"Fail",IF(N63<2,"Pass",IF(N63>2,"Review","Check")))),"Review") -> Review | N63: =IF(O57<5000,"Not Assessed",(H61-N61)/(N60-H60)) ->  | P63: EI | S63: =IF(ISNUMBER(T63),IF(T63<0,"Review",IF(T63<0.8,"Fail",IF(T63<2,"Pass",IF(T63>2,"Review","Check")))),"Review") -> Review | T63: =IF(U57<5000,"Not Assessed",(H61-T61)/(T60-H60)) -> 5.677246907 | V63: EI | Y63: =IF(ISNUMBER(Z63),IF(Z63<0,"Review",IF(Z63<0.8,"Fail",IF(Z63<2,"Pass",IF(Z63>2,"Review","Check")))),"Review") -> Pass | Z63: =IF(AA57<5000,"Not Assessed",(H61-Z61)/(Z60-H60)) -> 1.120944928 | AB63: EI | AE63: =IF(ISNUMBER(AF63),IF(AF63<0,"Review",IF(AF63<0.8,"Fail",IF(AF63<2,"Pass",IF(AF63>2,"Review","Check")))),"Review") -> Fail | AF63: =IF(AG57<5000,"Not Assessed",(H61-AF61)/(AF60-H60)) -> 0.1930008237
D66: Checkpoint | F66: Process
D67: 1 | E67: 2 | F67: NPV | G67: EI
C68: Heavy Maintenance | D68: =($N$62) ->  | E68: =$N$63 ->  | F68: =D68 ->  | G68: =M63 -> Review | H68: Heavy Maintenance
C69: Renewal No.1 | D69: =$T$62 -> 234220.8474 | E69: =$T$63 -> 5.677246907 | F69: =D69 -> 234220.8474 | G69: =S63 -> Review | H69: Renewal No.1
C70: Renewal No.2 | D70: =$Z$62 -> 154173.7345 | E70: =$Z$63 -> 1.120944928 | F70: =D70 -> 154173.7345 | G70: =Y63 -> Pass | H70: Renewal No.2
C71: Renewal No.3 | D71: =$AF$62 -> 47192.60241 | E71: =$AF$63 -> 0.1930008237 | F71: 47192.60241 | G71: =AE63 -> Fail | H71: Renewal No.3
K78: Ref. Year | L78: 1 | M78: 2 | N78: 3 | O78: 4 | P78: 5 | Q78: 6 | R78: 7 | S78: 8 | T78: 9 | U78: 10 | V78: 11 | W78: 12 | X78: 13 | Y78: 14 | Z78: 15 | AA78: 16 | AB78: 17 | AC78: 18 | AD78: 19 | AE78: 20 | AF78: 21 | AG78: 22 | AH78: 23
K79: Year | L79: 2007/08 | M79: 2008/09 | N79: 2009/10 | O79: 2010/11 | P79: 2011/12 | Q79: 2012/13 | R79: 2013/14 | S79: 2014/15 | T79: 2015/16 | U79: 2016/17 | V79: 2017/18 | W79: 2018/19 | X79: 2019/20 | Y79: 2020/21 | Z79: 2021/22 | AA79: 2022/23 | AB79: 2023/24 | AC79: 2024/25 | AD79: 2025/26 | AE79: 2026/27 | AF79: 2027/28 | AG79: 2028/29 | AH79: 2029/30
K80: Pavement | L80: ='Do Min Cost Model'!C6 -> 0 | M80: ='Do Min Cost Model'!D6 -> 0 | N80: ='Do Min Cost Model'!E6 -> 0 | O80: ='Do Min Cost Model'!F6 -> 51420 | P80: ='Do Min Cost Model'!G6 -> 13722 | Q80: ='Do Min Cost Model'!H6 -> 0 | R80: ='Do Min Cost Model'!I6 -> 3986 | S80: ='Do Min Cost Model'!J6 -> 0 | T80: ='Do Min Cost Model'!K6 -> 0 | U80: ='Do Min Cost Model'!L6 -> 13500 | V80: ='Do Min Cost Model'!M6*P7 -> 45000 | W80: =TREND($L$80:$V$80,$L$78:$V$78,W78)*$P$4 -> 24816.26182 | X80: 26631.79636 | Y80: 28447.33091 | Z80: 30262.86545 | AA80: 32078.4 | AB80: 33893.93455 | AC80: 35709.46909 | AD80: 37525.00364 | AE80: 39340.53818 | AF80: 41156.07273 | AG80: 42971.60727 | AH80: 44787.14182
K81: Surfacing | L81: ='Do Min Cost Model'!C7 -> 0 | M81: ='Do Min Cost Model'!D7 -> 12720 | N81: ='Do Min Cost Model'!E7 -> 8362.4 | O81: ='Do Min Cost Model'!F7 -> 0 | P81: ='Do Min Cost Model'!G7 -> 0 | Q81: ='Do Min Cost Model'!H7 -> 0 | R81: ='Do Min Cost Model'!I7 -> 1104 | S81: ='Do Min Cost Model'!J7 -> 0 | T81: ='Do Min Cost Model'!K7 -> 0 | U81: ='Do Min Cost Model'!L7 -> 5400 | V81: ='Do Min Cost Model'!M7*P7 -> 18000 | W81: =TREND($L$81:$V$81,$L$78:$V$78,W78)*$P$4 -> 7377.652364 | X81: 7778.417455 | Y81: 8179.182545 | Z81: 8579.947636 | AA81: 8980.712727 | AB81: 9381.477818 | AC81: 9782.242909 | AD81: 10183.008 | AE81: 10583.77309 | AF81: 10984.53818 | AG81: 11385.30327 | AH81: 11786.06836
K82: Shoulder | L82: ='Do Min Cost Model'!C8 -> 0 | M82: ='Do Min Cost Model'!D8 -> 0 | N82: ='Do Min Cost Model'!E8 -> 0 | O82: ='Do Min Cost Model'!F8 -> 0 | P82: ='Do Min Cost Model'!G8 -> 300 | Q82: ='Do Min Cost Model'!H8 -> 60 | R82: ='Do Min Cost Model'!I8 -> 6756 | S82: ='Do Min Cost Model'!J8 -> 7932 | T82: ='Do Min Cost Model'!K8 -> 0 | U82: ='Do Min Cost Model'!L8 -> 2400 | V82: ='Do Min Cost Model'!M8*P7 -> 5760 | W82: =TREND($L$82:$V$82,$L$78:$V$78,W78)*$P$4 -> 6506.181818 | X82: 7168.581818 | Y82: 7830.981818 | Z82: 8493.381818 | AA82: 9155.781818 | AB82: 9818.181818 | AC82: 10480.58182 | AD82: 11142.98182 | AE82: 11805.38182 | AF82: 12467.78182 | AG82: 13130.18182 | AH82: 13792.58182
K87: Ref. Year | L87: 1 | M87: 2 | N87: 3 | O87: 4 | P87: 5 | Q87: 6 | R87: 7 | S87: 8 | T87: 9 | U87: 10 | V87: 11 | W87: 12 | X87: 13 | Y87: 14 | Z87: 15 | AA87: 16 | AB87: 17 | AC87: 18 | AD87: 19 | AE87: 20 | AF87: 21 | AG87: 22 | AH87: 23
K88: Year | L88: 2007/08 | M88: 2008/09 | N88: 2009/10 | O88: 2010/11 | P88: 2011/12 | Q88: 2012/13 | R88: 2013/14 | S88: 2014/15 | T88: 2015/16 | U88: 2016/17 | V88: 2017/18 | W88: 2018/19 | X88: 2019/20 | Y88: 2020/21 | Z88: 2021/22 | AA88: 2022/23 | AB88: 2023/24 | AC88: 2024/25 | AD88: 2025/26 | AE88: 2026/27 | AF88: 2027/28 | AG88: 2028/29 | AH88: 2029/30
K89: Pavement | L89: ='Do Min Cost Model'!C6 -> 0 | M89: ='Do Min Cost Model'!D6 -> 0 | N89: ='Do Min Cost Model'!E6 -> 0 | O89: ='Do Min Cost Model'!F6 -> 51420 | P89: ='Do Min Cost Model'!G6 -> 13722 | Q89: ='Do Min Cost Model'!H6 -> 0 | R89: ='Do Min Cost Model'!I6 -> 3986 | S89: ='Do Min Cost Model'!J6 -> 0 | T89: ='Do Min Cost Model'!K6 -> 0 | U89: ='Do Min Cost Model'!L6 -> 13500 | V89: ='Do Min Cost Model'!M6*P7 -> 45000 | W89: =TREND($L$89:$V$89,$L$87:$V$87,W87)*$P$4 -> 24816.26182 | X89: =TREND($L$89:$V$89,$L$87:$V$87,X87)*$P$4 -> 26631.79636 | Y89: 28447.33091 | Z89: 30262.86545 | AA89: 32078.4 | AB89: 33893.93455 | AC89: 35709.46909 | AD89: 37525.00364 | AE89: 39340.53818 | AF89: 41156.07273 | AG89: 42971.60727 | AH89: 44787.14182
K90: Surfacing | L90: ='Do Min Cost Model'!C7 -> 0 | M90: ='Do Min Cost Model'!D7 -> 12720 | N90: ='Do Min Cost Model'!E7 -> 8362.4 | O90: ='Do Min Cost Model'!F7 -> 0 | P90: ='Do Min Cost Model'!G7 -> 0 | Q90: ='Do Min Cost Model'!H7 -> 0 | R90: ='Do Min Cost Model'!I7 -> 1104 | S90: ='Do Min Cost Model'!J7 -> 0 | T90: ='Do Min Cost Model'!K7 -> 0 | U90: ='Do Min Cost Model'!L7 -> 5400 | V90: ='Do Min Cost Model'!M7*P7 -> 18000 | W90: =TREND($L$90:$V$90,$L$87:$V$87,W87)*$P$4 -> 7377.652364 | X90: =TREND($L$90:$V$90,$L$87:$V$87,X87)*$P$4 -> 7778.417455 | Y90: 8179.182545 | Z90: 8579.947636 | AA90: 8980.712727 | AB90: 9381.477818 | AC90: 9782.242909 | AD90: 10183.008 | AE90: 10583.77309 | AF90: 10984.53818 | AG90: 11385.30327 | AH90: 11786.06836
K91: Shoulder | L91: ='Do Min Cost Model'!C8 -> 0 | M91: ='Do Min Cost Model'!D8 -> 0 | N91: ='Do Min Cost Model'!E8 -> 0 | O91: ='Do Min Cost Model'!F8 -> 0 | P91: ='Do Min Cost Model'!G8 -> 300 | Q91: ='Do Min Cost Model'!H8 -> 60 | R91: ='Do Min Cost Model'!I8 -> 6756 | S91: ='Do Min Cost Model'!J8 -> 7932 | T91: ='Do Min Cost Model'!K8 -> 0 | U91: ='Do Min Cost Model'!L8 -> 2400 | V91: ='Do Min Cost Model'!M8*P7 -> 5760 | W91: =TREND($L$91:$V$91,$L$87:$V$87,W87)*$P$4 -> 6506.181818 | X91: =TREND($L$91:$V$91,$L$87:$V$87,X87)*$P$4 -> 7168.581818 | Y91: 7830.981818 | Z91: 8493.381818 | AA91: 9155.781818 | AB91: 9818.181818 | AC91: 10480.58182 | AD91: 11142.98182 | AE91: 11805.38182 | AF91: 12467.78182 | AG91: 13130.18182 | AH91: 13792.58182

Sheet Do Min Cost Model
B1: Do Minimum Maintenance Cost Model (Pre-Pavement Rehabilitation)
B4: Ref. Year | C4: 1 | D4: 2 | E4: 3 | F4: 4 | G4: 5 | H4: 6 | I4: 7 | J4: 8 | K4: 9 | L4: 10 | M4: 11 | N4: 12 | O4: 13 | P4: 14 | Q4: 15 | R4: 16 | S4: 17 | T4: 18 | U4: 19 | V4: 20 | W4: 21 | X4: 22 | Y4: 23
B5: Year | C5: 2007/08 | D5: 2008/09 | E5: 2009/10 | F5: 2010/11 | G5: 2011/12 | H5: 2012/13 | I5: 2013/14 | J5: 2014/15 | K5: 2015/16 | L5: 2016/17 | M5: 2017/18 | N5: 2018/19 | O5: 2019/20 | P5: 2020/21 | Q5: 2021/22 | R5: 2022/23 | S5: 2023/24 | T5: 2024/25 | U5: 2025/26 | V5: 2026/27 | W5: 2027/28 | X5: 2028/29 | Y5: 2029/30
A6: Historic & Assessed Costs | B6: Pavement | C6: ='Site Details'!E3*'Site Details'!$E$15+'Site Details'!E4*'Site Details'!$E$16+'Site Details'!E5*'Site Details'!$E$17+'Site Details'!E6*'Site Details'!$E$18+'Site Details'!E7*'Site Details'!$E$19 -> 0 | D6: ='Site Details'!F3*'Site Details'!$E$15+'Site Details'!F4*'Site Details'!$E$16+'Site Details'!F5*'Site Details'!$E$17+'Site Details'!F6*'Site Details'!$E$18+'Site Details'!F7*'Site Details'!$E$19 -> 0 | E6: ='Site Details'!G3*'Site Details'!$E$15+'Site Details'!G4*'Site Details'!$E$16+'Site Details'!G5*'Site Details'!$E$17+'Site Details'!G6*'Site Details'!$E$18+'Site Details'!G7*'Site Details'!$E$19 -> 0 | F6: ='Site Details'!H3*'Site Details'!$E$15+'Site Details'!H4*'Site Details'!$E$16+'Site Details'!H5*'Site Details'!$E$17+'Site Details'!H6*'Site Details'!$E$18+'Site Details'!H7*'Site Details'!$E$19 -> 51420 | G6: ='Site Details'!I3*'Site Details'!$E$15+'Site Details'!I4*'Site Details'!$E$16+'Site Details'!I5*'Site Details'!$E$17+'Site Details'!I6*'Site Details'!$E$18+'Site Details'!I7*'Site Details'!$E$19 -> 13722 | H6: ='Site Details'!J3*'Site Details'!$E$15+'Site Details'!J4*'Site Details'!$E$16+'Site Details'!J5*'Site Details'!$E$17+'Site Details'!J6*'Site Details'!$E$18+'Site Details'!J7*'Site Details'!$E$19 -> 0 | I6: ='Site Details'!K3*'Site Details'!$E$15+'Site Details'!K4*'Site Details'!$E$16+'Site Details'!K5*'Site Details'!$E$17+'Site Details'!K6*'Site Details'!$E$18+'Site Details'!K7*'Site Details'!$E$19 -> 3986 | J6: ='Site Details'!L3*'Site Details'!$E$15+'Site Details'!L4*'Site Details'!$E$16+'Site Details'!L5*'Site Details'!$E$17+'Site Details'!L6*'Site Details'!$E$18+'Site Details'!L7*'Site Details'!$E$19 -> 0 | K6: ='Site Details'!M3*'Site Details'!$E$15+'Site Details'!M4*'Site Details'!$E$16+'Site Details'!M5*'Site Details'!$E$17+'Site Details'!M6*'Site Details'!$E$18+'Site Details'!M7*'Site Details'!$E$19 -> 0 | L6: ='Site Details'!N3*'Site Details'!$E$15+'Site Details'!N4*'Site Details'!$E$16+'Site Details'!N5*'Site Details'!$E$17+'Site Details'!N6*'Site Details'!$E$18+'Site Details'!N7*'Site Details'!$E$19 -> 13500 | M6: ='Site Details'!O3*'Site Details'!$E$15+'Site Details'!O4*'Site Details'!$E$16+'Site Details'!O5*'Site Details'!$E$17+'Site Details'!O6*'Site Details'!$E$18+'Site Details'!O7*'Site Details'!$E$19 -> 37500
B7: Surfacing | C7: ='Site Details'!E8*'Site Details'!$E$20+'Site Details'!E9*'Site Details'!$E$21+'Site Details'!E10*'Site Details'!$E$22+'Site Details'!E11*'Site Details'!$E$23 -> 0 | D7: ='Site Details'!F8*'Site Details'!$E$20+'Site Details'!F9*'Site Details'!$E$21+'Site Details'!F10*'Site Details'!$E$22+'Site Details'!F11*'Site Details'!$E$23 -> 12720 | E7: ='Site Details'!G8*'Site Details'!$E$20+'Site Details'!G9*'Site Details'!$E$21+'Site Details'!G10*'Site Details'!$E$22+'Site Details'!G11*'Site Details'!$E$23 -> 8362.4 | F7: ='Site Details'!H8*'Site Details'!$E$20+'Site Details'!H9*'Site Details'!$E$21+'Site Details'!H10*'Site Details'!$E$22+'Site Details'!H11*'Site Details'!$E$23 -> 0 | G7: ='Site Details'!I8*'Site Details'!$E$20+'Site Details'!I9*'Site Details'!$E$21+'Site Details'!I10*'Site Details'!$E$22+'Site Details'!I11*'Site Details'!$E$23 -> 0 | H7: ='Site Details'!J8*'Site Details'!$E$20+'Site Details'!J9*'Site Details'!$E$21+'Site Details'!J10*'Site Details'!$E$22+'Site Details'!J11*'Site Details'!$E$23 -> 0 | I7: ='Site Details'!K8*'Site Details'!$E$20+'Site Details'!K9*'Site Details'!$E$21+'Site Details'!K10*'Site Details'!$E$22+'Site Details'!K11*'Site Details'!$E$23 -> 1104 | J7: ='Site Details'!L8*'Site Details'!$E$20+'Site Details'!L9*'Site Details'!$E$21+'Site Details'!L10*'Site Details'!$E$22+'Site Details'!L11*'Site Details'!$E$23 -> 0 | K7: ='Site Details'!M8*'Site Details'!$E$20+'Site Details'!M9*'Site Details'!$E$21+'Site Details'!M10*'Site Details'!$E$22+'Site Details'!M11*'Site Details'!$E$23 -> 0 | L7: ='Site Details'!N8*'Site Details'!$E$20+'Site Details'!N9*'Site Details'!$E$21+'Site Details'!N10*'Site Details'!$E$22+'Site Details'!N11*'Site Details'!$E$23 -> 5400 | M7: ='Site Details'!O8*'Site Details'!$E$20+'Site Details'!O9*'Site Details'!$E$21+'Site Details'!O10*'Site Details'!$E$22+'Site Details'!O11*'Site Details'!$E$23 -> 15000
B8: Shoulder | C8: ='Site Details'!E12*'Site Details'!$E$24 -> 0 | D8: ='Site Details'!F12*'Site Details'!$E$24 -> 0 | E8: ='Site Details'!G12*'Site Details'!$E$24 -> 0 | F8: ='Site Details'!H12*'Site Details'!$E$24 -> 0 | G8: ='Site Details'!I12*'Site Details'!$E$24 -> 300 | H8: ='Site Details'!J12*'Site Details'!$E$24 -> 60 | I8: ='Site Details'!K12*'Site Details'!$E$24 -> 6756 | J8: ='Site Details'!L12*'Site Details'!$E$24 -> 7932 | K8: ='Site Details'!M12*'Site Details'!$E$24 -> 0 | L8: ='Site Details'!N12*'Site Details'!$E$24 -> 2400 | M8: ='Site Details'!O12*'Site Details'!$E$24 -> 4800
A9: Predicted Costs | B9: Pavement | N9: =TREND($C$6:$M$6,$C$4:$M$4,N4) -> 17952.94545 | O9: =TREND($C$6:$M$6,$C$4:$M$4,O4) -> 19124.98182 | P9: 20297.01818 | Q9: 21469.05455 | R9: 22641.09091 | S9: 23813.12727 | T9: 24985.16364 | U9: 26157.2 | V9: 27329.23636 | W9: 28501.27273 | X9: 29673.30909 | Y9: 30845.34545
B10: Surfacing | N10: =TREND($C$7:$M$7,$C$4:$M$4,N4) -> 5057.134545 | O10: =TREND($C$7:$M$7,$C$4:$M$4,O4) -> 5254.741818 | P10: 5452.349091 | Q10: 5649.956364 | R10: 5847.563636 | S10: 6045.170909 | T10: 6242.778182 | U10: 6440.385455 | V10: 6637.992727 | W10: 6835.6 | X10: 7033.207273 | Y10: 7230.814545
B11: Shoulder | N11: =TREND($C$8:$M$8,$C$4:$M$4,N4) -> 5072.727273 | O11: =TREND($C$8:$M$8,$C$4:$M$4,O4) -> 5581.090909 | P11: 6089.454545 | Q11: 6597.818182 | R11: 7106.181818 | S11: 7614.545455 | T11: 8122.909091 | U11: 8631.272727 | V11: 9139.636364 | W11: 9648 | X11: 10156.36364 | Y11: 10664.72727
